﻿Directorate,Service,Division,Responsible Unit,Expense Type,Payment Date,Trans No,Net Amount,Supplier Name
Chief Executive�s Office,Corporate & Democratic Core,Corporate Management,Safeguarding Legal Costs,Services - Professional Fees - Counsel's Fees,01/04/2022,5648123,490.00,Chambers of Jacob Levy QC
Chief Executive�s Office,Corporate & Democratic Core,Corporate Management,Safeguarding Legal Costs,Services - Professional Fees - Counsel's Fees,01/04/2022,5648128,550.00,5 Pump Court CDS
Chief Executive�s Office,Corporate & Democratic Core,Corporate Management,Safeguarding Legal Costs,Services - Professional Fees - Counsel's Fees,01/04/2022,5648730,550.00,33 Bedford Row Chambers
Chief Executive�s Office,Children's Social Care,Other Children's and Family Services,"Safeguarding team		",Services - Professional Fees - Legal Fees/Expenses,01/04/2022,5647436,752.00,London Borough of Merton (General Account)
Chief Executive�s Office,Corporate & Democratic Core,Corporate Management,Safeguarding Legal Costs,Services - Professional Fees - Counsel's Fees,01/04/2022,5648124,"2,395.00",Chambers of Jacob Levy QC
Chief Executive�s Office,Corporate & Democratic Core,Corporate Management,Safeguarding Legal Costs,Services - Professional Fees - Legal Fees/Expenses,01/04/2022,5648126,"2,850.00",TRINITY CHAMBERS
Chief Executive�s Office,Planning Services,Community Development,Community Engagement,Third Party Payments - Voluntary Associations,01/04/2022,5637751,"8,500.00",East End Community Foundation
Chief Executive�s Office,Corporate & Democratic Core,Corporate Management,Safeguarding Legal Costs,Services - Professional Fees - Counsel's Fees,04/04/2022,5648738,475.00,4 Brick Court Chambers Management Limited
Chief Executive�s Office,Corporate & Democratic Core,Corporate Management,Safeguarding Legal Costs,Services - Professional Fees - Counsel's Fees,04/04/2022,5648734,650.00,CORAM CHAMBERS LTD
Chief Executive�s Office,Corporate & Democratic Core,Corporate Management,Safeguarding Legal Costs,Services - Professional Fees - Counsel's Fees,04/04/2022,5648732,"8,830.00",Chambers of Jacob Levy QC
Chief Executive�s Office,Planning Services,Community Development,Emergency Fund,Third Party Payments - Voluntary Associations,04/04/2022,5648920,"9,722.00",Weavers Adventure Playground
Chief Executive�s Office,Corporate & Democratic Core,Corporate Management,Tower Design,Printing - External,06/04/2022,5639159,409.50,Promo2u Ltd
Chief Executive�s Office,General Fund/Council Fund,Housing Strategy,Housing Services,Services - Professional Fees - Legal Fees/Expenses,06/04/2022,5648930,475.00,Five Paper Buildings
Chief Executive�s Office,Corporate & Democratic Core,Democratic Representation & Management,Civic Mayor/Chair of Council,Services - Professional Fees - Digitisation,06/04/2022,5640114,500.00,Kois Miah Photography
Chief Executive�s Office,Corporate & Democratic Core,Corporate Management,Tower Design,Printing - External,06/04/2022,5639796,560.00,Good Impressions
Chief Executive�s Office,Corporate & Democratic Core,Corporate Management,Tower Design,Printing - External,06/04/2022,5639793,"1,120.00",Good Impressions
Chief Executive�s Office,Corporate & Democratic Core,Democratic Representation & Management,Community Grant,Third Party Payments - Voluntary Associations,06/04/2022,5649028,"1,875.00",AGE UK EAST LONDON
Chief Executive�s Office,General Fund/Council Fund,Housing Strategy,Housing Services,Services - Professional Fees - Legal Fees/Expenses,06/04/2022,5648937,"3,000.00",Bond Turner Solicitors
Chief Executive�s Office,Central Services to the Public,Elections,Electoral Registration,Comms - Postages,06/04/2022,5642288,"7,896.80",ROYAL MAIL
Chief Executive�s Office,Corporate & Democratic Core,Corporate Management,Tower Design,Printing - External,06/04/2022,5639794,"12,065.00",Good Impressions
Chief Executive�s Office,Planning Services,Community Development,Community Engagement,Third Party Payments - Voluntary Associations,08/04/2022,5639681,"5,000.00",Christian Education Movement t/a RE Today Services
Chief Executive�s Office,Planning Services,Community Development,Community Engagement,Third Party Payments - Voluntary Associations,08/04/2022,5639682,"8,500.00",Christian Education Movement t/a RE Today Services
Chief Executive�s Office,Corporate & Democratic Core,Corporate Management,"Legal Services SMT and PMT		",Services - Professional Fees - Counsel's Fees,11/04/2022,5651551,700.00,Five Paper Buildings
Chief Executive�s Office,Corporate & Democratic Core,Corporate Management,Tower Design,Printing - External,13/04/2022,5642351,630.00,Visual Print and Design
Chief Executive�s Office,Corporate & Democratic Core,Corporate Management,Tower Design,Printing - External,13/04/2022,5641813,"1,180.00",Good Impressions
Chief Executive�s Office,Corporate & Democratic Core,Corporate Management,Tower Design,Printing - External,13/04/2022,5642524,"1,275.00",Tutaev Design
Chief Executive�s Office,Corporate & Democratic Core,Corporate Management,Tower Design,Printing - External,13/04/2022,5641811,"2,335.00",Good Impressions
Chief Executive�s Office,Corporate & Democratic Core,Democratic Representation & Management,Community Grant,Third Party Payments - Voluntary Associations,13/04/2022,5650749,"18,659.25",Coventry University - Centre for Trust Peace and Social Relations
Chief Executive�s Office,Corporate & Democratic Core,Corporate Management,"Commercial and Contracts team		",Services - Professional Fees - Legal Fees/Expenses,20/04/2022,5652689,326.40,Browne Jacobson LLP
Chief Executive�s Office,Corporate & Democratic Core,Corporate Management,"Commercial and Contracts team		",Services - Professional Fees - Legal Fees/Expenses,20/04/2022,5652698,446.00,Browne Jacobson LLP
Chief Executive�s Office,Corporate & Democratic Core,Corporate Management,"Commercial and Contracts team		",Services - Professional Fees - Legal Fees/Expenses,20/04/2022,5652696,500.40,Browne Jacobson LLP
Chief Executive�s Office,Corporate & Democratic Core,Corporate Management,"Commercial and Contracts team		",Services - Professional Fees - Legal Fees/Expenses,20/04/2022,5652694,552.40,Browne Jacobson LLP
Chief Executive�s Office,Corporate & Democratic Core,Corporate Management,Safeguarding Legal Costs,Services - Professional Fees - Legal Fees/Expenses,20/04/2022,5648736,713.70,Psychology Direct
Chief Executive�s Office,Corporate & Democratic Core,Corporate Management,Corporate Campaigns,Communications,20/04/2022,5646434,800.00,Kois Miah Photography
Chief Executive�s Office,Corporate & Democratic Core,Corporate Management,"Commercial and Contracts team		",Services - Professional Fees - Legal Fees/Expenses,20/04/2022,5652695,852.00,Browne Jacobson LLP
Chief Executive�s Office,Corporate & Democratic Core,Corporate Management,"Commercial and Contracts team		",Services - Professional Fees - Legal Fees/Expenses,20/04/2022,5652693,857.20,Browne Jacobson LLP
Chief Executive�s Office,Children's Social Care,Children's and Young People's Safety,"Safeguarding Children Partnership		",Training Expenses - Staff External Training (UK Based),20/04/2022,5652269,"1,050.00",NSPCC
Chief Executive�s Office,Corporate & Democratic Core,Corporate Management,"Commercial and Contracts team		",Services - Professional Fees - Legal Fees/Expenses,20/04/2022,5652687,"1,162.50",Browne Jacobson LLP
Chief Executive�s Office,Corporate & Democratic Core,Corporate Management,"Commercial and Contracts team		",Services - Professional Fees - Legal Fees/Expenses,20/04/2022,5652688,"1,171.20",Browne Jacobson LLP
Chief Executive�s Office,Corporate & Democratic Core,Corporate Management,"Commercial and Contracts team		",Services - Professional Fees - Legal Fees/Expenses,20/04/2022,5652690,"1,480.00",Browne Jacobson LLP
Chief Executive�s Office,Corporate & Democratic Core,Corporate Management,External Communications,Communications,20/04/2022,5652705,"5,000.00",Access Intelligence Media and Communications Limited
Chief Executive�s Office,Corporate & Democratic Core,Democratic Representation & Management,Community Grant,Third Party Payments - Voluntary Associations,20/04/2022,5653081,"5,300.00",The Atrium London Ltd
Chief Executive�s Office,Corporate & Democratic Core,Democratic Representation & Management,Community Grant,Third Party Payments - Voluntary Associations,20/04/2022,5652671,"6,158.58",Limehouse Project
Chief Executive�s Office,Planning Services,Community Development,Controlling Migration Fund (CMF),Training Expenses - Staff External Training (UK Based),20/04/2022,5646102,"6,969.00",East London Advanced Technology Training
Chief Executive�s Office,Planning Services,Community Development,Controlling Migration Fund (CMF),Training Expenses - Staff External Training (UK Based),20/04/2022,5646103,"6,969.00",East London Advanced Technology Training
Chief Executive�s Office,Central Services to the Public,Elections,Electoral Registration,Tools and Equipment - Purchase,22/04/2022,5649835,440.00,G K Locksmiths Ltd
Chief Executive�s Office,Corporate & Democratic Core,Corporate Management,Safeguarding Legal Costs,Services - Professional Fees - Legal Fees/Expenses,22/04/2022,5648737,"2,646.78",RWA (UK) CO LTD
Chief Executive�s Office,Corporate & Democratic Core,Corporate Management,Corporate Campaigns,Communications,27/04/2022,5648102,300.00,Carmen Valino
Chief Executive�s Office,General Fund/Council Fund,Housing Strategy,Housing Services,Services - Professional Fees - Legal Fees/Expenses,27/04/2022,5654992,"1,054.38",Barnes Solicitors LLP
Chief Executive�s Office,Corporate & Democratic Core,Democratic Representation & Management,Community Grant,Third Party Payments - Voluntary Associations,27/04/2022,5655032,"6,200.00",Account 3 Ltd
Chief Executive�s Office,Corporate & Democratic Core,Corporate Management,"Legal Services SMT and PMT		",Computing - Purchase of Software,29/04/2022,5652680,258.72,XMA Ltd
Chief Executive�s Office,Corporate & Democratic Core,Corporate Management,"Legal Services SMT and PMT		",Staff Advertising,29/04/2022,5649030,"3,995.00",HB Editorial Services Ltd
Chief Executive�s Office,General Fund/Council Fund,Housing Strategy,Housing Services,Services - Professional Fees - Legal Fees/Expenses,29/04/2022,5657243,"4,000.00",Holdings Matrix Limited
Chief Executive�s Office,General Fund/Council Fund,Housing Strategy,Housing Services,Services - Professional Fees - Legal Fees/Expenses,29/04/2022,5657244,"5,000.00",Antony Hodari Holdings Limited
Chief Executive�s Office,Corporate & Democratic Core,Democratic Representation & Management,Community Grant,Third Party Payments - Voluntary Associations,29/04/2022,5648498,"6,250.00",Elop
Children & Culture,Children's Social Care,Support Service and Management Costs,Schools Catering,Kitchen Supplies - Food and Beverages,01/04/2022,5648065,-543.10,Thomas Ridley & Son Ltd
Children & Culture,Children's Social Care,Support Service and Management Costs,Schools Catering,Kitchen Supplies - Food and Beverages,01/04/2022,5639626,251.58,William White Meats Ltd
Children & Culture,Children's Social Care,Support Service and Management Costs,Schools Catering,Kitchen Supplies - Packaging,01/04/2022,5637742,254.67,Tri-Star Packaging Supplies LTD
Children & Culture,Children's Social Care,Children Looked After,Fostering and Development Team 2,Services - Professional Fees - Translation Fees,01/04/2022,5637841,255.50,Oncall Interpreters LTD
Children & Culture,Children's Social Care,Support Service and Management Costs,Schools Catering,Kitchen Supplies - Packaging,01/04/2022,5637743,270.76,Tri-Star Packaging Supplies LTD
Children & Culture,Children's Social Care,Children Looked After,Leaving Care-UASC,Leaving Care Financial Assistance - Supp Accom/Hous Rents,01/04/2022,5629675,277.68,HAMLETTS LTD
Children & Culture,Children's Social Care,Support Service and Management Costs,Schools Catering,Kitchen Supplies - Food and Beverages,01/04/2022,5637958,278.88,Thomas Ridley & Son Ltd
Children & Culture,Children's Social Care,Support Service and Management Costs,Schools Catering,Repairs and Maintenance - Responsive - Repair & Maintenance,01/04/2022,5637885,282.40,J.Scott & Sons Ltd
Children & Culture,Education Services,Other Strategic Functions,Maintained Schools Contingency,Third Party Payments - Payments to Schools,01/04/2022,5647953,295.00,James Waters T/A (Press Play Productions)
Children & Culture,Education Services,Early Years,Around Poplar CC,Materials - Cleaning Materials,01/04/2022,5634704,295.25,ESPO
Children & Culture,Children's Social Care,Support Service and Management Costs,Schools Catering,Repairs and Maintenance - Responsive - Repair & Maintenance,01/04/2022,5637886,300.00,J.Scott & Sons Ltd
Children & Culture,Children's Social Care,Support Service and Management Costs,Schools Catering,Kitchen Supplies - Food and Beverages,01/04/2022,5639634,302.26,William White Meats Ltd
Children & Culture,Children's Social Care,Youth Justice,Youth Justice Team,Childrens Act Section 17 - Interpreting/Translation,01/04/2022,5637825,308.00,Oncall Interpreters LTD
Children & Culture,Children's Social Care,Other Children's and Family Services,Permanancy and Adoption Support Team 2,Services - Professional Fees - Translation Fees,01/04/2022,5637840,336.00,Oncall Interpreters LTD
Children & Culture,Children's Social Care,Children Looked After,LCS/Allowances-Accom,Leaving Care Financial Assistance - Supp Accom/Hous Rents,01/04/2022,5636865,347.10,HAMLETTS LTD
Children & Culture,Children's Social Care,Support Service and Management Costs,Schools Catering,Kitchen Supplies - Food and Beverages,01/04/2022,5637954,361.00,Thomas Ridley & Son Ltd
Children & Culture,Children's Social Care,Youth Justice,Youth Justice Team,Other Contributions - Other Agencies,01/04/2022,5648103,365.00,Utilize PLC
Children & Culture,Children's Social Care,Youth Justice,Youth Justice Team,Other Contributions - Other Agencies,01/04/2022,5648104,365.00,Utilize PLC
Children & Culture,Children's Social Care,Youth Justice,Youth Justice Team,Other Contributions - Other Agencies,01/04/2022,5648105,365.00,Utilize PLC
Children & Culture,Children's Social Care,Support Service and Management Costs,Schools Catering,Kitchen Supplies - Food and Beverages,01/04/2022,5639609,440.01,William White Meats Ltd
Children & Culture,Children's Social Care,Children Looked After,Leaving Care-UASC,Leaving Care Financial Assistance - Supp Accom/Hous Rents,01/04/2022,5626233,485.94,HAMLETTS LTD
Children & Culture,Children's Social Care,Children Looked After,Virtual School PPG,Education & Training - Non Staff Tuition Fees,01/04/2022,5642723,500.00,Anchor Teaching Ltd
Children & Culture,Children's Social Care,Children Looked After,Virtual School PPG,Education & Training - Non Staff Tuition Fees,01/04/2022,5642724,500.00,Anchor Teaching Ltd
Children & Culture,Children's Social Care,Children Looked After,Virtual School PPG,Education & Training - Non Staff Tuition Fees,01/04/2022,5646104,500.00,Anchor Teaching Ltd
Children & Culture,Children's Social Care,Children Looked After,Virtual School PPG,Education & Training - Non Staff Tuition Fees,01/04/2022,5646107,500.00,Anchor Teaching Ltd
Children & Culture,Children's Social Care,Support Service and Management Costs,Schools Catering,Kitchen Supplies - Food and Beverages,01/04/2022,5637956,511.15,Thomas Ridley & Son Ltd
Children & Culture,Children's Social Care,Family Support Services,CNN Pool: Children Direct Paym,Social Care - Direct Payments,01/04/2022,5645834,517.50,DH TOWER HAMLETS
Children & Culture,Children's Social Care,Service Strategy,Assessed and Supported in Employment Programme,Training Expenses - Staff External Training (UK Based),01/04/2022,5640458,525.00,Royal Holloway University of London
Children & Culture,Children's Social Care,Family Support Services,CNN Pool: Children Direct Paym,Social Care - Direct Payments,01/04/2022,5645761,548.40,DH TOWER HAMLETS
Children & Culture,Children's Social Care,Support Service and Management Costs,Schools Catering,Kitchen Supplies - Food and Beverages,01/04/2022,5637957,560.53,Thomas Ridley & Son Ltd
Children & Culture,Children's Social Care,Children Looked After,Leaving Care-UASC,Leaving Care Financial Assistance - Supp Accom/Hous Rents,01/04/2022,5629681,590.07,HAMLETTS LTD
Children & Culture,Children's Social Care,Support Service and Management Costs,Swanlea,Kitchen Supplies - Food and Beverages,01/04/2022,5637847,603.64,Tiffin Sandwiches
Children & Culture,Children's Social Care,Children's and Young People's Safety,Child Protection Mgt & Admin,Education & Training - Non Staff Tuition Fees,01/04/2022,5642046,607.50,Family Rights Group
Children & Culture,Children's Social Care,Children Looked After,Virtual School PPG,Education & Training - Non Staff Tuition Fees,01/04/2022,5642309,645.00,Anchor Teaching Ltd
Children & Culture,Children's Social Care,Children Looked After,Virtual School PPG,Education & Training - Non Staff Tuition Fees,01/04/2022,5642310,645.00,Anchor Teaching Ltd
Children & Culture,Children's Social Care,Children Looked After,Virtual School PPG,Education & Training - Non Staff Tuition Fees,01/04/2022,5642311,645.00,Anchor Teaching Ltd
Children & Culture,Children's Social Care,Children Looked After,Virtual School PPG,Education & Training - Non Staff Tuition Fees,01/04/2022,5642313,645.00,Anchor Teaching Ltd
Children & Culture,Children's Social Care,Children Looked After,Virtual School PPG,Education & Training - Non Staff Tuition Fees,01/04/2022,5642314,645.00,Anchor Teaching Ltd
Children & Culture,Children's Social Care,Children Looked After,Virtual School PPG,Education & Training - Non Staff Tuition Fees,01/04/2022,5642315,645.00,Anchor Teaching Ltd
Children & Culture,Children's Social Care,Children Looked After,Virtual School PPG,Education & Training - Non Staff Tuition Fees,01/04/2022,5642725,645.00,Anchor Teaching Ltd
Children & Culture,Children's Social Care,Family Support Services,CNN Pool: Children Direct Paym,Social Care - Direct Payments,01/04/2022,5645739,674.60,DH TOWER HAMLETS
Children & Culture,Children's Social Care,Family Support Services,CNN Pool: Children Direct Paym,Social Care - Direct Payments,01/04/2022,5645744,674.60,DH TOWER HAMLETS
Children & Culture,Children's Social Care,Family Support Services,CNN Pool: Children Direct Paym,Social Care - Direct Payments,01/04/2022,5645746,674.60,DH TOWER HAMLETS
Children & Culture,Children's Social Care,Family Support Services,CNN Pool: Children Direct Paym,Social Care - Direct Payments,01/04/2022,5645747,674.60,DH TOWER HAMLETS
Children & Culture,Children's Social Care,Family Support Services,CNN Pool: Children Direct Paym,Social Care - Direct Payments,01/04/2022,5645748,674.60,DH TOWER HAMLETS
Children & Culture,Children's Social Care,Family Support Services,CNN Pool: Children Direct Paym,Social Care - Direct Payments,01/04/2022,5645767,674.60,DH TOWER HAMLETS
Children & Culture,Children's Social Care,Family Support Services,CNN Pool: Children Direct Paym,Social Care - Direct Payments,01/04/2022,5645768,674.60,DH TOWER HAMLETS
Children & Culture,Children's Social Care,Family Support Services,CNN Pool: Children Direct Paym,Social Care - Direct Payments,01/04/2022,5645770,674.60,DH TOWER HAMLETS
Children & Culture,Children's Social Care,Family Support Services,CNN Pool: Children Direct Paym,Social Care - Direct Payments,01/04/2022,5645771,674.60,DH TOWER HAMLETS
Children & Culture,Children's Social Care,Family Support Services,CNN Pool: Children Direct Paym,Social Care - Direct Payments,01/04/2022,5645773,674.60,DH TOWER HAMLETS
Children & Culture,Children's Social Care,Family Support Services,CNN Pool: Children Direct Paym,Social Care - Direct Payments,01/04/2022,5645774,674.60,DH TOWER HAMLETS
Children & Culture,Children's Social Care,Family Support Services,CNN Pool: Children Direct Paym,Social Care - Direct Payments,01/04/2022,5645775,674.60,DH TOWER HAMLETS
Children & Culture,Children's Social Care,Family Support Services,CNN Pool: Children Direct Paym,Social Care - Direct Payments,01/04/2022,5645778,674.60,DH TOWER HAMLETS
Children & Culture,Children's Social Care,Family Support Services,CNN Pool: Children Direct Paym,Social Care - Direct Payments,01/04/2022,5645787,674.60,DH TOWER HAMLETS
Children & Culture,Children's Social Care,Family Support Services,CNN Pool: Children Direct Paym,Social Care - Direct Payments,01/04/2022,5645790,674.60,DH TOWER HAMLETS
Children & Culture,Children's Social Care,Family Support Services,CNN Pool: Children Direct Paym,Social Care - Direct Payments,01/04/2022,5645793,674.60,DH TOWER HAMLETS
Children & Culture,Children's Social Care,Family Support Services,CNN Pool: Children Direct Paym,Social Care - Direct Payments,01/04/2022,5645794,674.60,DH TOWER HAMLETS
Children & Culture,Children's Social Care,Family Support Services,CNN Pool: Children Direct Paym,Social Care - Direct Payments,01/04/2022,5645795,674.60,DH TOWER HAMLETS
Children & Culture,Children's Social Care,Family Support Services,CNN Pool: Children Direct Paym,Social Care - Direct Payments,01/04/2022,5645797,674.60,DH TOWER HAMLETS
Children & Culture,Children's Social Care,Family Support Services,CNN Pool: Children Direct Paym,Social Care - Direct Payments,01/04/2022,5645800,674.60,DH TOWER HAMLETS
Children & Culture,Children's Social Care,Family Support Services,CNN Pool: Children Direct Paym,Social Care - Direct Payments,01/04/2022,5645803,674.60,DH TOWER HAMLETS
Children & Culture,Children's Social Care,Family Support Services,CNN Pool: Children Direct Paym,Social Care - Direct Payments,01/04/2022,5645804,674.60,DH TOWER HAMLETS
Children & Culture,Children's Social Care,Family Support Services,CNN Pool: Children Direct Paym,Social Care - Direct Payments,01/04/2022,5645805,674.60,DH TOWER HAMLETS
Children & Culture,Children's Social Care,Family Support Services,CNN Pool: Children Direct Paym,Social Care - Direct Payments,01/04/2022,5645806,674.60,DH TOWER HAMLETS
Children & Culture,Children's Social Care,Family Support Services,CNN Pool: Children Direct Paym,Social Care - Direct Payments,01/04/2022,5645808,674.60,DH TOWER HAMLETS
Children & Culture,Children's Social Care,Family Support Services,CNN Pool: Children Direct Paym,Social Care - Direct Payments,01/04/2022,5645811,674.60,DH TOWER HAMLETS
Children & Culture,Children's Social Care,Family Support Services,CNN Pool: Children Direct Paym,Social Care - Direct Payments,01/04/2022,5645812,674.60,DH TOWER HAMLETS
Children & Culture,Children's Social Care,Family Support Services,CNN Pool: Children Direct Paym,Social Care - Direct Payments,01/04/2022,5645813,674.60,DH TOWER HAMLETS
Children & Culture,Children's Social Care,Family Support Services,CNN Pool: Children Direct Paym,Social Care - Direct Payments,01/04/2022,5645814,674.60,DH TOWER HAMLETS
Children & Culture,Children's Social Care,Family Support Services,CNN Pool: Children Direct Paym,Social Care - Direct Payments,01/04/2022,5645815,674.60,DH TOWER HAMLETS
Children & Culture,Children's Social Care,Family Support Services,CNN Pool: Children Direct Paym,Social Care - Direct Payments,01/04/2022,5645816,674.60,DH TOWER HAMLETS
Children & Culture,Children's Social Care,Family Support Services,CNN Pool: Children Direct Paym,Social Care - Direct Payments,01/04/2022,5645817,674.60,DH TOWER HAMLETS
Children & Culture,Children's Social Care,Family Support Services,CNN Pool: Children Direct Paym,Social Care - Direct Payments,01/04/2022,5645819,674.60,DH TOWER HAMLETS
Children & Culture,Children's Social Care,Family Support Services,CNN Pool: Children Direct Paym,Social Care - Direct Payments,01/04/2022,5645822,674.60,DH TOWER HAMLETS
Children & Culture,Children's Social Care,Family Support Services,CNN Pool: Children Direct Paym,Social Care - Direct Payments,01/04/2022,5645823,674.60,DH TOWER HAMLETS
Children & Culture,Children's Social Care,Family Support Services,CNN Pool: Children Direct Paym,Social Care - Direct Payments,01/04/2022,5645824,674.60,DH TOWER HAMLETS
Children & Culture,Children's Social Care,Family Support Services,CNN Pool: Children Direct Paym,Social Care - Direct Payments,01/04/2022,5645826,674.60,DH TOWER HAMLETS
Children & Culture,Children's Social Care,Family Support Services,CNN Pool: Children Direct Paym,Social Care - Direct Payments,01/04/2022,5645827,674.60,DH TOWER HAMLETS
Children & Culture,Children's Social Care,Family Support Services,CNN Pool: Children Direct Paym,Social Care - Direct Payments,01/04/2022,5645828,674.60,DH TOWER HAMLETS
Children & Culture,Children's Social Care,Family Support Services,CNN Pool: Children Direct Paym,Social Care - Direct Payments,01/04/2022,5645832,674.60,DH TOWER HAMLETS
Children & Culture,Children's Social Care,Family Support Services,CNN Pool: Children Direct Paym,Social Care - Direct Payments,01/04/2022,5645833,674.60,DH TOWER HAMLETS
Children & Culture,Children's Social Care,Family Support Services,CNN Pool: Children Direct Paym,Social Care - Direct Payments,01/04/2022,5645835,674.60,DH TOWER HAMLETS
Children & Culture,Children's Social Care,Family Support Services,CNN Pool: Children Direct Paym,Social Care - Direct Payments,01/04/2022,5645836,674.60,DH TOWER HAMLETS
Children & Culture,Children's Social Care,Family Support Services,CNN Pool: Children Direct Paym,Social Care - Direct Payments,01/04/2022,5645839,674.60,DH TOWER HAMLETS
Children & Culture,Children's Social Care,Family Support Services,CNN Pool: Children Direct Paym,Social Care - Direct Payments,01/04/2022,5645840,674.60,DH TOWER HAMLETS
Children & Culture,Children's Social Care,Family Support Services,CNN Pool: Children Direct Paym,Social Care - Direct Payments,01/04/2022,5645841,674.60,DH TOWER HAMLETS
Children & Culture,Children's Social Care,Family Support Services,CNN Pool: Children Direct Paym,Social Care - Direct Payments,01/04/2022,5645842,674.60,DH TOWER HAMLETS
Children & Culture,Children's Social Care,Family Support Services,CNN Pool: Children Direct Paym,Social Care - Direct Payments,01/04/2022,5645844,674.60,DH TOWER HAMLETS
Children & Culture,Children's Social Care,Family Support Services,CNN Pool: Children Direct Paym,Social Care - Direct Payments,01/04/2022,5645845,674.60,DH TOWER HAMLETS
Children & Culture,Children's Social Care,Children Looked After,Virtual School PPG,Third Party Payments - Payments to Schools,01/04/2022,5637861,700.00,Warren Junior School
Children & Culture,Children's Social Care,Support Service and Management Costs,Swanlea,Kitchen Supplies - Food and Beverages,01/04/2022,5637955,749.08,Thomas Ridley & Son Ltd
Children & Culture,Children's Social Care,Support Service and Management Costs,Schools Catering,Repairs and Maintenance - Responsive - Repair & Maintenance,01/04/2022,5637880,790.00,J.Scott & Sons Ltd
Children & Culture,Children's Social Care,Family Support Services,CNN Pool: Children Direct Paym,Social Care - Direct Payments,01/04/2022,5645820,818.60,DH TOWER HAMLETS
Children & Culture,Children's Social Care,Children Looked After,Leaving Care-UASC,Leaving Care Financial Assistance - Supp Accom/Hous Rents,01/04/2022,5629676,859.88,HAMLETTS LTD
Children & Culture,Children's Social Care,Family Support Services,CNN Pool: Children Direct Paym,Social Care - Direct Payments,01/04/2022,5645769,890.60,DH TOWER HAMLETS
Children & Culture,Children's Social Care,Family Support Services,CNN Pool: Children Direct Paym,Social Care - Direct Payments,01/04/2022,5645777,890.60,DH TOWER HAMLETS
Children & Culture,Children's Social Care,Family Support Services,CNN Pool: Children Direct Paym,Social Care - Direct Payments,01/04/2022,5645784,890.60,D D PAYROLL SERVICES
Children & Culture,Children's Social Care,Family Support Services,CNN Pool: Children Direct Paym,Social Care - Direct Payments,01/04/2022,5645791,890.60,DH TOWER HAMLETS
Children & Culture,Children's Social Care,Family Support Services,CNN Pool: Children Direct Paym,Social Care - Direct Payments,01/04/2022,5645809,890.60,DH TOWER HAMLETS
Children & Culture,Children's Social Care,Family Support Services,CNN Pool: Children Direct Paym,Social Care - Direct Payments,01/04/2022,5645838,890.60,DH TOWER HAMLETS
Children & Culture,Children's Social Care,Family Support Services,CNN Pool: Children Direct Paym,Social Care - Direct Payments,01/04/2022,5648129,890.60,DH TOWER HAMLETS
Children & Culture,Children's Social Care,Family Support Services,CNN Pool: Children Direct Paym,Social Care - Direct Payments,01/04/2022,5645741,899.42,DH TOWER HAMLETS
Children & Culture,Children's Social Care,Family Support Services,CNN Pool: Children Direct Paym,Social Care - Direct Payments,01/04/2022,5645785,899.42,D D PAYROLL SERVICES
Children & Culture,Children's Social Care,Family Support Services,CNN Pool: Children Direct Paym,Social Care - Direct Payments,01/04/2022,5645758,899.46,DH TOWER HAMLETS
Children & Culture,Children's Social Care,Family Support Services,CNN Pool: Children Direct Paym,Social Care - Direct Payments,01/04/2022,5645765,899.46,D D PAYROLL SERVICES
Children & Culture,Children's Social Care,Family Support Services,CNN Pool: Children Direct Paym,Social Care - Direct Payments,01/04/2022,5645831,899.46,DH TOWER HAMLETS
Children & Culture,Education Services,Other Strategic Functions,Governors Services,Training Expenses - Staff External Training (UK Based),01/04/2022,5648036,900.00,SANDRA CONNINGTON LTD
Children & Culture,Children's Social Care,Support Service and Management Costs,Schools Catering,Kitchen Supplies - Food and Beverages,01/04/2022,5637952,942.18,Thomas Ridley & Son Ltd
Children & Culture,Children's Social Care,Children Looked After,Leaving Care-UASC,Leaving Care Financial Assistance - Supp Accom/Hous Rents,01/04/2022,5629678,952.01,HAMLETTS LTD
Children & Culture,Children's Social Care,Children Looked After,Leaving Care-UASC,Leaving Care Financial Assistance - Supp Accom/Hous Rents,01/04/2022,5629680,952.01,HAMLETTS LTD
Children & Culture,Children's Social Care,Children's and Young People's Safety,Early Help Central Team,Services - Professional Fees - Translation Fees,01/04/2022,5637842,953.45,Oncall Interpreters LTD
Children & Culture,Children's Social Care,Children Looked After,Leaving Care-UASC,Leaving Care Financial Assistance - Supp Accom/Hous Rents,01/04/2022,5636863,971.88,HAMLETTS LTD
Children & Culture,Children's Social Care,Children Looked After,Leaving Care-UASC,Leaving Care Financial Assistance - Supp Accom/Hous Rents,01/04/2022,5636867,971.88,HAMLETTS LTD
Children & Culture,Children's Social Care,Children Looked After,Leaving Care-UASC,Leaving Care Financial Assistance - Supp Accom/Hous Rents,01/04/2022,5636869,971.88,HAMLETTS LTD
Children & Culture,Children's Social Care,Children Looked After,Leaving Care-UASC,Leaving Care Financial Assistance - Supp Accom/Hous Rents,01/04/2022,5636870,971.88,HAMLETTS LTD
Children & Culture,Children's Social Care,Children Looked After,Leaving Care-UASC,Leaving Care Financial Assistance - Supp Accom/Hous Rents,01/04/2022,5636871,971.88,HAMLETTS LTD
Children & Culture,Children's Social Care,Children Looked After,Leaving Care-UASC,Leaving Care Financial Assistance - Supp Accom/Hous Rents,01/04/2022,5636875,971.88,HAMLETTS LTD
Children & Culture,Children's Social Care,Children Looked After,Leaving Care-UASC,Leaving Care Financial Assistance - Supp Accom/Hous Rents,01/04/2022,5636880,971.88,HAMLETTS LTD
Children & Culture,Children's Social Care,Children Looked After,Leaving Care-UASC,Leaving Care Financial Assistance - Supp Accom/Hous Rents,01/04/2022,5636881,971.88,HAMLETTS LTD
Children & Culture,Children's Social Care,Children Looked After,Leaving Care-UASC,Leaving Care Financial Assistance - Supp Accom/Hous Rents,01/04/2022,5636884,971.88,HAMLETTS LTD
Children & Culture,Children's Social Care,Children Looked After,Leaving Care-UASC,Leaving Care Financial Assistance - Supp Accom/Hous Rents,01/04/2022,5636885,971.88,HAMLETTS LTD
Children & Culture,Children's Social Care,Children Looked After,Leaving Care-UASC,Leaving Care Financial Assistance - Supp Accom/Hous Rents,01/04/2022,5636886,971.88,HAMLETTS LTD
Children & Culture,Children's Social Care,Children Looked After,LCS/Allowances-Accom,Leaving Care Financial Assistance - Supp Accom/Hous Rents,01/04/2022,5636876,971.88,HAMLETTS LTD
Children & Culture,Children's Social Care,Children Looked After,Leaving Care-UASC,Leaving Care Financial Assistance - Supp Accom/Hous Rents,01/04/2022,5636874,976.08,HAMLETTS LTD
Children & Culture,Children's Social Care,Youth Justice,Youth Justice Team,Third Party Payments - Other Agencies,01/04/2022,5619003,988.00,Appropriate Adults UK
Children & Culture,Education Services,Other Strategic Functions,Schools Library,Services - Professional Fees - Design Fees,01/04/2022,5637755,"1,015.96",Genesis Cinema
Children & Culture,Children's Social Care,Children Looked After,Leaving Care-UASC,Leaving Care Financial Assistance - Supp Accom/Hous Rents,01/04/2022,5626222,"1,031.99",HAMLETTS LTD
Children & Culture,Children's Social Care,Children Looked After,Leaving Care-UASC,Leaving Care Financial Assistance - Supp Accom/Hous Rents,01/04/2022,5626231,"1,031.99",HAMLETTS LTD
Children & Culture,Children's Social Care,Children Looked After,Leaving Care-UASC,Leaving Care Financial Assistance - Supp Accom/Hous Rents,01/04/2022,5626232,"1,031.99",HAMLETTS LTD
Children & Culture,Children's Social Care,Children Looked After,LCS/Allowances-Accom,Leaving Care Financial Assistance - Supp Accom/Hous Rents,01/04/2022,5626221,"1,031.99",HAMLETTS LTD
Children & Culture,Children's Social Care,Children Looked After,Leaving Care-UASC,Leaving Care Financial Assistance - Supp Accom/Hous Rents,01/04/2022,5625305,"1,076.01",HAMLETTS LTD
Children & Culture,Children's Social Care,Children Looked After,Leaving Care-UASC,Leaving Care Financial Assistance - Supp Accom/Hous Rents,01/04/2022,5625307,"1,076.01",HAMLETTS LTD
Children & Culture,Children's Social Care,Children Looked After,Leaving Care-UASC,Leaving Care Financial Assistance - Supp Accom/Hous Rents,01/04/2022,5625309,"1,076.01",HAMLETTS LTD
Children & Culture,Children's Social Care,Children Looked After,Leaving Care-UASC,Leaving Care Financial Assistance - Supp Accom/Hous Rents,01/04/2022,5625311,"1,076.01",HAMLETTS LTD
Children & Culture,Children's Social Care,Children Looked After,Leaving Care-UASC,Leaving Care Financial Assistance - Supp Accom/Hous Rents,01/04/2022,5625312,"1,076.01",HAMLETTS LTD
Children & Culture,Children's Social Care,Children Looked After,Leaving Care-UASC,Leaving Care Financial Assistance - Supp Accom/Hous Rents,01/04/2022,5625316,"1,076.01",HAMLETTS LTD
Children & Culture,Children's Social Care,Children Looked After,Leaving Care-UASC,Leaving Care Financial Assistance - Supp Accom/Hous Rents,01/04/2022,5626209,"1,076.01",HAMLETTS LTD
Children & Culture,Children's Social Care,Children Looked After,Leaving Care-UASC,Leaving Care Financial Assistance - Supp Accom/Hous Rents,01/04/2022,5626210,"1,076.01",HAMLETTS LTD
Children & Culture,Children's Social Care,Children Looked After,Leaving Care-UASC,Leaving Care Financial Assistance - Supp Accom/Hous Rents,01/04/2022,5626211,"1,076.01",HAMLETTS LTD
Children & Culture,Children's Social Care,Children Looked After,Leaving Care-UASC,Leaving Care Financial Assistance - Supp Accom/Hous Rents,01/04/2022,5626212,"1,076.01",HAMLETTS LTD
Children & Culture,Children's Social Care,Children Looked After,Leaving Care-UASC,Leaving Care Financial Assistance - Supp Accom/Hous Rents,01/04/2022,5626213,"1,076.01",HAMLETTS LTD
Children & Culture,Children's Social Care,Children Looked After,Leaving Care-UASC,Leaving Care Financial Assistance - Supp Accom/Hous Rents,01/04/2022,5626214,"1,076.01",HAMLETTS LTD
Children & Culture,Children's Social Care,Children Looked After,Leaving Care-UASC,Leaving Care Financial Assistance - Supp Accom/Hous Rents,01/04/2022,5626216,"1,076.01",HAMLETTS LTD
Children & Culture,Children's Social Care,Children Looked After,Leaving Care-UASC,Leaving Care Financial Assistance - Supp Accom/Hous Rents,01/04/2022,5626219,"1,076.01",HAMLETTS LTD
Children & Culture,Children's Social Care,Children Looked After,Leaving Care-UASC,Leaving Care Financial Assistance - Supp Accom/Hous Rents,01/04/2022,5626220,"1,076.01",HAMLETTS LTD
Children & Culture,Children's Social Care,Children Looked After,Leaving Care-UASC,Leaving Care Financial Assistance - Supp Accom/Hous Rents,01/04/2022,5626224,"1,076.01",HAMLETTS LTD
Children & Culture,Children's Social Care,Children Looked After,Leaving Care-UASC,Leaving Care Financial Assistance - Supp Accom/Hous Rents,01/04/2022,5626227,"1,076.01",HAMLETTS LTD
Children & Culture,Children's Social Care,Children Looked After,Leaving Care-UASC,Leaving Care Financial Assistance - Supp Accom/Hous Rents,01/04/2022,5626228,"1,076.01",HAMLETTS LTD
Children & Culture,Children's Social Care,Children Looked After,Leaving Care-UASC,Leaving Care Financial Assistance - Supp Accom/Hous Rents,01/04/2022,5626230,"1,076.01",HAMLETTS LTD
Children & Culture,Children's Social Care,Children Looked After,Leaving Care-UASC,Leaving Care Financial Assistance - Supp Accom/Hous Rents,01/04/2022,5629677,"1,076.01",HAMLETTS LTD
Children & Culture,Children's Social Care,Children Looked After,Leaving Care-UASC,Leaving Care Financial Assistance - Supp Accom/Hous Rents,01/04/2022,5629679,"1,076.01",HAMLETTS LTD
Children & Culture,Children's Social Care,Children Looked After,Leaving Care-UASC,Leaving Care Financial Assistance - Supp Accom/Hous Rents,01/04/2022,5625315,"1,080.66",HAMLETTS LTD
Children & Culture,Children's Social Care,Family Support Services,CNN Pool: Children Direct Paym,Social Care - Direct Payments,01/04/2022,5645737,"1,113.00",DH TOWER HAMLETS
Children & Culture,Children's Social Care,Family Support Services,CNN Pool: Children Direct Paym,Social Care - Direct Payments,01/04/2022,5645810,"1,115.42",DH TOWER HAMLETS
Children & Culture,Children's Social Care,Service Strategy,North East London Teaching Partnership,Training Expenses - Staff External Training (UK Based),01/04/2022,5641768,"1,120.00",Royal Holloway University of London
Children & Culture,Children's Social Care,Family Support Services,CNN Pool: Children Direct Paym,Social Care - Direct Payments,01/04/2022,5645764,"1,124.33",DH TOWER HAMLETS
Children & Culture,Children's Social Care,Children Looked After,Virtual School PPG,Education & Training - Non Staff Tuition Fees,01/04/2022,5642312,"1,200.00",Anchor Teaching Ltd
Children & Culture,Children's Social Care,Children Looked After,S23 Fam Pl P&V-F/Care,Childrens Act Section 23 - Placement Fee,01/04/2022,5648016,"1,214.29",Family Works Fostering
Children & Culture,Children's Social Care,Support Service and Management Costs,Schools Catering,Repairs and Maintenance - Responsive - Repair & Maintenance,01/04/2022,5637887,"1,286.55",J.Scott & Sons Ltd
Children & Culture,Cultural and Related Services,Open Spaces,Parks & Open Spaces Man&Admin,Contract Cleaning,01/04/2022,5648136,"1,293.52",Wetton Cleaning Services LTD
Children & Culture,Children's Social Care,Support Service and Management Costs,Sch. Meals A/c - Central Production Unit,Kitchen Supplies - Food and Beverages,01/04/2022,5639613,"1,318.53",William White Meats Ltd
Children & Culture,Children's Social Care,Children Looked After,Virtual School PPG,Education & Training - Non Staff Tuition Fees,01/04/2022,5642307,"1,345.00",Anchor Teaching Ltd
Children & Culture,Children's Social Care,Children Looked After,Virtual School PPG,Education & Training - Non Staff Tuition Fees,01/04/2022,5642308,"1,345.00",Anchor Teaching Ltd
Children & Culture,Children's Social Care,Children Looked After,Virtual School PPG,Education & Training - Non Staff Tuition Fees,01/04/2022,5646105,"1,345.00",Anchor Teaching Ltd
Children & Culture,Children's Social Care,Family Support Services,CNN Pool: Children Direct Paym,Social Care - Direct Payments,01/04/2022,5645825,"1,349.20",DH TOWER HAMLETS
Children & Culture,Children's Social Care,Family Support Services,CNN Pool: Children Direct Paym,Social Care - Direct Payments,01/04/2022,5645829,"1,349.20",DH TOWER HAMLETS
Children & Culture,Children's Social Care,Family Support Services,CNN Pool: Children Direct Paym,Social Care - Direct Payments,01/04/2022,5645830,"1,349.20",DH TOWER HAMLETS
Children & Culture,Cultural and Related Services,Open Spaces,Parks & Open Spaces Man&Admin,Contract Cleaning,01/04/2022,5648135,"1,374.35",Wetton Cleaning Services LTD
Children & Culture,Children's Social Care,Family Support Services,CNN Pool: Children Direct Paym,Social Care - Direct Payments,01/04/2022,5645781,"1,381.79",DH TOWER HAMLETS
Children & Culture,Children's Social Care,Youth Justice,Youth Justice Team,Third Party Payments - Other Agencies,01/04/2022,5630402,"1,415.50",Appropriate Adults UK
Children & Culture,Education Services,Early Years,Ocean CC,Repairs and Maintenance - Responsive - Security,01/04/2022,5642784,"1,476.00",surelock security systems ltd
Children & Culture,Children's Social Care,Children Looked After,LCS/Allowances-Accom,Leaving Care Financial Assistance - Supp Accom/Hous Rents,01/04/2022,5638367,"1,480.00",Deluxe Supported Living Services Ltd
Children & Culture,Children's Social Care,Service Strategy,FSP Sect 17 - Team 1,Childrens Act Section 17 - Interpreting/Translation,01/04/2022,5646123,"1,551.45",Oncall Interpreters LTD
Children & Culture,Children's Social Care,Children Looked After,LCS/Allowances-Accom,Leaving Care Financial Assistance - Supported Living,01/04/2022,5627720,"1,573.00",Deluxe Supported Living Services Ltd
Children & Culture,Children's Social Care,Family Support Services,CNN Pool: Children Direct Paym,Social Care - Direct Payments,01/04/2022,5645798,"1,590.00",DH TOWER HAMLETS
Children & Culture,Children's Social Care,Support Service and Management Costs,Sch. Meals A/c - Central Production Unit,Kitchen Supplies - Food and Beverages,01/04/2022,5639630,"1,596.15",William White Meats Ltd
Children & Culture,Children's Social Care,Children Looked After,LCS/Allowances-Accom,Leaving Care Financial Assistance - Supp Accom/Hous Rents,01/04/2022,5635968,"1,599.92",HAMLETTS LTD
Children & Culture,Children's Social Care,Family Support Services,CNN Pool: Children Direct Paym,Social Care - Direct Payments,01/04/2022,5645788,"1,656.00",DH TOWER HAMLETS
Children & Culture,Children's Social Care,Family Support Services,CNN Pool: Children Direct Paym,Social Care - Direct Payments,01/04/2022,5645818,"1,656.00",DH TOWER HAMLETS
Children & Culture,Children's Social Care,Family Support Services,CNN Pool: Children Direct Paym,Social Care - Direct Payments,01/04/2022,5645782,"1,709.00",DH TOWER HAMLETS
Children & Culture,Children's Social Care,Children Looked After,LCS/Allowances-Accom,Leaving Care Financial Assistance - Supp Accom/Hous Rents,01/04/2022,5626253,"1,771.34",HAMLETTS LTD
Children & Culture,Children's Social Care,Service Strategy,Assessed and Supported in Employment Programme,Training Expenses - Staff External Training (UK Based),01/04/2022,5646075,"1,790.00",Royal Holloway University of London
Children & Culture,Children's Social Care,Support Service and Management Costs,Swanlea,Kitchen Supplies - Food and Beverages,01/04/2022,5639628,"1,794.66",William White Meats Ltd
Children & Culture,Education Services,Other Strategic Functions,Attendance & Welfare Trading Account,Training Expenses - Staff External Training (UK Based),01/04/2022,5642300,"1,800.00",Team-Teach
Children & Culture,Children's Social Care,Family Support Services,CNN Pool: Children Direct Paym,Social Care - Direct Payments,01/04/2022,5645792,"1,883.66",DH TOWER HAMLETS
Children & Culture,Children's Social Care,Children Looked After,S23 Fam Pl In-Hse-S/Term F/C,Childrens Act Section 23 - Non-Contact Taxi Costs,01/04/2022,5639143,"1,930.00",Healthcare and Transport Services Group Ltd
Children & Culture,Children's Social Care,Service Strategy,FSP Sect 17 - Team 1,Childrens Act Section 17 - Interpreting/Translation,01/04/2022,5642735,"1,993.00",Oncall Interpreters LTD
Children & Culture,Children's Social Care,Family Support Services,CNN Pool: Children Direct Paym,Social Care - Direct Payments,01/04/2022,5645807,"2,023.79",DH TOWER HAMLETS
Children & Culture,Children's Social Care,Children Looked After,LCS/Allowances-Accom,Leaving Care Financial Assistance - Supp Accom/Hous Rents,01/04/2022,5626215,"2,103.66",HAMLETTS LTD
Children & Culture,Children's Social Care,Service Strategy,North East London Teaching Partnership,Training Expenses - Staff External Training (UK Based),01/04/2022,5640456,"2,170.00",Royal Holloway University of London
Children & Culture,Children's Social Care,Family Support Services,CNN Pool: Children Direct Paym,Social Care - Direct Payments,01/04/2022,5645843,"2,248.54",DH TOWER HAMLETS
Children & Culture,Children's Social Care,Service Strategy,"FSP Sect 17 - Team 6		",Services - Professional Fees - Translation Fees,01/04/2022,5637830,"2,355.50",Oncall Interpreters LTD
Children & Culture,Children's Social Care,Family Support Services,CNN Pool: Children Direct Paym,Social Care - Direct Payments,01/04/2022,5645749,"2,385.41",DH TOWER HAMLETS
Children & Culture,Children's Social Care,Service Strategy,FSP Sect 17 - Team 1,Childrens Act Section 17 - Interpreting/Translation,01/04/2022,5637828,"2,459.45",Oncall Interpreters LTD
Children & Culture,Children's Social Care,Children Looked After,Virtual School PPG,Education & Training - Non Staff Tuition Fees,01/04/2022,5647989,"2,512.00",Learn Solutions ltd trading as TLC LIVE
Children & Culture,Children's Social Care,Family Support Services,CNN Pool: Children Direct Paym,Social Care - Direct Payments,01/04/2022,5645772,"2,626.70",DH TOWER HAMLETS
Children & Culture,Children's Social Care,Children Looked After,S23-Other-Semi-Ind. Unit,Services - Professional Fees - Translation Fees,01/04/2022,5637835,"2,645.45",Oncall Interpreters LTD
Children & Culture,Children's Social Care,Family Support Services,CNN Pool: Children Direct Paym,Social Care - Direct Payments,01/04/2022,5645763,"2,686.60",DH TOWER HAMLETS
Children & Culture,Children's Social Care,Service Strategy,Child Care M & A,Services - Professional Fees - Legal Fees/Expenses,01/04/2022,5648466,"2,758.59",Coram Voice
Children & Culture,Children's Social Care,Family Support Services,CNN Pool: Children Direct Paym,Social Care - Direct Payments,01/04/2022,5645837,"2,833.54",DH TOWER HAMLETS
Children & Culture,Children's Social Care,Children Looked After,LCS/Allowances-Accom,Leaving Care Financial Assistance - Supported Living,01/04/2022,5638367,"2,920.00",Deluxe Supported Living Services Ltd
Children & Culture,Children's Social Care,Family Support Services,CNN Pool: Children Direct Paym,Social Care - Direct Payments,01/04/2022,5645799,"3,039.00",DH TOWER HAMLETS
Children & Culture,Children's Social Care,Service Strategy,Child Care M & A,Services - Professional Fees - Legal Fees/Expenses,01/04/2022,5648468,"3,053.63",Coram Voice
Children & Culture,Children's Social Care,Family Support Services,CNN Pool: Children Direct Paym,Social Care - Direct Payments,01/04/2022,5645735,"3,104.00",DH TOWER HAMLETS
Children & Culture,Children's Social Care,Children Looked After,Leaving Care-UASC,Leaving Care Financial Assistance - Supp Accom/Hous Rents,01/04/2022,5648496,"3,260.00",Inclusive Care Support Ltd
Children & Culture,Children's Social Care,Children Looked After,Leaving Care-UASC,Leaving Care Financial Assistance - Supp Accom/Hous Rents,01/04/2022,5648497,"3,260.00",Inclusive Care Support Ltd
Children & Culture,Children's Social Care,Children Looked After,LCS/Allowances-Accom,Leaving Care Financial Assistance - Supp Accom/Hous Rents,01/04/2022,5638404,"3,260.00",Serendipity Homes Ltd
Children & Culture,Children's Social Care,Children Looked After,S23-Other-Semi-Ind. Unit,Childrens Act Section 23 - Placement Fee,01/04/2022,5638368,"3,356.00",Deluxe Supported Living Services Ltd
Children & Culture,Children's Social Care,Children Looked After,S23-Other-Semi-Ind. Unit,Childrens Act Section 23 - Placement Fee,01/04/2022,5640584,"3,357.33",Serendipity Homes Ltd
Children & Culture,Children's Social Care,Family Support Services,CNN Pool: Children Direct Paym,Social Care - Direct Payments,01/04/2022,5645783,"3,372.99",DH TOWER HAMLETS
Children & Culture,Children's Social Care,Children Looked After,S23-Other-Semi-Ind. Unit,Childrens Act Section 23 - Placement Fee,01/04/2022,5638369,"3,416.00",Deluxe Supported Living Services Ltd
Children & Culture,Children's Social Care,Family Support Services,CNN Pool: Children Direct Paym,Social Care - Direct Payments,01/04/2022,5645762,"3,726.00",D D PAYROLL SERVICES
Children & Culture,Children's Social Care,Children Looked After,S23-Other-Semi-Ind. Unit,Childrens Act Section 23 - Placement Fee,01/04/2022,5638405,"4,036.00",Serendipity Homes Ltd
Children & Culture,Children's Social Care,Service Strategy,Child Care M & A,Services - Professional Fees - Legal Fees/Expenses,01/04/2022,5648467,"4,206.96",Coram Voice
Children & Culture,Children's Social Care,Service Strategy,Assessed and Supported in Employment Programme,Training Expenses - Staff External Training (UK Based),01/04/2022,5640459,"4,725.00",Royal Holloway University of London
Children & Culture,Children's Social Care,Family Support Services,CNN Pool: Children Direct Paym,Social Care - Direct Payments,01/04/2022,5645786,"4,989.56",DH TOWER HAMLETS
Children & Culture,Children's Social Care,Commissioning and Social Work,Advice and Assessment Section 17,Childrens Act Section 17 - Interpreting/Translation,01/04/2022,5637502,"5,065.10",Oncall Interpreters LTD
Children & Culture,Children's Social Care,Family Support Services,CNN Pool: Children Direct Paym,Social Care - Direct Payments,01/04/2022,5645776,"5,510.55",DH TOWER HAMLETS
Children & Culture,Children's Social Care,Children Looked After,S23-Resi-P&V/OLA-Boarding Sch,Childrens Act Section 23 - Placement Fee,01/04/2022,5648029,"15,209.68",LUDLOW STREET HEALTHCARE
Children & Culture,Children's Social Care,Children Looked After,S23-Resi-P&V/OLA-Boarding Sch,Childrens Act Section 23 - Placement Fee,01/04/2022,5648595,"15,773.00",LUDLOW STREET HEALTHCARE
Children & Culture,Children's Social Care,Family Support Services,CNN Pool: Children Direct Paym,Social Care - Direct Payments,01/04/2022,5645759,"16,622.10",DH TOWER HAMLETS
Children & Culture,Children's Social Care,Children Looked After,S23-Resi-P&V/OLA-Boarding Sch,Childrens Act Section 23 - Placement Fee,01/04/2022,5648030,"17,462.96",LUDLOW STREET HEALTHCARE
Children & Culture,Children's Social Care,Children Looked After,S23-Resi-P&V/OLA-Boarding Sch,Childrens Act Section 23 - Placement Fee,01/04/2022,5648031,"17,462.96",LUDLOW STREET HEALTHCARE
Children & Culture,Children's Social Care,Children Looked After,S23-Resi-P&V/OLA-Boarding Sch,Childrens Act Section 23 - Placement Fee,01/04/2022,5648033,"17,462.96",LUDLOW STREET HEALTHCARE
Children & Culture,Children's Social Care,Family Support Services,Short Breaks and Family Support,Third Party Payments - Voluntary Associations,01/04/2022,5647956,"18,285.00",Tower Project
Children & Culture,Children's Social Care,Family Support Services,CNN Pool: Children Direct Paym,Social Care - Direct Payments,01/04/2022,5645751,"19,854.37",DH TOWER HAMLETS
Children & Culture,Education Services,Other Strategic Functions,High Needs Other Boroughs,Third Party Payments - SEN Top Up Funding,01/04/2022,5648018,"27,900.00",Watergate School
Children & Culture,Children's Social Care,Children Looked After,S23-Resi-P&V/OLA-Sec Acc-Wel,Childrens Act Section 23 - Placement Fee,01/04/2022,5637868,"30,548.00",Durham County Council
Children & Culture,Children's Social Care,Family Support Services,CNN Pool: Children Direct Paym,Social Care - Direct Payments,01/04/2022,5645736,"53,126.22",DH TOWER HAMLETS
Children & Culture,No Service Specified,No Division Specified,Conditions and Improvements - Cap,Building Works - Main Works,04/04/2022,5639268,"-4,290.00",Frankham Consultancy Group LTD
Children & Culture,No Service Specified,No Division Specified,Conditions and Improvements - Cap,Building Works - Main Works,04/04/2022,5639269,-385.00,Frankham Consultancy Group LTD
Children & Culture,Children's Social Care,Support Service and Management Costs,Schools Catering,Kitchen Supplies - Food and Beverages,04/04/2022,5638016,251.42,Thomas Ridley & Son Ltd
Children & Culture,Children's Social Care,Support Service and Management Costs,Schools Catering,Kitchen Supplies - Food and Beverages,04/04/2022,5638535,255.31,Prescott-Thomas LTD.
Children & Culture,Children's Social Care,Support Service and Management Costs,Schools Catering,Kitchen Supplies - Food and Beverages,04/04/2022,5638496,260.15,Prescott-Thomas LTD.
Children & Culture,Children's Social Care,Support Service and Management Costs,Schools Catering,Kitchen Supplies - Food and Beverages,04/04/2022,5638542,264.62,Prescott-Thomas LTD.
Children & Culture,Children's Social Care,Support Service and Management Costs,Schools Catering,Kitchen Supplies - Food and Beverages,04/04/2022,5638543,264.66,Prescott-Thomas LTD.
Children & Culture,Children's Social Care,Support Service and Management Costs,Schools Catering,Kitchen Supplies - Food and Beverages,04/04/2022,5638501,266.90,Prescott-Thomas LTD.
Children & Culture,Children's Social Care,Support Service and Management Costs,Schools Catering,Kitchen Supplies - Food and Beverages,04/04/2022,5638466,268.30,Thomas Ridley & Son Ltd
Children & Culture,Children's Social Care,Support Service and Management Costs,Schools Catering,Kitchen Supplies - Food and Beverages,04/04/2022,5637969,269.37,Thomas Ridley & Son Ltd
Children & Culture,Children's Social Care,Support Service and Management Costs,Schools Catering,Kitchen Supplies - Food and Beverages,04/04/2022,5637979,269.77,Thomas Ridley & Son Ltd
Children & Culture,Children's Social Care,Children's and Young People's Safety,Early Help Central Team,Newspapers and Magazines - General Purchases,04/04/2022,5640063,274.75,Eastside Books Ltd
Children & Culture,Children's Social Care,Children's and Young People's Safety,Early Help Central Team,Newspapers and Magazines - General Purchases,04/04/2022,5640063,274.75,Eastside Books Ltd
Children & Culture,Children's Social Care,Support Service and Management Costs,Schools Catering,Kitchen Supplies - Food and Beverages,04/04/2022,5638534,280.04,Prescott-Thomas LTD.
Children & Culture,Children's Social Care,Support Service and Management Costs,Schools Catering,Kitchen Supplies - Food and Beverages,04/04/2022,5637999,280.27,Thomas Ridley & Son Ltd
Children & Culture,Children's Social Care,Support Service and Management Costs,Schools Catering,Kitchen Supplies - Food and Beverages,04/04/2022,5638498,280.37,Prescott-Thomas LTD.
Children & Culture,Children's Social Care,Support Service and Management Costs,Schools Catering,Kitchen Supplies - Food and Beverages,04/04/2022,5638015,280.50,Thomas Ridley & Son Ltd
Children & Culture,Children's Social Care,Support Service and Management Costs,Schools Catering,Kitchen Supplies - Food and Beverages,04/04/2022,5638008,284.74,Thomas Ridley & Son Ltd
Children & Culture,Children's Social Care,Support Service and Management Costs,Schools Catering,Kitchen Supplies - Food and Beverages,04/04/2022,5641728,292.72,William White Meats Ltd
Children & Culture,Children's Social Care,Support Service and Management Costs,Schools Catering,Kitchen Supplies - Food and Beverages,04/04/2022,5641726,296.35,William White Meats Ltd
Children & Culture,Children's Social Care,Support Service and Management Costs,Schools Catering,Kitchen Supplies - Food and Beverages,04/04/2022,5637970,299.72,Thomas Ridley & Son Ltd
Children & Culture,Children's Social Care,Support Service and Management Costs,Schools Catering,Kitchen Supplies - Food and Beverages,04/04/2022,5641692,300.94,William White Meats Ltd
Children & Culture,Children's Social Care,Support Service and Management Costs,Schools Catering,Kitchen Supplies - Food and Beverages,04/04/2022,5637981,302.03,Thomas Ridley & Son Ltd
Children & Culture,Children's Social Care,Support Service and Management Costs,Schools Catering,Kitchen Supplies - Food and Beverages,04/04/2022,5641685,310.19,William White Meats Ltd
Children & Culture,Children's Social Care,Support Service and Management Costs,Schools Catering,Kitchen Supplies - Food and Beverages,04/04/2022,5641721,311.72,William White Meats Ltd
Children & Culture,Children's Social Care,Support Service and Management Costs,Schools Catering,Kitchen Supplies - Food and Beverages,04/04/2022,5641704,312.21,William White Meats Ltd
Children & Culture,Children's Social Care,Support Service and Management Costs,Schools Catering,Kitchen Supplies - Food and Beverages,04/04/2022,5638011,313.93,Thomas Ridley & Son Ltd
Children & Culture,Children's Social Care,Support Service and Management Costs,Schools Catering,Kitchen Supplies - Food and Beverages,04/04/2022,5637972,316.14,Thomas Ridley & Son Ltd
Children & Culture,Children's Social Care,Support Service and Management Costs,Schools Catering,Kitchen Supplies - Food and Beverages,04/04/2022,5638520,319.31,Prescott-Thomas LTD.
Children & Culture,Children's Social Care,Support Service and Management Costs,Schools Catering,Kitchen Supplies - Food and Beverages,04/04/2022,5638468,322.38,Thomas Ridley & Son Ltd
Children & Culture,Children's Social Care,Support Service and Management Costs,Schools Catering,Kitchen Supplies - Food and Beverages,04/04/2022,5641701,323.69,William White Meats Ltd
Children & Culture,Children's Social Care,Children's and Young People's Safety,Early Help Central Team,Newspapers and Magazines - General Purchases,04/04/2022,5640063,324.75,Eastside Books Ltd
Children & Culture,Children's Social Care,Support Service and Management Costs,Schools Catering,Kitchen Supplies - Food and Beverages,04/04/2022,5637980,329.06,Thomas Ridley & Son Ltd
Children & Culture,Children's Social Care,Support Service and Management Costs,Schools Catering,Kitchen Supplies - Food and Beverages,04/04/2022,5638012,331.32,Thomas Ridley & Son Ltd
Children & Culture,Children's Social Care,Support Service and Management Costs,Schools Catering,Kitchen Supplies - Food and Beverages,04/04/2022,5638551,334.05,Prescott-Thomas LTD.
Children & Culture,Children's Social Care,Support Service and Management Costs,Schools Catering,Kitchen Supplies - Food and Beverages,04/04/2022,5638517,336.73,Prescott-Thomas LTD.
Children & Culture,Children's Social Care,Support Service and Management Costs,Schools Catering,Kitchen Supplies - Food and Beverages,04/04/2022,5637993,340.26,Thomas Ridley & Son Ltd
Children & Culture,Children's Social Care,Support Service and Management Costs,Schools Catering,Kitchen Supplies - Food and Beverages,04/04/2022,5641706,340.63,William White Meats Ltd
Children & Culture,Children's Social Care,Support Service and Management Costs,Sch. Meals A/c - William Davis,Kitchen Supplies - Catering Equipment,04/04/2022,5639150,345.49,W V Howe LTD
Children & Culture,Children's Social Care,Support Service and Management Costs,Schools Catering,Kitchen Supplies - Food and Beverages,04/04/2022,5641715,353.49,William White Meats Ltd
Children & Culture,Children's Social Care,Support Service and Management Costs,Schools Catering,Kitchen Supplies - Food and Beverages,04/04/2022,5638014,354.10,Thomas Ridley & Son Ltd
Children & Culture,Children's Social Care,Youth Justice,Youth Justice Team,Payments to Private Contractors - Licences,04/04/2022,5638480,365.00,Ignite Service Provider Ltd
Children & Culture,Children's Social Care,Support Service and Management Costs,Schools Catering,Kitchen Supplies - Food and Beverages,04/04/2022,5638009,366.54,Thomas Ridley & Son Ltd
Children & Culture,Children's Social Care,Support Service and Management Costs,Schools Catering,Kitchen Supplies - Food and Beverages,04/04/2022,5641696,376.46,William White Meats Ltd
Children & Culture,Children's Social Care,Service Strategy,FSP Sect 17 - Team 1,Childrens Act Section 17 - Other Childcare Support,04/04/2022,5639823,381.00,Potton Services Ltd
Children & Culture,Children's Social Care,Support Service and Management Costs,Schools Catering,Kitchen Supplies - Food and Beverages,04/04/2022,5641702,384.27,William White Meats Ltd
Children & Culture,Children's Social Care,Service Strategy,FSP Sect 17 - Team 1,Childrens Act Section 17 - Expert Assessmt/Witness Costs,04/04/2022,5639172,399.00,Alpha Biolaboratories Legal Limited
Children & Culture,Education Services,Other Strategic Functions,Music Trading Account,Third Party Payments - Voluntary Associations,04/04/2022,5640193,400.00,Judy Grahame
Children & Culture,Children's Social Care,Support Service and Management Costs,Schools Catering,Kitchen Supplies - Food and Beverages,04/04/2022,5638544,401.67,Prescott-Thomas LTD.
Children & Culture,Children's Social Care,Support Service and Management Costs,Schools Catering,Kitchen Supplies - Food and Beverages,04/04/2022,5641688,405.87,William White Meats Ltd
Children & Culture,Children's Social Care,Support Service and Management Costs,Sch. Meals A/c - Central Production Unit,Kitchen Supplies - Food and Beverages,04/04/2022,5641705,408.82,William White Meats Ltd
Children & Culture,Children's Social Care,Support Service and Management Costs,Schools Catering,Kitchen Supplies - Food and Beverages,04/04/2022,5638547,411.87,Prescott-Thomas LTD.
Children & Culture,Children's Social Care,Support Service and Management Costs,Schools Catering,Kitchen Supplies - Food and Beverages,04/04/2022,5638531,412.74,Prescott-Thomas LTD.
Children & Culture,Children's Social Care,Support Service and Management Costs,Schools Catering,Kitchen Supplies - Food and Beverages,04/04/2022,5638022,416.60,Thomas Ridley & Son Ltd
Children & Culture,Children's Social Care,Support Service and Management Costs,Schools Catering,Kitchen Supplies - Food and Beverages,04/04/2022,5641700,416.94,William White Meats Ltd
Children & Culture,Education Services,Other Strategic Functions,Music Trading Account,Educational/Training Supplies - Arts & Crafts,04/04/2022,5639223,429.00,Beare and Son Ltd
Children & Culture,Children's Social Care,Support Service and Management Costs,Schools Catering,Kitchen Supplies - Food and Beverages,04/04/2022,5638001,431.12,Thomas Ridley & Son Ltd
Children & Culture,Children's Social Care,Support Service and Management Costs,Schools Catering,Kitchen Supplies - Food and Beverages,04/04/2022,5638464,432.71,Thomas Ridley & Son Ltd
Children & Culture,Children's Social Care,Support Service and Management Costs,Schools Catering,Kitchen Supplies - Food and Beverages,04/04/2022,5637983,437.16,Thomas Ridley & Son Ltd
Children & Culture,Children's Social Care,Support Service and Management Costs,Schools Catering,Kitchen Supplies - Food and Beverages,04/04/2022,5641711,440.29,William White Meats Ltd
Children & Culture,Children's Social Care,Support Service and Management Costs,Schools Catering,Kitchen Supplies - Food and Beverages,04/04/2022,5638550,451.57,Prescott-Thomas LTD.
Children & Culture,Children's Social Care,Support Service and Management Costs,Schools Catering,Kitchen Supplies - Food and Beverages,04/04/2022,5641698,456.83,William White Meats Ltd
Children & Culture,Children's Social Care,Support Service and Management Costs,Schools Catering,Kitchen Supplies - Food and Beverages,04/04/2022,5641684,489.47,William White Meats Ltd
Children & Culture,Children's Social Care,Support Service and Management Costs,Schools Catering,Kitchen Supplies - Food and Beverages,04/04/2022,5641720,505.53,William White Meats Ltd
Children & Culture,Children's Social Care,Support Service and Management Costs,Schools Catering,Kitchen Supplies - Food and Beverages,04/04/2022,5641687,508.96,William White Meats Ltd
Children & Culture,Children's Social Care,Support Service and Management Costs,Schools Catering,Kitchen Supplies - Food and Beverages,04/04/2022,5637971,511.44,Thomas Ridley & Son Ltd
Children & Culture,Children's Social Care,Support Service and Management Costs,Schools Catering,Kitchen Supplies - Food and Beverages,04/04/2022,5641708,513.31,William White Meats Ltd
Children & Culture,Children's Social Care,Service Strategy,CSC Childrens Resources M & A,Childrens Act Section 23 - Placement Fee,04/04/2022,5639266,525.00,Brighter Future Solutions
Children & Culture,Children's Social Care,Support Service and Management Costs,Schools Catering,Kitchen Supplies - Food and Beverages,04/04/2022,5641694,536.28,William White Meats Ltd
Children & Culture,Children's Social Care,Support Service and Management Costs,Schools Catering,Kitchen Supplies - Food and Beverages,04/04/2022,5637997,539.47,Thomas Ridley & Son Ltd
Children & Culture,Children's Social Care,Support Service and Management Costs,Schools Catering,Kitchen Supplies - Food and Beverages,04/04/2022,5637974,546.03,Thomas Ridley & Son Ltd
Children & Culture,Children's Social Care,Support Service and Management Costs,Schools Catering,Kitchen Supplies - Food and Beverages,04/04/2022,5641709,554.34,William White Meats Ltd
Children & Culture,Children's Social Care,Support Service and Management Costs,Schools Catering,Kitchen Supplies - Food and Beverages,04/04/2022,5641722,637.23,William White Meats Ltd
Children & Culture,Children's Social Care,Support Service and Management Costs,Sch. Meals A/c - Central Production Unit,Kitchen Supplies - Food and Beverages,04/04/2022,5637987,663.61,Thomas Ridley & Son Ltd
Children & Culture,Children's Social Care,Support Service and Management Costs,Schools Catering,Kitchen Supplies - Food and Beverages,04/04/2022,5641703,723.88,William White Meats Ltd
Children & Culture,Children's Social Care,Support Service and Management Costs,Schools Catering,Kitchen Supplies - Food and Beverages,04/04/2022,5641724,794.36,William White Meats Ltd
Children & Culture,Children's Social Care,Support Service and Management Costs,Schools Catering,Kitchen Supplies - Food and Beverages,04/04/2022,5638021,847.42,Thomas Ridley & Son Ltd
Children & Culture,Cultural and Related Services,Open Spaces,Mile End Park,Grounds Maintenance - Contract - Horticultural Maintenance,04/04/2022,5639137,850.00,Rigby Taylor Ltd
Children & Culture,Children's Social Care,Children Looked After,Leaving Care-UASC,Leaving Care Financial Assistance - Supp Accom/Hous Rents,04/04/2022,5636905,859.88,HAMLETTS LTD
Children & Culture,Children's Social Care,Children Looked After,S23 Fam Pl P&V-F/Care,Childrens Act Section 23 - Non-Contact Taxi Costs,04/04/2022,5648919,874.00,AnR Cars Ltd
Children & Culture,Children's Social Care,Children Looked After,Leaving Care-UASC,Leaving Care Financial Assistance - Supp Accom/Hous Rents,04/04/2022,5636896,932.12,HAMLETTS LTD
Children & Culture,Children's Social Care,Children Looked After,Leaving Care-UASC,Leaving Care Financial Assistance - Supp Accom/Hous Rents,04/04/2022,5636907,932.12,HAMLETTS LTD
Children & Culture,Children's Social Care,Children Looked After,Leaving Care-UASC,Leaving Care Financial Assistance - Supp Accom/Hous Rents,04/04/2022,5636908,932.12,HAMLETTS LTD
Children & Culture,Children's Social Care,Children Looked After,LCS/Allowances-Accom,Leaving Care Financial Assistance - Supp Accom/Hous Rents,04/04/2022,5636895,932.12,HAMLETTS LTD
Children & Culture,Children's Social Care,Children Looked After,Leaving Care-UASC,Leaving Care Financial Assistance - Supp Accom/Hous Rents,04/04/2022,5636879,971.88,HAMLETTS LTD
Children & Culture,Children's Social Care,Children Looked After,Leaving Care-UASC,Leaving Care Financial Assistance - Supp Accom/Hous Rents,04/04/2022,5636887,971.88,HAMLETTS LTD
Children & Culture,Children's Social Care,Children Looked After,Leaving Care-UASC,Leaving Care Financial Assistance - Supp Accom/Hous Rents,04/04/2022,5636888,971.88,HAMLETTS LTD
Children & Culture,Children's Social Care,Children Looked After,Leaving Care-UASC,Leaving Care Financial Assistance - Supp Accom/Hous Rents,04/04/2022,5636889,971.88,HAMLETTS LTD
Children & Culture,Children's Social Care,Children Looked After,Leaving Care-UASC,Leaving Care Financial Assistance - Supp Accom/Hous Rents,04/04/2022,5636890,971.88,HAMLETTS LTD
Children & Culture,Children's Social Care,Children Looked After,Leaving Care-UASC,Leaving Care Financial Assistance - Supp Accom/Hous Rents,04/04/2022,5636893,971.88,HAMLETTS LTD
Children & Culture,Children's Social Care,Children Looked After,Leaving Care-UASC,Leaving Care Financial Assistance - Supp Accom/Hous Rents,04/04/2022,5636894,971.88,HAMLETTS LTD
Children & Culture,Children's Social Care,Children Looked After,Leaving Care-UASC,Leaving Care Financial Assistance - Supp Accom/Hous Rents,04/04/2022,5636899,971.88,HAMLETTS LTD
Children & Culture,Children's Social Care,Children Looked After,Leaving Care-UASC,Leaving Care Financial Assistance - Supp Accom/Hous Rents,04/04/2022,5636902,971.88,HAMLETTS LTD
Children & Culture,Children's Social Care,Children Looked After,Leaving Care-UASC,Leaving Care Financial Assistance - Supp Accom/Hous Rents,04/04/2022,5636903,971.88,HAMLETTS LTD
Children & Culture,Children's Social Care,Children Looked After,Leaving Care-UASC,Leaving Care Financial Assistance - Supp Accom/Hous Rents,04/04/2022,5636906,971.88,HAMLETTS LTD
Children & Culture,Children's Social Care,Support Service and Management Costs,Schools Catering,Kitchen Supplies - Food and Beverages,04/04/2022,5641697,"1,010.95",William White Meats Ltd
Children & Culture,Children's Social Care,Support Service and Management Costs,Swanlea,Kitchen Supplies - Food and Beverages,04/04/2022,5638007,"1,187.44",Thomas Ridley & Son Ltd
Children & Culture,Cultural and Related Services,Open Spaces,Mile End Park,Computing - Purchase of Software,04/04/2022,5638356,"1,615.00",Relovision Ltd
Children & Culture,Children's Social Care,Children Looked After,S23 Fam Pl P&V-F/Care,Childrens Act Section 23 - Placement Fee,04/04/2022,5637898,"1,628.57",Five Rivers Childcare Limited
Children & Culture,Cultural and Related Services,Open Spaces,Mile End Park,Computing - Purchase of Software,04/04/2022,5638357,"1,720.00",Relovision Ltd
Children & Culture,Children's Social Care,Children Looked After,LCS/Allowances-Accom,Leaving Care Financial Assistance - Supp Accom/Hous Rents,04/04/2022,5636898,"1,832.22",HAMLETTS LTD
Children & Culture,Children's Social Care,Children's and Young People's Safety,Early Help Central Team,Books - General Purchases,04/04/2022,5641749,"2,935.16",Eastside Books Ltd
Children & Culture,Children's Social Care,Children Looked After,S23-Other-Mother & Baby Unit,Childrens Act Section 23 - Placement Fee,04/04/2022,5639236,"3,465.00",Jamma Umoja (Residential Services) LTD
Children & Culture,Children's Social Care,Children Looked After,S23-Other-Semi-Ind. Unit,Childrens Act Section 23 - Placement Fee,04/04/2022,5639878,"3,600.00",Naza Connect Care Ltd
Children & Culture,Cultural and Related Services,Open Spaces,Mile End Park,Repairs and Maintenance - Responsive - Repair & Maintenance,04/04/2022,5638355,"3,868.00",Relovision Ltd
Children & Culture,Children's Social Care,Children Looked After,S23-Other-Semi-Ind. Unit,Childrens Act Section 23 - Placement Fee,04/04/2022,5639877,"4,030.00",Naza Connect Care Ltd
Children & Culture,Children's Social Care,Children Looked After,S23-Other-Semi-Ind. Unit,Childrens Act Section 23 - Placement Fee,04/04/2022,5639879,"4,030.00",Naza Connect Care Ltd
Children & Culture,Education Services,Other Strategic Functions,High Needs Out Of Borough Special Schools,Third Party Payments - SEN Top Up Funding,04/04/2022,5648854,"4,243.60",Progress Schools Ltd
Children & Culture,No Service Specified,No Division Specified,Parks - CAP,Building Works - Main Works,04/04/2022,5638351,"4,341.00",Relovision Ltd
Children & Culture,Children's Social Care,Children Looked After,S23-Other-Semi-Ind. Unit,Childrens Act Section 23 - Placement Fee,04/04/2022,5638383,"5,563.86",Aspirational Support Ltd
Children & Culture,No Service Specified,No Division Specified,Conditions and Improvements - Cap,Building Works - Main Works,04/04/2022,5639267,"6,600.00",Frankham Consultancy Group LTD
Children & Culture,No Service Specified,No Division Specified,Parks - CAP,Building Works - Main Works,04/04/2022,5638354,"10,974.40",Relovision Ltd
Children & Culture,Cultural and Related Services,Open Spaces,Mile End Park,Computing - Purchase of Software,04/04/2022,5638352,"11,210.00",Relovision Ltd
Children & Culture,Education Services,Other Strategic Functions,SEN External Travel,Non Staff Transport Costs - Reimbursement,04/04/2022,5638406,"14,245.00",Clover Car Services Ltd
Children & Culture,Education Services,Other Strategic Functions,Safeguarding Service,Education & Training - Non Staff Tuition Fees,04/04/2022,5639959,"14,847.50",The Aim Project
Children & Culture,Education Services,Other Strategic Functions,High Needs Out Of Borough Special Schools,Third Party Payments - SEN Top Up Funding,04/04/2022,5639156,"27,240.33",St Johns School
Children & Culture,Education Services,Other Strategic Functions,High Needs Out Of Borough Special Schools,Third Party Payments - SEN Top Up Funding,04/04/2022,5639157,"47,416.99",St Johns School
Children & Culture,Cultural and Related Services,Culture & Heritage,Arts-Park Events,Third Party Payments - Voluntary Associations,06/04/2022,5640357,250.00,Redacted Section 40 FOI ACT
Children & Culture,Children's Social Care,Support Service and Management Costs,Schools Catering,Kitchen Supplies - Food and Beverages,06/04/2022,5639283,277.67,Thomas Ridley & Son Ltd
Children & Culture,Children's Social Care,Support Service and Management Costs,Schools Catering,Kitchen Supplies - Food and Beverages,06/04/2022,5641740,283.60,William White Meats Ltd
Children & Culture,Children's Social Care,Support Service and Management Costs,Schools Catering,Kitchen Supplies - Food and Beverages,06/04/2022,5639983,311.95,Thomas Ridley & Son Ltd
Children & Culture,Children's Social Care,Service Strategy,Child Care M & A,Services - Professional Fees - Legal Fees/Expenses,06/04/2022,5648947,312.50,4 Brick Court Chambers Management Limited
Children & Culture,Children's Social Care,Support Service and Management Costs,Schools Catering,Kitchen Supplies - Food and Beverages,06/04/2022,5639986,313.70,Thomas Ridley & Son Ltd
Children & Culture,Children's Social Care,Support Service and Management Costs,Schools Catering,Kitchen Supplies - Food and Beverages,06/04/2022,5639287,320.17,Thomas Ridley & Son Ltd
Children & Culture,Children's Social Care,Support Service and Management Costs,Schools Catering,Kitchen Supplies - Food and Beverages,06/04/2022,5639290,322.21,Thomas Ridley & Son Ltd
Children & Culture,Children's Social Care,Support Service and Management Costs,Schools Catering,Kitchen Supplies - Food and Beverages,06/04/2022,5641733,324.54,William White Meats Ltd
Children & Culture,Children's Social Care,Support Service and Management Costs,Schools Catering,Kitchen Supplies - Food and Beverages,06/04/2022,5639976,344.35,Thomas Ridley & Son Ltd
Children & Culture,Children's Social Care,Service Strategy,Child Care M & A,Services - Professional Fees - Legal Fees/Expenses,06/04/2022,5648932,350.00,Chambers of Jacob Levy QC
Children & Culture,Children's Social Care,Support Service and Management Costs,Sch. Meals A/c - Central Production Unit,Kitchen Supplies - Food and Beverages,06/04/2022,5641741,362.45,William White Meats Ltd
Children & Culture,Children's Social Care,Family Support Services,Disabled Children�s Outreach Service,Other Contributions - Other Contributions,06/04/2022,5649208,367.14,Disabled Childrens Outreach Service
Children & Culture,Education Services,Other Strategic Functions,Safeguarding Service,Education & Training - Non Staff Tuition Fees,06/04/2022,5639912,375.00,Birkbeck university Of London
Children & Culture,Children's Social Care,Support Service and Management Costs,Schools Catering,Kitchen Supplies - Food and Beverages,06/04/2022,5639984,380.71,Thomas Ridley & Son Ltd
Children & Culture,Children's Social Care,Support Service and Management Costs,Schools Catering,Kitchen Supplies - Food and Beverages,06/04/2022,5639294,397.75,Thomas Ridley & Son Ltd
Children & Culture,Children's Social Care,Support Service and Management Costs,Schools Catering,Kitchen Supplies - Food and Beverages,06/04/2022,5639974,412.74,Thomas Ridley & Son Ltd
Children & Culture,Education Services,Early Years,Collingwood,Office Furniture/Equipment,06/04/2022,5643097,415.00,ESPO
Children & Culture,Children's Social Care,Service Strategy,Child Care M & A,Services - Professional Fees - Legal Fees/Expenses,06/04/2022,5648953,421.20,EXPERT IN MIND LIMITED
Children & Culture,Children's Social Care,Support Service and Management Costs,Schools Catering,Kitchen Supplies - Food and Beverages,06/04/2022,5639970,424.39,Thomas Ridley & Son Ltd
Children & Culture,Children's Social Care,Support Service and Management Costs,Schools Catering,Kitchen Supplies - Food and Beverages,06/04/2022,5639292,429.75,Thomas Ridley & Son Ltd
Children & Culture,Cultural and Related Services,Open Spaces,Victoria Park,Repairs and Maintenance - Responsive - Repair & Maintenance,06/04/2022,5639119,430.00,JC Coster (Metalworks) Ltd
Children & Culture,Children's Social Care,Support Service and Management Costs,Schools Catering,Kitchen Supplies - Food and Beverages,06/04/2022,5639286,431.98,Thomas Ridley & Son Ltd
Children & Culture,Children's Social Care,Service Strategy,FSP Sect 17 - Team 1,Childrens Act Section 17 - Non-Contact Taxi Costs,06/04/2022,5649143,434.54,TKG LTD T/A The Keen Group
Children & Culture,Children's Social Care,Support Service and Management Costs,Schools Catering,Kitchen Supplies - Food and Beverages,06/04/2022,5639990,451.03,Thomas Ridley & Son Ltd
Children & Culture,Children's Social Care,Support Service and Management Costs,Schools Catering,Kitchen Supplies - Food and Beverages,06/04/2022,5639301,456.43,Thomas Ridley & Son Ltd
Children & Culture,Children's Social Care,Support Service and Management Costs,Schools Catering,Kitchen Supplies - Food and Beverages,06/04/2022,5639278,467.50,Thomas Ridley & Son Ltd
Children & Culture,Children's Social Care,Service Strategy,Child Care M & A,Services - Professional Fees - Legal Fees/Expenses,06/04/2022,5648945,475.00,Field Court Chambers  - Fees Account
Children & Culture,Children's Social Care,Support Service and Management Costs,Schools Catering,Kitchen Supplies - Food and Beverages,06/04/2022,5639982,476.19,Thomas Ridley & Son Ltd
Children & Culture,Children's Social Care,Support Service and Management Costs,Schools Catering,Kitchen Supplies - Food and Beverages,06/04/2022,5639282,488.64,Thomas Ridley & Son Ltd
Children & Culture,Children's Social Care,Support Service and Management Costs,Schools Catering,Kitchen Supplies - Food and Beverages,06/04/2022,5639295,496.81,Thomas Ridley & Son Ltd
Children & Culture,Children's Social Care,Support Service and Management Costs,Schools Catering,Kitchen Supplies - Food and Beverages,06/04/2022,5639993,499.43,Thomas Ridley & Son Ltd
Children & Culture,Children's Social Care,Support Service and Management Costs,Sch. Meals A/c - Malmesbury,Kitchen Supplies - Catering Equipment,06/04/2022,5640084,504.00,W V Howe LTD
Children & Culture,Children's Social Care,Support Service and Management Costs,Schools Catering,Kitchen Supplies - Food and Beverages,06/04/2022,5639981,506.76,Thomas Ridley & Son Ltd
Children & Culture,Children's Social Care,Children Looked After,LCS/Allowances-Accom,Leaving Care Financial Assistance - Supp Accom/Hous Rents,06/04/2022,5640156,520.71,LDSL Properties Ltd
Children & Culture,Children's Social Care,Support Service and Management Costs,Schools Catering,Kitchen Supplies - Food and Beverages,06/04/2022,5639978,527.71,Thomas Ridley & Son Ltd
Children & Culture,Children's Social Care,Service Strategy,Child Care M & A,Services - Professional Fees - Legal Fees/Expenses,06/04/2022,5648951,550.00,4 Brick Court Chambers Management Limited
Children & Culture,Children's Social Care,Support Service and Management Costs,Schools Catering,Kitchen Supplies - Food and Beverages,06/04/2022,5639971,550.56,Thomas Ridley & Son Ltd
Children & Culture,Children's Social Care,Service Strategy,Child Care M & A,Services - Professional Fees - Legal Fees/Expenses,06/04/2022,5648950,555.00,4 Brick Court Chambers Management Limited
Children & Culture,No Service Specified,No Division Specified,Parks - CAP,Building Works - Main Works,06/04/2022,5639776,568.75,Groundsman Supplies
Children & Culture,Children's Social Care,Support Service and Management Costs,Schools Catering,Kitchen Supplies - Food and Beverages,06/04/2022,5639299,573.59,Thomas Ridley & Son Ltd
Children & Culture,Children's Social Care,Support Service and Management Costs,Schools Catering,Kitchen Supplies - Food and Beverages,06/04/2022,5639979,573.85,Thomas Ridley & Son Ltd
Children & Culture,Children's Social Care,Service Strategy,Child Care M & A,Services - Professional Fees - Legal Fees/Expenses,06/04/2022,5648956,600.00,4 Brick Court Chambers Management Limited
Children & Culture,Children's Social Care,Support Service and Management Costs,Schools Catering,Kitchen Supplies - Food and Beverages,06/04/2022,5639303,609.49,Thomas Ridley & Son Ltd
Children & Culture,Education Services,Early Years,SSEYCG Two Year Old Pilot,Third Party Payments - Voluntary Associations,06/04/2022,5649910,611.10,Nicola Bennison Childcare Services
Children & Culture,Education Services,Early Years,SSEYCG Two Year Old Pilot,Third Party Payments - Voluntary Associations,06/04/2022,5649920,611.10,CLAIRE BEARS LTD
Children & Culture,Education Services,Early Years,SSEYCG Two Year Old Pilot,Third Party Payments - Voluntary Associations,06/04/2022,5649943,611.10,New Birth Day Nursery
Children & Culture,Children's Social Care,Support Service and Management Costs,Schools Catering,Kitchen Supplies - Food and Beverages,06/04/2022,5639996,621.83,Thomas Ridley & Son Ltd
Children & Culture,Education Services,Early Years,3&4 Year old PVI�s,Third Party Payments - Voluntary Associations,06/04/2022,5650001,644.40,EXCELLENCE CHRISTIAN SCHOOL
Children & Culture,Education Services,Early Years,Private Voluntary & Independant Extended Funding Hours,Third Party Payments - Voluntary Associations,06/04/2022,5649992,644.40,CLAIRE BEARS LTD
Children & Culture,Education Services,Early Years,Private Voluntary & Independant Extended Funding Hours,Third Party Payments - Voluntary Associations,06/04/2022,5650017,644.40,Iqra Preschool
Children & Culture,Education Services,Early Years,Private Voluntary & Independant Extended Funding Hours,Third Party Payments - Voluntary Associations,06/04/2022,5650032,644.40,Little Miracles Nursery
Children & Culture,Education Services,Early Years,Private Voluntary & Independant Extended Funding Hours,Third Party Payments - Voluntary Associations,06/04/2022,5650049,644.40,New City College
Children & Culture,Education Services,Early Years,Private Voluntary & Independant Extended Funding Hours,Third Party Payments - Voluntary Associations,06/04/2022,5650087,644.40,Tiddley Tots Daycare
Children & Culture,Cultural and Related Services,Open Spaces,Victoria Park,Repairs and Maintenance - Responsive - Repair & Maintenance,06/04/2022,5639160,663.95,Groundsman Supplies
Children & Culture,Children's Social Care,Support Service and Management Costs,Schools Catering,Kitchen Supplies - Food and Beverages,06/04/2022,5639985,668.29,Thomas Ridley & Son Ltd
Children & Culture,Cultural and Related Services,Open Spaces,Mile End Park,Repairs and Maintenance - Responsive - Drainage & Sewers,06/04/2022,5640153,680.00,J&L Coster (Drainage) Ltd
Children & Culture,Children's Social Care,Service Strategy,Child Care M & A,Services - Professional Fees - Legal Fees/Expenses,06/04/2022,5648941,700.00,Chambers of Jacob Levy QC
Children & Culture,No Service Specified,No Division Specified,Basic Needs/Expansions - CAP,Building Works - Main Works,06/04/2022,5639117,710.00,JC Coster (Metalworks) Ltd
Children & Culture,Children's Social Care,Children Looked After,LCS/Allowances-Accom,Leaving Care Financial Assistance - Supp Accom/Hous Rents,06/04/2022,5648494,800.00,Inclusive Care Support Ltd
Children & Culture,Children's Social Care,Support Service and Management Costs,Schools Catering,Kitchen Supplies - Food and Beverages,06/04/2022,5639972,824.57,Thomas Ridley & Son Ltd
Children & Culture,Children's Social Care,Service Strategy,Child Care M & A,Services - Professional Fees - Legal Fees/Expenses,06/04/2022,5648943,825.00,4 Brick Court Chambers Management Limited
Children & Culture,Children's Social Care,Support Service and Management Costs,Schools Catering,Kitchen Supplies - Food and Beverages,06/04/2022,5639977,875.10,Thomas Ridley & Son Ltd
Children & Culture,Children's Social Care,Family Support Services,CNN Pool: Children Direct Paym,Social Care - Direct Payments,06/04/2022,5649867,890.60,DH TOWER HAMLETS
Children & Culture,Children's Social Care,Service Strategy,Child Care M & A,Services - Professional Fees - Legal Fees/Expenses,06/04/2022,5648938,950.00,4 Brick Court Chambers Management Limited
Children & Culture,No Service Specified,No Division Specified,Parks - CAP,Internal Staff Recharges - Other Internal Fees,06/04/2022,5649692,954.00,Bevan Brittan LLP Client Account
Children & Culture,Children's Social Care,Service Strategy,Child Care M & A,Services - Professional Fees - Legal Fees/Expenses,06/04/2022,5648955,"1,075.00",4 Brick Court Chambers Management Limited
Children & Culture,Children's Social Care,Support Service and Management Costs,Swanlea,Kitchen Supplies - Food and Beverages,06/04/2022,5639285,"1,129.81",Thomas Ridley & Son Ltd
Children & Culture,Children's Social Care,Support Service and Management Costs,Sch. Meals A/c - Central Production Unit,Kitchen Supplies - Food and Beverages,06/04/2022,5639296,"1,172.57",Thomas Ridley & Son Ltd
Children & Culture,Cultural and Related Services,Open Spaces,Victoria Park,Repairs and Maintenance - Responsive - Repair & Maintenance,06/04/2022,5639122,"1,220.00",JC Coster (Metalworks) Ltd
Children & Culture,Education Services,Early Years,SSEYCG Two Year Old Pilot,Third Party Payments - Voluntary Associations,06/04/2022,5649944,"1,222.20",New City College
Children & Culture,Education Services,Early Years,SSEYCG Two Year Old Pilot,Third Party Payments - Voluntary Associations,06/04/2022,5649959,"1,222.20",Bethnal Green Montessuri Nursery
Children & Culture,Education Services,Early Years,3&4 Year old PVI�s,Third Party Payments - Voluntary Associations,06/04/2022,5649968,"1,288.80",Avebury Playgroup
Children & Culture,Education Services,Early Years,Private Voluntary & Independant Extended Funding Hours,Third Party Payments - Voluntary Associations,06/04/2022,5649977,"1,288.80",BRIGHT HORIZONS FAMILY SOLUTION
Children & Culture,Education Services,Early Years,Private Voluntary & Independant Extended Funding Hours,Third Party Payments - Voluntary Associations,06/04/2022,5650013,"1,288.80",Headstart Nursery
Children & Culture,Education Services,Early Years,Private Voluntary & Independant Extended Funding Hours,Third Party Payments - Voluntary Associations,06/04/2022,5650019,"1,288.80",ISLAND HOUSE PRE SCHOOL PLAYGROUP
Children & Culture,Education Services,Early Years,Private Voluntary & Independant Extended Funding Hours,Third Party Payments - Voluntary Associations,06/04/2022,5650028,"1,288.80",Little Limehouse Preschool
Children & Culture,Education Services,Early Years,Private Voluntary & Independant Extended Funding Hours,Third Party Payments - Voluntary Associations,06/04/2022,5650047,"1,288.80",New Birth Day Nursery
Children & Culture,Education Services,Early Years,Private Voluntary & Independant Extended Funding Hours,Third Party Payments - Voluntary Associations,06/04/2022,5650074,"1,288.80",Spring Nursery Limited
Children & Culture,Education Services,Early Years,Private Voluntary & Independant Extended Funding Hours,Third Party Payments - Voluntary Associations,06/04/2022,5650076,"1,288.80",Step By Step Nursery
Children & Culture,Cultural and Related Services,Open Spaces,Victoria Park,Uniforms & Clothing,06/04/2022,5640105,"1,387.13",SMI Group
Children & Culture,Education Services,Other Strategic Functions,Behavior Service Trading Acc,Agency Staff - Agency staff (general),06/04/2022,5639951,"1,400.00",Academics ltd
Children & Culture,Education Services,Other Strategic Functions,Music Trading Account,Third Party Payments - Staff External Training (UK Based),06/04/2022,5647224,"1,500.00",Urban Development
Children & Culture,Education Services,Other Strategic Functions,Maintained Schools Contingency,Services - Professional Fees - Counsel's Fees,06/04/2022,5639181,"1,515.00",Tower Hamlets Education Partnership
Children & Culture,Education Services,Other Strategic Functions,SEN External Travel,Non Staff Transport Costs - Client Transport Costs,06/04/2022,5649654,"1,624.00",Mile End Car Hire Limited
Children & Culture,Education Services,Early Years,SSEYCG Two Year Old Pilot,Third Party Payments - Voluntary Associations,06/04/2022,5649926,"1,833.30",Green Gables School
Children & Culture,Education Services,Early Years,SSEYCG Two Year Old Pilot,Third Party Payments - Voluntary Associations,06/04/2022,5649941,"1,833.30",MAGIC ROUNDABOUT NURSERIES LTD
Children & Culture,Education Services,Early Years,SSEYCG Two Year Old Pilot,Third Party Payments - Voluntary Associations,06/04/2022,5649949,"1,833.30",Rainbow Angels Nurseries & Learning Centres Ltd
Children & Culture,Education Services,Early Years,SSEYCG Two Year Old Pilot,Third Party Payments - Voluntary Associations,06/04/2022,5649951,"1,833.30",Barkantine Community Nursery
Children & Culture,Education Services,Early Years,3&4 Year old PVI�s,Third Party Payments - Voluntary Associations,06/04/2022,5650039,"1,933.20",Matilda Community Day Nursery
Children & Culture,Education Services,Early Years,3&4 Year old PVI�s,Third Party Payments - Voluntary Associations,06/04/2022,5650046,"1,933.20",New Birth Day Nursery
Children & Culture,Education Services,Early Years,3&4 Year old PVI�s,Third Party Payments - Voluntary Associations,06/04/2022,5650077,"1,933.20",CATHOLIC CHILDREN'S SOCIETY(WESTMINSTER)
Children & Culture,Education Services,Early Years,Private Voluntary & Independant Extended Funding Hours,Third Party Payments - Voluntary Associations,06/04/2022,5649979,"1,933.20",BRIGHT HORIZONS FAMILY SOLUTION
Children & Culture,Education Services,Early Years,Private Voluntary & Independant Extended Funding Hours,Third Party Payments - Voluntary Associations,06/04/2022,5650010,"1,933.20",GREEN GABLES PRIMARY SCHOOL
Children & Culture,Education Services,Early Years,Private Voluntary & Independant Extended Funding Hours,Third Party Payments - Voluntary Associations,06/04/2022,5650015,"1,933.20",Iqra Pre School
Children & Culture,Education Services,Early Years,Private Voluntary & Independant Extended Funding Hours,Third Party Payments - Voluntary Associations,06/04/2022,5650022,"1,933.20",Kids Kingdom Nursery
Children & Culture,Education Services,Early Years,Private Voluntary & Independant Extended Funding Hours,Third Party Payments - Voluntary Associations,06/04/2022,5650054,"1,933.20",Precious Kids Day Nursery LTD
Children & Culture,Education Services,Early Years,Private Voluntary & Independant Extended Funding Hours,Third Party Payments - Voluntary Associations,06/04/2022,5650062,"1,933.20",Rainbow House
Children & Culture,Education Services,Early Years,Private Voluntary & Independant Extended Funding Hours,Third Party Payments - Voluntary Associations,06/04/2022,5650070,"1,933.20",Scallywags Playgroup
Children & Culture,Education Services,Early Years,Private Voluntary & Independant Extended Funding Hours,Third Party Payments - Voluntary Associations,06/04/2022,5650091,"1,933.20",WEAVERSFIELD COMMUNITY NURSERY
Children & Culture,Education Services,Other Strategic Functions,Music Trading Account,Third Party Payments - Voluntary Associations,06/04/2022,5646474,"2,090.00",Little People Big Noise Ltd
Children & Culture,Education Services,Early Years,SSEYCG Two Year Old Pilot,Third Party Payments - Voluntary Associations,06/04/2022,5650095,"2,368.80",Jingle Jungle Nursery
Children & Culture,Education Services,Other Strategic Functions,Children with Complex Needs,Third Party Payments - High Needs Specialist Equipment,06/04/2022,5641891,"2,381.00",Ronald Openshaw Nursery
Children & Culture,Education Services,Early Years,SSEYCG Two Year Old Pilot,Third Party Payments - Voluntary Associations,06/04/2022,5649919,"2,444.40",SOMALI INTEGRATION TEAM
Children & Culture,Education Services,Early Years,SSEYCG Two Year Old Pilot,Third Party Payments - Voluntary Associations,06/04/2022,5649945,"2,444.40",London Early Years Foundation
Children & Culture,Education Services,Early Years,SSEYCG Two Year Old Pilot,Third Party Payments - Voluntary Associations,06/04/2022,5649946,"2,444.40",Poplar Play Centre
Children & Culture,Education Services,Early Years,SSEYCG Two Year Old Pilot,Third Party Payments - Voluntary Associations,06/04/2022,5649948,"2,444.40",Puddle Jumpers Ltd
Children & Culture,Children's Social Care,Children Looked After,LCS/Allowances-Accom,Leaving Care Financial Assistance - Supported Living,06/04/2022,5648494,"2,460.00",Inclusive Care Support Ltd
Children & Culture,Cultural and Related Services,Recreation & Sport,GLL Sports Centres,Payments to Private Contractors - Private Contractor,06/04/2022,5648875,"2,490.00",APSE
Children & Culture,Education Services,Early Years,3&4 Year old PVI�s,Third Party Payments - Voluntary Associations,06/04/2022,5649967,"2,577.60",Allen Gardens Playgroup
Children & Culture,Education Services,Early Years,3&4 Year old PVI�s,Third Party Payments - Voluntary Associations,06/04/2022,5649990,"2,577.60",SOMALI INTEGRATION TEAM
Children & Culture,Education Services,Early Years,Private Voluntary & Independant Extended Funding Hours,Third Party Payments - Voluntary Associations,06/04/2022,5649981,"2,577.60",BRIGHT HORIZONS FAMILY SOLUTION
Children & Culture,Education Services,Early Years,Private Voluntary & Independant Extended Funding Hours,Third Party Payments - Voluntary Associations,06/04/2022,5649983,"2,577.60",BRIGHT HORIZONS FAMILY SOLUTION
Children & Culture,Education Services,Early Years,Private Voluntary & Independant Extended Funding Hours,Third Party Payments - Voluntary Associations,06/04/2022,5649985,"2,577.60",BRIGHT HORIZONS FAMILY SOLUTION
Children & Culture,Education Services,Early Years,Private Voluntary & Independant Extended Funding Hours,Third Party Payments - Voluntary Associations,06/04/2022,5650034,"2,577.60",Little St Matthias Pre School
Children & Culture,Education Services,Early Years,Private Voluntary & Independant Extended Funding Hours,Third Party Payments - Voluntary Associations,06/04/2022,5650052,"2,577.60",Pillar Box Nurseries Ltd
Children & Culture,Education Services,Early Years,Private Voluntary & Independant Extended Funding Hours,Third Party Payments - Voluntary Associations,06/04/2022,5650079,"2,577.60",St Paul�s (Nursery at Dock Street)
Children & Culture,Cultural and Related Services,Open Spaces,Victoria Park,Events & Exhibitions,06/04/2022,5639270,"2,790.39",Landscape Supply Company
Children & Culture,Education Services,Other Strategic Functions,Parental Engagement,Events & Exhibitions,06/04/2022,5646132,"3,000.00",Kois Miah Photography
Children & Culture,Education Services,Other Strategic Functions,Maintained Schools Contingency,Services - Professional Fees - Counsel's Fees,06/04/2022,5639181,"3,000.00",Tower Hamlets Education Partnership
Children & Culture,Education Services,Early Years,SSEYCG Two Year Old Pilot,Third Party Payments - Voluntary Associations,06/04/2022,5649953,"3,055.50",Scallywags Playgroup
Children & Culture,Children's Social Care,Children Looked After,Virtual School PPG,Third Party Payments - Payments to Schools,06/04/2022,5639231,"3,071.00",FERRARS JUNIOR SCHOOL
Children & Culture,Education Services,Early Years,3&4 Year old PVI�s,Third Party Payments - Voluntary Associations,06/04/2022,5650080,"3,222.00",Poplar HARCA LTD
Children & Culture,Education Services,Early Years,Private Voluntary & Independant Extended Funding Hours,Third Party Payments - Voluntary Associations,06/04/2022,5649970,"3,222.00",Barkantine Community Nursery
Children & Culture,Education Services,Early Years,Private Voluntary & Independant Extended Funding Hours,Third Party Payments - Voluntary Associations,06/04/2022,5649988,"3,222.00",BUTTERCUP  NURSERY
Children & Culture,Education Services,Early Years,Private Voluntary & Independant Extended Funding Hours,Third Party Payments - Voluntary Associations,06/04/2022,5650006,"3,222.00",GLOBAL KIDS DAY CARE
Children & Culture,Children's Social Care,Family Support Services,CNN Pool: Joint Family Support,Social Care - Homecare,06/04/2022,5640138,"3,252.92",Carebridge Staffing Ltd
Children & Culture,Children's Social Care,Service Strategy,North East London Teaching Partnership,Training Expenses - Staff External Training (UK Based),06/04/2022,5640075,"3,580.00",Royal Holloway University of London
Children & Culture,Education Services,Early Years,SSEYCG Two Year Old Pilot,Third Party Payments - Voluntary Associations,06/04/2022,5649912,"3,666.60",Allen Gardens Playgroup
Children & Culture,Education Services,Early Years,SSEYCG Two Year Old Pilot,Third Party Payments - Voluntary Associations,06/04/2022,5649947,"3,666.60",Precious Kids Day Nursery LTD
Children & Culture,Education Services,Early Years,SSEYCG Two Year Old Pilot,Third Party Payments - Voluntary Associations,06/04/2022,5649956,"3,666.60",Step By Step Nursery
Children & Culture,Education Services,Early Years,3&4 Year old PVI�s,Third Party Payments - Voluntary Associations,06/04/2022,5650025,"3,866.40",LANTERNS DAY NURSERY
Children & Culture,Education Services,Early Years,3&4 Year old PVI�s,Third Party Payments - Voluntary Associations,06/04/2022,5650048,"3,866.40",New City College
Children & Culture,Education Services,Early Years,3&4 Year old PVI�s,Third Party Payments - Voluntary Associations,06/04/2022,5650050,"3,866.40",London Early Years Foundation
Children & Culture,Education Services,Early Years,Private Voluntary & Independant Extended Funding Hours,Third Party Payments - Voluntary Associations,06/04/2022,5650060,"3,866.40",Rainbow House
Children & Culture,Education Services,Early Years,Private Voluntary & Independant Extended Funding Hours,Third Party Payments - Voluntary Associations,06/04/2022,5650093,"3,866.40",THE NURSERY QUEEN MARY UNIVERSITY LONDON
Children & Culture,Education Services,Early Years,SSEYCG Two Year Old Pilot,Third Party Payments - Voluntary Associations,06/04/2022,5649913,"4,277.70",Avebury Playgroup
Children & Culture,Education Services,Early Years,SSEYCG Two Year Old Pilot,Third Party Payments - Voluntary Associations,06/04/2022,5649954,"4,277.70",Shining Futures Nursery
Children & Culture,Education Services,Early Years,Private Voluntary & Independant Extended Funding Hours,Third Party Payments - Voluntary Associations,06/04/2022,5650082,"4,510.80",Bethnal Green Montessuri Nursery
Children & Culture,Education Services,Early Years,Private Voluntary & Independant Extended Funding Hours,Third Party Payments - Voluntary Associations,06/04/2022,5650085,"4,510.80",The Pier Head Preparatory School
Children & Culture,Education Services,Early Years,SSEYCG Two Year Old Pilot,Third Party Payments - Voluntary Associations,06/04/2022,5649911,"4,888.80",ABERTOTS PLAY
Children & Culture,Education Services,Early Years,SSEYCG Two Year Old Pilot,Third Party Payments - Voluntary Associations,06/04/2022,5649915,"4,888.80",Barnardo's
Children & Culture,Education Services,Early Years,SSEYCG Two Year Old Pilot,Third Party Payments - Voluntary Associations,06/04/2022,5649930,"4,888.80",Iqra Preschool
Children & Culture,Education Services,Early Years,3&4 Year old PVI�s,Third Party Payments - Voluntary Associations,06/04/2022,5649986,"5,155.20",Burdett Estate playgroup
Children & Culture,Education Services,Early Years,Private Voluntary & Independant Extended Funding Hours,Third Party Payments - Voluntary Associations,06/04/2022,5650004,"5,155.20",GLOBAL KIDS DAY CARE
Children & Culture,Education Services,Early Years,Private Voluntary & Independant Extended Funding Hours,Third Party Payments - Voluntary Associations,06/04/2022,5650056,"5,155.20",Puddle Jumpers Ltd
Children & Culture,Education Services,Early Years,Private Voluntary & Independant Extended Funding Hours,Third Party Payments - Voluntary Associations,06/04/2022,5650064,"5,155.20",Barkantine Community Nursery
Children & Culture,Education Services,Other Strategic Functions,Special Education Needs DSG,Third Party Payments - Individual Tuition,06/04/2022,5649135,"5,520.00",Encourage Education Limited
Children & Culture,Education Services,Early Years,3&4 Year old PVI�s,Third Party Payments - Voluntary Associations,06/04/2022,5650016,"5,799.60",Iqra Preschool
Children & Culture,Education Services,Early Years,3&4 Year old PVI�s,Third Party Payments - Voluntary Associations,06/04/2022,5650069,"5,799.60",Scallywags Playgroup
Children & Culture,Education Services,Early Years,SSEYCG Two Year Old Pilot,Third Party Payments - Voluntary Associations,06/04/2022,5649957,"6,111.00",CATHOLIC CHILDREN'S SOCIETY(WESTMINSTER)
Children & Culture,Education Services,Early Years,SSEYCG Two Year Old Pilot,Third Party Payments - Voluntary Associations,06/04/2022,5649958,"6,111.00",Poplar HARCA LTD
Children & Culture,Education Services,Early Years,SSEYCG Two Year Old Pilot,Third Party Payments - Voluntary Associations,06/04/2022,5649962,"6,111.00",Tower Hamlets Opportunity Group
Children & Culture,Education Services,Early Years,3&4 Year old PVI�s,Third Party Payments - Voluntary Associations,06/04/2022,5649984,"6,444.00",BRIGHT HORIZONS FAMILY SOLUTION
Children & Culture,Education Services,Early Years,3&4 Year old PVI�s,Third Party Payments - Voluntary Associations,06/04/2022,5650018,"6,444.00",ISLAND HOUSE PRE SCHOOL PLAYGROUP
Children & Culture,Education Services,Early Years,3&4 Year old PVI�s,Third Party Payments - Voluntary Associations,06/04/2022,5650051,"6,444.00",Pillar Box Nurseries Ltd
Children & Culture,Education Services,Early Years,3&4 Year old PVI�s,Third Party Payments - Voluntary Associations,06/04/2022,5650053,"6,444.00",Precious Kids Day Nursery LTD
Children & Culture,Education Services,Early Years,3&4 Year old PVI�s,Third Party Payments - Voluntary Associations,06/04/2022,5650065,"6,444.00",RANWELL PLAYGROUP
Children & Culture,Education Services,Early Years,3&4 Year old PVI�s,Third Party Payments - Voluntary Associations,06/04/2022,5650081,"6,444.00",Bethnal Green Montessuri Nursery
Children & Culture,Education Services,Early Years,3&4 Year old PVI�s,Third Party Payments - Voluntary Associations,06/04/2022,5650083,"6,444.00",TATE HOUSE PLAYGROUP
Children & Culture,Education Services,Early Years,3&4 Year old PVI�s,Third Party Payments - Voluntary Associations,06/04/2022,5650086,"6,444.00",Tiddley Tots Daycare
Children & Culture,Education Services,Early Years,Private Voluntary & Independant Extended Funding Hours,Third Party Payments - Voluntary Associations,06/04/2022,5649972,"6,444.00",Bethnal Green Montessuri Nursery
Children & Culture,Education Services,Early Years,Private Voluntary & Independant Extended Funding Hours,Third Party Payments - Voluntary Associations,06/04/2022,5650067,"6,444.00",Rise N Shine Nursery
Children & Culture,Education Services,Other Strategic Functions,High Needs Other Boroughs,Third Party Payments - SEN Top Up Funding,06/04/2022,5637909,"6,454.24",ST FRANCIS CATHOLIC PRIMARY SCHOOL
Children & Culture,Education Services,Early Years,SSEYCG Two Year Old Pilot,Third Party Payments - Voluntary Associations,06/04/2022,5649916,"6,722.10",BRAYFORD SQUARE PLAYGROUP
Children & Culture,Education Services,Early Years,SSEYCG Two Year Old Pilot,Third Party Payments - Voluntary Associations,06/04/2022,5649932,"6,722.10",Jingle Jungle Nursery
Children & Culture,Education Services,Early Years,3&4 Year old PVI�s,Third Party Payments - Voluntary Associations,06/04/2022,5649991,"7,088.40",CLAIRE BEARS LTD
Children & Culture,Education Services,Early Years,3&4 Year old PVI�s,Third Party Payments - Voluntary Associations,06/04/2022,5650021,"7,088.40",Kids Kingdom Nursery
Children & Culture,Education Services,Early Years,3&4 Year old PVI�s,Third Party Payments - Voluntary Associations,06/04/2022,5650089,"7,088.40",VERNON PLAYGROUP
Children & Culture,Education Services,Early Years,3&4 Year old PVI�s,Third Party Payments - Voluntary Associations,06/04/2022,5650090,"7,088.40",WEAVERSFIELD COMMUNITY NURSERY
Children & Culture,Education Services,Early Years,Private Voluntary & Independant Extended Funding Hours,Third Party Payments - Voluntary Associations,06/04/2022,5649974,"7,088.40",Barnardo's
Children & Culture,Education Services,Early Years,Private Voluntary & Independant Extended Funding Hours,Third Party Payments - Voluntary Associations,06/04/2022,5650036,"7,088.40",MAGIC ROUNDABOUT NURSERIES LTD
Children & Culture,Education Services,Early Years,SSEYCG Two Year Old Pilot,Third Party Payments - Voluntary Associations,06/04/2022,5649961,"7,333.20",Tiddley Tots Daycare
Children & Culture,Education Services,Early Years,3&4 Year old PVI�s,Third Party Payments - Voluntary Associations,06/04/2022,5649975,"7,732.80",BRAYFORD SQUARE PLAYGROUP
Children & Culture,Education Services,Early Years,3&4 Year old PVI�s,Third Party Payments - Voluntary Associations,06/04/2022,5650011,"7,732.80",Account 3 Ltd
Children & Culture,Education Services,Early Years,3&4 Year old PVI�s,Third Party Payments - Voluntary Associations,06/04/2022,5650033,"7,732.80",Little St Matthias Pre School
Children & Culture,Education Services,Early Years,3&4 Year old PVI�s,Third Party Payments - Voluntary Associations,06/04/2022,5650078,"7,732.80",St Paul�s (Nursery at Dock Street)
Children & Culture,Education Services,Early Years,3&4 Year old PVI�s,Third Party Payments - Voluntary Associations,06/04/2022,5650092,"7,732.80",THE NURSERY QUEEN MARY UNIVERSITY LONDON
Children & Culture,Education Services,Early Years,SSEYCG Two Year Old Pilot,Third Party Payments - Voluntary Associations,06/04/2022,5649914,"7,944.30",Barkantine Community Nursery
Children & Culture,Education Services,Early Years,SSEYCG Two Year Old Pilot,Third Party Payments - Voluntary Associations,06/04/2022,5649931,"7,944.30",ISLAND HOUSE PRE SCHOOL PLAYGROUP
Children & Culture,Education Services,Early Years,SSEYCG Two Year Old Pilot,Third Party Payments - Voluntary Associations,06/04/2022,5649933,"7,944.30",Kids Kingdom Nursery
Children & Culture,Education Services,Early Years,SSEYCG Two Year Old Pilot,Third Party Payments - Voluntary Associations,06/04/2022,5649963,"7,944.30",VERNON PLAYGROUP
Children & Culture,Education Services,Early Years,SSEYCG Two Year Old Pilot,Third Party Payments - Voluntary Associations,06/04/2022,5649964,"7,944.30",WEAVERSFIELD COMMUNITY NURSERY
Children & Culture,Education Services,Early Years,3&4 Year old PVI�s,Third Party Payments - Voluntary Associations,06/04/2022,5650005,"8,377.20",GLOBAL KIDS DAY CARE
Children & Culture,Education Services,Early Years,Private Voluntary & Independant Extended Funding Hours,Third Party Payments - Voluntary Associations,06/04/2022,5650072,"8,377.20",Shining Futures Nursery
Children & Culture,Education Services,Early Years,SSEYCG Two Year Old Pilot,Third Party Payments - Voluntary Associations,06/04/2022,5649918,"8,555.40",Calvary Poplar Preschool
Children & Culture,Education Services,Early Years,SSEYCG Two Year Old Pilot,Third Party Payments - Voluntary Associations,06/04/2022,5649925,"8,555.40",GLOBAL KIDS DAY CARE
Children & Culture,No Service Specified,No Division Specified,Parks - CAP,Building Works - Main Works,06/04/2022,5639775,"8,758.71",Groundsman Supplies
Children & Culture,Education Services,Early Years,3&4 Year old PVI�s,Third Party Payments - Voluntary Associations,06/04/2022,5650009,"9,021.60",GREEN GABLES PRIMARY SCHOOL
Children & Culture,Education Services,Early Years,3&4 Year old PVI�s,Third Party Payments - Voluntary Associations,06/04/2022,5650020,"9,021.60",Jingle Jungle Nursery
Children & Culture,Education Services,Early Years,Private Voluntary & Independant Extended Funding Hours,Third Party Payments - Voluntary Associations,06/04/2022,5649994,"9,021.60",CROSSHARBOUR MONTESSORI DAY NURSERY
Children & Culture,Education Services,Early Years,Private Voluntary & Independant Extended Funding Hours,Third Party Payments - Voluntary Associations,06/04/2022,5650045,"9,021.60",Mudchute Association
Children & Culture,Education Services,Early Years,SSEYCG Two Year Old Pilot,Third Party Payments - Voluntary Associations,06/04/2022,5649917,"9,166.50",Burdett Estate playgroup
Children & Culture,Education Services,Early Years,SSEYCG Two Year Old Pilot,Third Party Payments - Voluntary Associations,06/04/2022,5649921,"9,166.50",Date Palm Nurseries Ltd
Children & Culture,Education Services,Early Years,SSEYCG Two Year Old Pilot,Third Party Payments - Voluntary Associations,06/04/2022,5649927,"9,166.50",Account 3 Ltd
Children & Culture,Education Services,Early Years,SSEYCG Two Year Old Pilot,Third Party Payments - Voluntary Associations,06/04/2022,5649940,"9,166.50",Little St Matthias Pre School
Children & Culture,Education Services,Early Years,SSEYCG Two Year Old Pilot,Third Party Payments - Voluntary Associations,06/04/2022,5649952,"9,166.50",RANWELL PLAYGROUP
Children & Culture,Education Services,Early Years,3&4 Year old PVI�s,Third Party Payments - Voluntary Associations,06/04/2022,5649966,"9,666.00",ABERTOTS PLAY
Children & Culture,Education Services,Early Years,3&4 Year old PVI�s,Third Party Payments - Voluntary Associations,06/04/2022,5649978,"9,666.00",BRIGHT HORIZONS FAMILY SOLUTION
Children & Culture,Education Services,Early Years,3&4 Year old PVI�s,Third Party Payments - Voluntary Associations,06/04/2022,5650031,"9,666.00",Little Miracles Nursery
Children & Culture,Education Services,Early Years,3&4 Year old PVI�s,Third Party Payments - Voluntary Associations,06/04/2022,5650063,"9,666.00",Barkantine Community Nursery
Children & Culture,Education Services,Early Years,Private Voluntary & Independant Extended Funding Hours,Third Party Payments - Voluntary Associations,06/04/2022,5650038,"9,666.00",Matchbox Day Nursery Ltd
Children & Culture,Education Services,Early Years,SSEYCG Two Year Old Pilot,Third Party Payments - Voluntary Associations,06/04/2022,5649938,"9,777.60",Little Miracles Nursery
Children & Culture,Education Services,Early Years,3&4 Year old PVI�s,Third Party Payments - Voluntary Associations,06/04/2022,5649980,"10,310.40",BRIGHT HORIZONS FAMILY SOLUTION
Children & Culture,Education Services,Early Years,3&4 Year old PVI�s,Third Party Payments - Voluntary Associations,06/04/2022,5649989,"10,310.40",Calvary Poplar Preschool
Children & Culture,Education Services,Early Years,Private Voluntary & Independant Extended Funding Hours,Third Party Payments - Voluntary Associations,06/04/2022,5649996,"10,310.40",Date Palm Nurseries Ltd
Children & Culture,Education Services,Early Years,Private Voluntary & Independant Extended Funding Hours,Third Party Payments - Voluntary Associations,06/04/2022,5650058,"10,310.40",Rainbow Angels Nurseries & Learning Centres Ltd
Children & Culture,Education Services,Other Strategic Functions,High Needs Other Boroughs,Third Party Payments - SEN Top Up Funding,06/04/2022,5637909,"10,835.00",ST FRANCIS CATHOLIC PRIMARY SCHOOL
Children & Culture,Education Services,Early Years,3&4 Year old PVI�s,Third Party Payments - Voluntary Associations,06/04/2022,5649973,"10,954.80",Barnardo's
Children & Culture,Education Services,Early Years,3&4 Year old PVI�s,Third Party Payments - Voluntary Associations,06/04/2022,5649976,"10,954.80",BRIGHT HORIZONS FAMILY SOLUTION
Children & Culture,Education Services,Early Years,3&4 Year old PVI�s,Third Party Payments - Voluntary Associations,06/04/2022,5650012,"10,954.80",Headstart Nursery
Children & Culture,Education Services,Early Years,3&4 Year old PVI�s,Third Party Payments - Voluntary Associations,06/04/2022,5650075,"10,954.80",Step By Step Nursery
Children & Culture,Education Services,Early Years,SSEYCG Two Year Old Pilot,Third Party Payments - Voluntary Associations,06/04/2022,5649937,"10,999.80",Little Limehouse Preschool
Children & Culture,Education Services,Early Years,SSEYCG Two Year Old Pilot,Third Party Payments - Voluntary Associations,06/04/2022,5649950,"10,999.80",Rainbow House
Children & Culture,Education Services,Early Years,3&4 Year old PVI�s,Third Party Payments - Voluntary Associations,06/04/2022,5649982,"11,599.20",BRIGHT HORIZONS FAMILY SOLUTION
Children & Culture,Education Services,Early Years,SSEYCG Two Year Old Pilot,Third Party Payments - Voluntary Associations,06/04/2022,5649955,"12,222.00",Spring Nursery Limited
Children & Culture,Education Services,Early Years,3&4 Year old PVI�s,Third Party Payments - Voluntary Associations,06/04/2022,5649971,"12,243.60",Bethnal Green Montessuri Nursery
Children & Culture,Education Services,Early Years,3&4 Year old PVI�s,Third Party Payments - Voluntary Associations,06/04/2022,5650066,"12,243.60",Rise N Shine Nursery
Children & Culture,Education Services,Early Years,3&4 Year old PVI�s,Third Party Payments - Voluntary Associations,06/04/2022,5650035,"12,888.00",MAGIC ROUNDABOUT NURSERIES LTD
Children & Culture,Education Services,Early Years,3&4 Year old PVI�s,Third Party Payments - Voluntary Associations,06/04/2022,5650027,"13,532.40",Little Limehouse Preschool
Children & Culture,Education Services,Early Years,3&4 Year old PVI�s,Third Party Payments - Voluntary Associations,06/04/2022,5650055,"13,532.40",Puddle Jumpers Ltd
Children & Culture,Education Services,Early Years,3&4 Year old PVI�s,Third Party Payments - Voluntary Associations,06/04/2022,5650088,"13,532.40",Tower Hamlets Opportunity Group
Children & Culture,Education Services,Early Years,Private Voluntary & Independant Extended Funding Hours,Third Party Payments - Voluntary Associations,06/04/2022,5650008,"14,176.80",Green Gables School
Children & Culture,Education Services,Other Strategic Functions,High Needs Other Boroughs,Third Party Payments - SEN Placement Funding,06/04/2022,5640117,"14,177.01",Whittington Health NHS Trust
Children & Culture,Education Services,Early Years,3&4 Year old PVI�s,Third Party Payments - Voluntary Associations,06/04/2022,5649969,"14,821.20",Barkantine Community Nursery
Children & Culture,Education Services,Early Years,3&4 Year old PVI�s,Third Party Payments - Voluntary Associations,06/04/2022,5650057,"14,821.20",Rainbow Angels Nurseries & Learning Centres Ltd
Children & Culture,Education Services,Early Years,3&4 Year old PVI�s,Third Party Payments - Voluntary Associations,06/04/2022,5650061,"14,821.20",Rainbow House
Children & Culture,Education Services,Early Years,3&4 Year old PVI�s,Third Party Payments - Voluntary Associations,06/04/2022,5650071,"14,821.20",Shining Futures Nursery
Children & Culture,Education Services,Early Years,3&4 Year old PVI�s,Third Party Payments - Voluntary Associations,06/04/2022,5650084,"14,821.20",The Pier Head Preparatory School
Children & Culture,Education Services,Early Years,Private Voluntary & Independant Extended Funding Hours,Third Party Payments - Voluntary Associations,06/04/2022,5650043,"14,821.20",Montessori On The Park
Children & Culture,Education Services,Early Years,SSEYCG Two Year Old Pilot,Third Party Payments - Voluntary Associations,06/04/2022,5649942,"15,277.50",Matchbox Day Nursery Ltd
Children & Culture,Education Services,Early Years,Private Voluntary & Independant Extended Funding Hours,Third Party Payments - Voluntary Associations,06/04/2022,5650000,"15,465.60",BRIGHT HORIZONS FAMILY SOLUTION
Children & Culture,Education Services,Early Years,SSEYCG Two Year Old Pilot,Third Party Payments - Voluntary Associations,06/04/2022,5649929,"15,888.60",Iqra Pre School
Children & Culture,Education Services,Early Years,3&4 Year old PVI�s,Third Party Payments - Voluntary Associations,06/04/2022,5649987,"16,110.00",BUTTERCUP  NURSERY
Children & Culture,Education Services,Early Years,SSEYCG Two Year Old Pilot,Third Party Payments - Voluntary Associations,06/04/2022,5649960,"16,499.70",TATE HOUSE PLAYGROUP
Children & Culture,Education Services,Early Years,3&4 Year old PVI�s,Third Party Payments - Voluntary Associations,06/04/2022,5649993,"16,754.40",CROSSHARBOUR MONTESSORI DAY NURSERY
Children & Culture,Education Services,Early Years,3&4 Year old PVI�s,Third Party Payments - Voluntary Associations,06/04/2022,5650003,"16,754.40",GLOBAL KIDS DAY CARE
Children & Culture,Education Services,Early Years,3&4 Year old PVI�s,Third Party Payments - Voluntary Associations,06/04/2022,5650073,"16,754.40",Spring Nursery Limited
Children & Culture,Education Services,Early Years,3&4 Year old PVI�s,Third Party Payments - Voluntary Associations,06/04/2022,5650044,"17,398.80",Mudchute Association
Children & Culture,Education Services,Early Years,SSEYCG Two Year Old Pilot,Third Party Payments - Voluntary Associations,06/04/2022,5649924,"17,721.90",GLOBAL KIDS DAY CARE
Children & Culture,Education Services,Early Years,3&4 Year old PVI�s,Third Party Payments - Voluntary Associations,06/04/2022,5650014,"18,043.20",Iqra Pre School
Children & Culture,Education Services,Early Years,3&4 Year old PVI�s,Third Party Payments - Voluntary Associations,06/04/2022,5650037,"18,043.20",Matchbox Day Nursery Ltd
Children & Culture,Education Services,Early Years,3&4 Year old PVI�s,Third Party Payments - Voluntary Associations,06/04/2022,5650007,"19,332.00",Green Gables School
Children & Culture,Education Services,Early Years,3&4 Year old PVI�s,Third Party Payments - Voluntary Associations,06/04/2022,5650042,"20,620.80",Montessori On The Park
Children & Culture,Education Services,Early Years,SSEYCG Two Year Old Pilot,Third Party Payments - Voluntary Associations,06/04/2022,5649928,"20,777.40",Headstart Nursery
Children & Culture,Education Services,Early Years,3&4 Year old PVI�s,Third Party Payments - Voluntary Associations,06/04/2022,5650059,"21,909.60",Rainbow House
Children & Culture,Education Services,Early Years,3&4 Year old PVI�s,Third Party Payments - Voluntary Associations,06/04/2022,5650026,"23,198.40",Lincoln Hall Playgroup
Children & Culture,Education Services,Early Years,3&4 Year old PVI�s,Third Party Payments - Voluntary Associations,06/04/2022,5649999,"25,131.60",BRIGHT HORIZONS FAMILY SOLUTION
Children & Culture,Education Services,Early Years,SSEYCG Two Year Old Pilot,Third Party Payments - Voluntary Associations,06/04/2022,5649936,"26,277.30",Lincoln Hall Playgroup
Children & Culture,Education Services,Early Years,3&4 Year old PVI�s,Third Party Payments - Voluntary Associations,06/04/2022,5650094,"31,575.60",SELECT LEARNING LONDON LTD
Children & Culture,Education Services,Early Years,SSEYCG Two Year Old Pilot,Third Party Payments - Voluntary Associations,06/04/2022,5649965,"34,832.70",SELECT LEARNING LONDON LTD
Children & Culture,Children's Social Care,Children Looked After,C.B.C & Fam.Prev/Support-Mgmnt,Education & Training - Non Staff Tuition Fees,06/04/2022,5649153,"42,491.50",Volunteer Centre Tower Hamlets
Children & Culture,Education Services,Early Years,3&4 Year old PVI�s,Third Party Payments - Voluntary Associations,06/04/2022,5650068,"48,330.00",Riverhouse Montessori Nursery
Children & Culture,Education Services,Other Strategic Functions,High Needs Academies & Free Schs,Third Party Payments - SEN Top Up Funding,06/04/2022,5639774,"55,695.41",London Enterprise Academy
Children & Culture,Education Services,Early Years,3&4 Year old PVI�s,Third Party Payments - Voluntary Associations,06/04/2022,5649995,"67,017.60",Date Palm Nurseries Ltd
Children & Culture,Children's Social Care,Support Service and Management Costs,Schools Catering,Repairs and Maintenance - Responsive - Repair & Maintenance,08/04/2022,5640438,250.00,Swiftclean LTD
Children & Culture,Children's Social Care,Support Service and Management Costs,Schools Catering,Repairs and Maintenance - Responsive - Repair & Maintenance,08/04/2022,5640439,250.00,Swiftclean LTD
Children & Culture,Children's Social Care,Support Service and Management Costs,Schools Catering,Kitchen Supplies - Food and Beverages,08/04/2022,5640220,263.56,Thomas Ridley & Son Ltd
Children & Culture,Children's Social Care,Support Service and Management Costs,Schools Catering,Kitchen Supplies - Food and Beverages,08/04/2022,5640206,274.37,Thomas Ridley & Son Ltd
Children & Culture,Children's Social Care,Support Service and Management Costs,Swanlea,Kitchen Supplies - Food and Beverages,08/04/2022,5640212,339.15,Thomas Ridley & Son Ltd
Children & Culture,Children's Social Care,Support Service and Management Costs,Schools Catering,Kitchen Supplies - Food and Beverages,08/04/2022,5640218,358.44,Thomas Ridley & Son Ltd
Children & Culture,Cultural and Related Services,Open Spaces,Stepney Green,Contract Cleaning,08/04/2022,5650793,360.98,Wetton Cleaning Services LTD
Children & Culture,Children's Social Care,Support Service and Management Costs,Schools Catering,Kitchen Supplies - Food and Beverages,08/04/2022,5640219,362.57,Thomas Ridley & Son Ltd
Children & Culture,Children's Social Care,Children Looked After,LCS/Allowances-Accom,Leaving Care Financial Assistance - Supp Accom/Hous Rents,08/04/2022,5641840,389.28,Step4ward services Kent LTD
Children & Culture,Children's Social Care,Support Service and Management Costs,Schools Catering,Kitchen Supplies - Food and Beverages,08/04/2022,5640210,396.20,Thomas Ridley & Son Ltd
Children & Culture,Children's Social Care,Support Service and Management Costs,Schools Catering,Kitchen Supplies - Food and Beverages,08/04/2022,5640216,406.56,Thomas Ridley & Son Ltd
Children & Culture,Children's Social Care,Service Strategy,FSP Sect 17 - Team 1,Childrens Act Section 17 - Expert Assessmt/Witness Costs,08/04/2022,5639673,473.00,Abbott Toxicology Ltd
Children & Culture,Children's Social Care,Support Service and Management Costs,Schools Catering,Kitchen Supplies - Food and Beverages,08/04/2022,5640211,542.08,Thomas Ridley & Son Ltd
Children & Culture,Children's Social Care,Support Service and Management Costs,Swanlea,Kitchen Supplies - Food and Beverages,08/04/2022,5640907,603.64,Tiffin Sandwiches
Children & Culture,Children's Social Care,Support Service and Management Costs,Swanlea,Kitchen Supplies - Food and Beverages,08/04/2022,5640213,696.38,Thomas Ridley & Son Ltd
Children & Culture,Education Services,Other Strategic Functions,High Needs Out Of Borough Further Education Colleges,Third Party Payments - SEN Top Up Funding,08/04/2022,5650753,734.82,NORTH WEST KENT COLLEGE
Children & Culture,Children's Social Care,Children Looked After,LCS/Allowances-Accom,Leaving Care Financial Assistance - Supp Accom/Hous Rents,08/04/2022,5641837,805.00,Step4ward services Kent LTD
Children & Culture,Children's Social Care,Support Service and Management Costs,Sch. Meals A/c - Central Production Unit,Kitchen Supplies - Food and Beverages,08/04/2022,5640209,808.42,Thomas Ridley & Son Ltd
Children & Culture,Education Services,Other Strategic Functions,Safeguarding Service,Training Expenses - Staff External Training (UK Based),08/04/2022,5640068,"1,150.00",The Lucy Faithfull Foundation
Children & Culture,Children's Social Care,Support Service and Management Costs,Swanlea,Kitchen Supplies - Food and Beverages,08/04/2022,5640214,"1,169.60",Thomas Ridley & Son Ltd
Children & Culture,Cultural and Related Services,Open Spaces,Parks & Open Spaces Man&Admin,Payments to Private Contractors - Private Contractor,08/04/2022,5651102,"1,378.68",The Bromley by Bow Centre
Children & Culture,Children's Social Care,Support Service and Management Costs,Schools Catering,Kitchen Supplies - Food and Beverages,08/04/2022,5640207,"1,384.18",Thomas Ridley & Son Ltd
Children & Culture,Education Services,Other Strategic Functions,High Needs Out Of Borough Further Education Colleges,Third Party Payments - SEN Top Up Funding,08/04/2022,5650752,"1,469.64",NORTH WEST KENT COLLEGE
Children & Culture,Children's Social Care,Children Looked After,S23-Other-Semi-Ind. Unit,Childrens Act Section 23 - Placement Fee,08/04/2022,5640184,"1,714.20",HAMLETTS LTD
Children & Culture,Children's Social Care,Family Support Services,IPST S17 NRPF,Childrens Act Section 17 - Other Placements Bed & Breakfast,08/04/2022,5649674,"1,798.00",Apolonia Property Services (Exodus Housing)
Children & Culture,Children's Social Care,Service Strategy,"CSC Learning & Development		",Training Expenses - Staff External Training (UK Based),08/04/2022,5642087,"2,220.00",Team-Teach
Children & Culture,Children's Social Care,Children Looked After,S23-Other-Semi-Ind. Unit,Childrens Act Section 23 - Placement Fee,08/04/2022,5651171,"2,411.36",Primrose care & support
Children & Culture,Children's Social Care,Children Looked After,LCS/Allowances-Accom,Leaving Care Financial Assistance - Supp Accom/Hous Rents,08/04/2022,5641839,"2,724.98",Step4ward services Kent LTD
Children & Culture,No Service Specified,No Division Specified,Parks - CAP,Building Works - Ancillary Works,08/04/2022,5640995,"3,037.50",Martin Arnold LTD
Children & Culture,Education Services,Other Strategic Functions,Health through Education,Training Expenses - Staff Internal Training,08/04/2022,5642155,"3,300.00",PSHE Association
Children & Culture,Children's Social Care,Children Looked After,S23 Fam Pl P&V-F/Care,Childrens Act Section 23 - Placement Fee,08/04/2022,5641788,"3,535.80",Select Fostercare Services Ltd
Children & Culture,Children's Social Care,Children Looked After,S23 Fam Pl P&V-F/Care,Childrens Act Section 23 - Placement Fee,08/04/2022,5641789,"3,535.80",Select Fostercare Services Ltd
Children & Culture,No Service Specified,No Division Specified,Parks - CAP,Building Works - Main Works,08/04/2022,5640622,"4,191.37",Martin Arnold LTD
Children & Culture,Children's Social Care,Children Looked After,S23 Fam Pl In-Hse-S/Term F/C,Childrens Act Section 23 - Non-Contact Taxi Costs,08/04/2022,5650717,"4,439.00",Healthcare and Transport Services Group Ltd
Children & Culture,No Service Specified,No Division Specified,Basic Needs/Expansions - CAP,Other External Fees - Consultants Fees,08/04/2022,5650767,"4,700.00",Fire Ingenuity
Children & Culture,Children's Social Care,Children Looked After,C.B.C & Fam.Prev/Support-Mgmnt,Third Party Payments - Voluntary Associations,08/04/2022,5640090,"6,483.60",Barnardo's Services
Children & Culture,Education Services,Other Strategic Functions,High Needs Other Boroughs,Third Party Payments - Payments to Schools,08/04/2022,5640560,"6,633.33",Cambian Whinfell School Limited
Children & Culture,Children's Social Care,Children Looked After,Virtual School PPG,Third Party Payments - Payments to Schools,08/04/2022,5648026,"6,961.00",BARLEY LANE PRIMARY SCHOOL
Children & Culture,Education Services,Other Strategic Functions,High Needs Other Boroughs,Third Party Payments - SEN Top Up Funding,08/04/2022,5646071,"10,000.00",Medway Council
Children & Culture,Education Services,Other Strategic Functions,Empty Properties,Property Leases - Buildings,08/04/2022,5651312,"15,000.00",Raine's School Foundation
Children & Culture,Education Services,Other Strategic Functions,SEN External Travel,Non Staff Transport Costs - Reimbursement,08/04/2022,5649652,"16,054.00",Mile End Car Hire Limited
Children & Culture,Education Services,Other Strategic Functions,SEN External Travel,Non Staff Transport Costs - Reimbursement,08/04/2022,5650705,"21,156.00",Mile End Car Hire Limited
Children & Culture,Education Services,Other Strategic Functions,High Needs Other Boroughs,Third Party Payments - Payments to Schools,08/04/2022,5640559,"24,174.33",Cambian Whinfell School Limited
Children & Culture,Children's Social Care,Children Looked After,C.B.C & Fam.Prev/Support-Mgmnt,Third Party Payments - Voluntary Associations,08/04/2022,5640091,"27,786.25",Barnardo's Services
Children & Culture,Children's Social Care,Support Service and Management Costs,Schools Catering,Kitchen Supplies - Food and Beverages,11/04/2022,5641039,250.77,Thomas Ridley & Son Ltd
Children & Culture,Children's Social Care,Support Service and Management Costs,Schools Catering,Kitchen Supplies - Food and Beverages,11/04/2022,5641048,252.94,Thomas Ridley & Son Ltd
Children & Culture,Children's Social Care,Support Service and Management Costs,Ian Mikardo High School,Kitchen Supplies - Food and Beverages,11/04/2022,5641017,253.50,Thomas Ridley & Son Ltd
Children & Culture,Children's Social Care,Support Service and Management Costs,Schools Catering,Kitchen Supplies - Food and Beverages,11/04/2022,5641108,261.35,Prescott-Thomas LTD.
Children & Culture,Children's Social Care,Support Service and Management Costs,Schools Catering,Kitchen Supplies - Food and Beverages,11/04/2022,5641119,261.65,Prescott-Thomas LTD.
Children & Culture,Children's Social Care,Support Service and Management Costs,Schools Catering,Kitchen Supplies - Food and Beverages,11/04/2022,5641023,266.20,Thomas Ridley & Son Ltd
Children & Culture,Children's Social Care,Support Service and Management Costs,Schools Catering,Kitchen Supplies - Food and Beverages,11/04/2022,5641019,270.66,Thomas Ridley & Son Ltd
Children & Culture,Children's Social Care,Support Service and Management Costs,Schools Catering,Kitchen Supplies - Food and Beverages,11/04/2022,5641138,270.84,Prescott-Thomas LTD.
Children & Culture,Children's Social Care,Support Service and Management Costs,Swanlea,Materials - Cleaning Materials,11/04/2022,5642193,271.46,GREENER SOLUTIONS LTD
Children & Culture,Children's Social Care,Support Service and Management Costs,Schools Catering,Kitchen Supplies - Food and Beverages,11/04/2022,5641020,278.94,Thomas Ridley & Son Ltd
Children & Culture,Children's Social Care,Support Service and Management Costs,Schools Catering,Kitchen Supplies - Food and Beverages,11/04/2022,5646013,279.44,William White Meats Ltd
Children & Culture,Children's Social Care,Support Service and Management Costs,Schools Catering,Kitchen Supplies - Food and Beverages,11/04/2022,5641059,279.47,Thomas Ridley & Son Ltd
Children & Culture,Children's Social Care,Support Service and Management Costs,Schools Catering,Kitchen Supplies - Food and Beverages,11/04/2022,5646021,280.81,William White Meats Ltd
Children & Culture,Children's Social Care,Support Service and Management Costs,Schools Catering,Kitchen Supplies - Packaging,11/04/2022,5640836,283.38,Tri-Star Packaging Supplies LTD
Children & Culture,Children's Social Care,Support Service and Management Costs,Schools Catering,Kitchen Supplies - Food and Beverages,11/04/2022,5641129,284.93,Prescott-Thomas LTD.
Children & Culture,Children's Social Care,Children's and Young People's Safety,Early Help Central Team,Training Expenses - Staff External Training (UK Based),11/04/2022,5641887,290.00,The Youth Worker
Children & Culture,Children's Social Care,Support Service and Management Costs,Schools Catering,Kitchen Supplies - Food and Beverages,11/04/2022,5641031,296.46,Thomas Ridley & Son Ltd
Children & Culture,Children's Social Care,Support Service and Management Costs,Schools Catering,Kitchen Supplies - Food and Beverages,11/04/2022,5646032,297.32,William White Meats Ltd
Children & Culture,Children's Social Care,Support Service and Management Costs,Schools Catering,Kitchen Supplies - Food and Beverages,11/04/2022,5646026,297.74,William White Meats Ltd
Children & Culture,Children's Social Care,Support Service and Management Costs,Schools Catering,Kitchen Supplies - Food and Beverages,11/04/2022,5641126,297.77,Prescott-Thomas LTD.
Children & Culture,Children's Social Care,Support Service and Management Costs,Schools Catering,Kitchen Supplies - Food and Beverages,11/04/2022,5644731,297.87,William White Meats Ltd
Children & Culture,Children's Social Care,Support Service and Management Costs,Schools Catering,Kitchen Supplies - Food and Beverages,11/04/2022,5641133,307.17,Prescott-Thomas LTD.
Children & Culture,Children's Social Care,Support Service and Management Costs,Schools Catering,Kitchen Supplies - Food and Beverages,11/04/2022,5646023,310.69,William White Meats Ltd
Children & Culture,Children's Social Care,Support Service and Management Costs,Schools Catering,Kitchen Supplies - Food and Beverages,11/04/2022,5646018,312.12,William White Meats Ltd
Children & Culture,Children's Social Care,Support Service and Management Costs,Schools Catering,Kitchen Supplies - Food and Beverages,11/04/2022,5644738,315.96,William White Meats Ltd
Children & Culture,Education Services,Other Strategic Functions,CSF-Equalities Tracking & Dev,Children with Disabilities - Equipment / Clothes,11/04/2022,5643034,320.10,RNC ENTERPRISES LTD
Children & Culture,Children's Social Care,Support Service and Management Costs,Schools Catering,Kitchen Supplies - Food and Beverages,11/04/2022,5641021,321.41,Thomas Ridley & Son Ltd
Children & Culture,Children's Social Care,Support Service and Management Costs,Schools Catering,Kitchen Supplies - Food and Beverages,11/04/2022,5644730,322.23,William White Meats Ltd
Children & Culture,Children's Social Care,Support Service and Management Costs,Schools Catering,Kitchen Supplies - Food and Beverages,11/04/2022,5641013,322.51,Thomas Ridley & Son Ltd
Children & Culture,Children's Social Care,Support Service and Management Costs,Schools Catering,Kitchen Supplies - Food and Beverages,11/04/2022,5641067,344.03,Thomas Ridley & Son Ltd
Children & Culture,Children's Social Care,Support Service and Management Costs,Schools Catering,Kitchen Supplies - Food and Beverages,11/04/2022,5641009,355.02,Thomas Ridley & Son Ltd
Children & Culture,Children's Social Care,Support Service and Management Costs,Schools Catering,Kitchen Supplies - Food and Beverages,11/04/2022,5646034,356.41,William White Meats Ltd
Children & Culture,Children's Social Care,Support Service and Management Costs,Schools Catering,Kitchen Supplies - Food and Beverages,11/04/2022,5646017,357.47,William White Meats Ltd
Children & Culture,Children's Social Care,Support Service and Management Costs,Schools Catering,Kitchen Supplies - Food and Beverages,11/04/2022,5641005,361.10,Thomas Ridley & Son Ltd
Children & Culture,Children's Social Care,Support Service and Management Costs,Schools Catering,Kitchen Supplies - Food and Beverages,11/04/2022,5641113,361.30,Prescott-Thomas LTD.
Children & Culture,Children's Social Care,Support Service and Management Costs,Schools Catering,Kitchen Supplies - Food and Beverages,11/04/2022,5641053,362.40,Thomas Ridley & Son Ltd
Children & Culture,Children's Social Care,Support Service and Management Costs,Swanlea,Kitchen Supplies - Food and Beverages,11/04/2022,5641087,365.96,Prescott-Thomas LTD.
Children & Culture,Children's Social Care,Support Service and Management Costs,Schools Catering,Kitchen Supplies - Food and Beverages,11/04/2022,5641128,380.31,Prescott-Thomas LTD.
Children & Culture,Children's Social Care,Support Service and Management Costs,Schools Catering,Kitchen Supplies - Food and Beverages,11/04/2022,5641045,387.76,Thomas Ridley & Son Ltd
Children & Culture,Children's Social Care,Support Service and Management Costs,Schools Catering,Kitchen Supplies - Food and Beverages,11/04/2022,5641066,392.69,Thomas Ridley & Son Ltd
Children & Culture,Education Services,Early Years,SSEYCG Inclusion,Comms - Courier,11/04/2022,5640977,397.50,Figurehead Studios
Children & Culture,Children's Social Care,Support Service and Management Costs,Sch. Meals A/c - Central Production Unit,Kitchen Supplies - Food and Beverages,11/04/2022,5646029,404.00,William White Meats Ltd
Children & Culture,Children's Social Care,Support Service and Management Costs,Schools Catering,Kitchen Supplies - Food and Beverages,11/04/2022,5644746,405.71,William White Meats Ltd
Children & Culture,Children's Social Care,Support Service and Management Costs,Schools Catering,Kitchen Supplies - Food and Beverages,11/04/2022,5641046,406.45,Thomas Ridley & Son Ltd
Children & Culture,Children's Social Care,Support Service and Management Costs,Schools Catering,Kitchen Supplies - Food and Beverages,11/04/2022,5641034,409.68,Thomas Ridley & Son Ltd
Children & Culture,Children's Social Care,Support Service and Management Costs,Schools Catering,Kitchen Supplies - Food and Beverages,11/04/2022,5641068,410.57,Thomas Ridley & Son Ltd
Children & Culture,Children's Social Care,Support Service and Management Costs,Schools Catering,Kitchen Supplies - Food and Beverages,11/04/2022,5641065,411.07,Thomas Ridley & Son Ltd
Children & Culture,Children's Social Care,Support Service and Management Costs,Schools Catering,Kitchen Supplies - Food and Beverages,11/04/2022,5641081,412.66,Prescott-Thomas LTD.
Children & Culture,Children's Social Care,Support Service and Management Costs,Schools Catering,Kitchen Supplies - Food and Beverages,11/04/2022,5641018,431.52,Thomas Ridley & Son Ltd
Children & Culture,Children's Social Care,Support Service and Management Costs,Schools Catering,Kitchen Supplies - Food and Beverages,11/04/2022,5646009,441.41,William White Meats Ltd
Children & Culture,Children's Social Care,Children Looked After,S23-Other-Mother & Baby Unit,Childrens Act Section 23 - Placement Fee,11/04/2022,5651346,450.00,OneOneCoCo
Children & Culture,Children's Social Care,Support Service and Management Costs,Schools Catering,Kitchen Supplies - Food and Beverages,11/04/2022,5641124,469.36,Prescott-Thomas LTD.
Children & Culture,Children's Social Care,Support Service and Management Costs,Schools Catering,Kitchen Supplies - Food and Beverages,11/04/2022,5641054,472.07,Thomas Ridley & Son Ltd
Children & Culture,Children's Social Care,Support Service and Management Costs,Schools Catering,Kitchen Supplies - Food and Beverages,11/04/2022,5641016,484.81,Thomas Ridley & Son Ltd
Children & Culture,Children's Social Care,Support Service and Management Costs,Schools Catering,Kitchen Supplies - Food and Beverages,11/04/2022,5641051,513.71,Thomas Ridley & Son Ltd
Children & Culture,Children's Social Care,Support Service and Management Costs,Schools Catering,Repairs and Maintenance - Responsive - Repair & Maintenance,11/04/2022,5643070,532.00,Lambourne Refrigeration
Children & Culture,Children's Social Care,Support Service and Management Costs,Schools Catering,Kitchen Supplies - Food and Beverages,11/04/2022,5646033,542.66,William White Meats Ltd
Children & Culture,Children's Social Care,Support Service and Management Costs,Schools Catering,Kitchen Supplies - Food and Beverages,11/04/2022,5641007,550.62,Thomas Ridley & Son Ltd
Children & Culture,Children's Social Care,Support Service and Management Costs,Swanlea,Kitchen Supplies - Food and Beverages,11/04/2022,5640993,566.74,Chicken Joes
Children & Culture,Children's Social Care,Support Service and Management Costs,Schools Catering,Kitchen Supplies - Food and Beverages,11/04/2022,5641008,579.49,Thomas Ridley & Son Ltd
Children & Culture,Education Services,Other Strategic Functions,Parents Advice Centre,Training Expenses - Staff External Training (UK Based),11/04/2022,5640978,600.00,Pulse First Aid Ltd
Children & Culture,Children's Social Care,Support Service and Management Costs,Schools Catering,Kitchen Supplies - Food and Beverages,11/04/2022,5641015,612.28,Thomas Ridley & Son Ltd
Children & Culture,Children's Social Care,Support Service and Management Costs,Schools Catering,Kitchen Supplies - Food and Beverages,11/04/2022,5646028,615.22,William White Meats Ltd
Children & Culture,Children's Social Care,Support Service and Management Costs,Schools Catering,Kitchen Supplies - Food and Beverages,11/04/2022,5641052,625.90,Thomas Ridley & Son Ltd
Children & Culture,Children's Social Care,Support Service and Management Costs,Schools Catering,Kitchen Supplies - Food and Beverages,11/04/2022,5646025,629.80,William White Meats Ltd
Children & Culture,Children's Social Care,Youth Justice,Youth Justice Team,Third Party Payments - Other Agencies,11/04/2022,5640909,654.00,Appropriate Adults UK
Children & Culture,Children's Social Care,Support Service and Management Costs,Schools Catering,Kitchen Supplies - Food and Beverages,11/04/2022,5646022,730.73,William White Meats Ltd
Children & Culture,No Service Specified,No Division Specified,Conditions and Improvements - Cap,Building Works - Main Works,11/04/2022,5640847,750.00,Chamberlain Consulting LLP
Children & Culture,Children's Social Care,Support Service and Management Costs,Sch. Meals A/c - Central Production Unit,Kitchen Supplies - Food and Beverages,11/04/2022,5641012,868.52,Thomas Ridley & Son Ltd
Children & Culture,Education Services,Other Strategic Functions,Parents Advice Centre,Training Expenses - Staff External Training (UK Based),11/04/2022,5640979,900.00,Pulse First Aid Ltd
Children & Culture,Children's Social Care,Support Service and Management Costs,Swanlea,Kitchen Supplies - Food and Beverages,11/04/2022,5641030,"1,163.06",Thomas Ridley & Son Ltd
Children & Culture,Children's Social Care,Children Looked After,S23 Fam Pl P&V-F/Care,Childrens Act Section 23 - Placement Fee,11/04/2022,5644856,"1,257.08",OUTSET FOSTERING AGENCY LTD
Children & Culture,Children's Social Care,Children Looked After,LCS/Allowances-Accom,Leaving Care Financial Assistance - User Inv Care Lea Group,11/04/2022,5644857,"1,500.00",Creative Engagement Services
Children & Culture,Children's Social Care,Children Looked After,Enrichment Projects,Education & Training - Non Staff Tuition Fees,11/04/2022,5641679,"1,550.00",Half Moon Young People's Theatre
Children & Culture,Children's Social Care,Family Support Services,IPST S17 NRPF,Childrens Act Section 17 - Other Placements Bed & Breakfast,11/04/2022,5649675,"1,550.00",Apolonia Property Services (Exodus Housing)
Children & Culture,Children's Social Care,Support Service and Management Costs,Swanlea,Kitchen Supplies - Food and Beverages,11/04/2022,5646031,"1,597.09",William White Meats Ltd
Children & Culture,Children's Social Care,Children Looked After,S23 Fam Pl P&V-F/Care,Childrens Act Section 23 - Placement Fee,11/04/2022,5640982,"1,789.32",Children First Fostering Agency LTD
Children & Culture,Children's Social Care,Children Looked After,S23 Fam Pl P&V-F/Care,Childrens Act Section 23 - Placement Fee,11/04/2022,5642419,"2,285.60",OUTSET FOSTERING AGENCY LTD
Children & Culture,Education Services,Other Strategic Functions,Music Trading Account,Education & Training - Non Staff Tuition Fees,11/04/2022,5641678,"2,500.00",Half Moon Young People's Theatre
Children & Culture,Education Services,Other Strategic Functions,Music Trading Account,Third Party Payments - Voluntary Associations,11/04/2022,5642129,"2,750.00",THATnetwork
Children & Culture,Children's Social Care,Children Looked After,S23 Fam Pl P&V-F/Care,Childrens Act Section 23 - Placement Fee,11/04/2022,5651491,"3,018.65",Five Rivers Childcare Limited
Children & Culture,Children's Social Care,Children Looked After,S23 Fam Pl P&V-F/Care,Childrens Act Section 23 - Placement Fee,11/04/2022,5640983,"3,173.78",Children First Fostering Agency LTD
Children & Culture,Children's Social Care,Children Looked After,S23 Fam Pl P&V-F/Care,Childrens Act Section 23 - Placement Fee,11/04/2022,5651482,"3,203.80",Five Rivers Childcare Limited
Children & Culture,Children's Social Care,Children Looked After,LCS/Allowances-Accom,Leaving Care Financial Assistance - Supp Accom/Hous Rents,11/04/2022,5641889,"3,260.00",Serendipity Homes Ltd
Children & Culture,Children's Social Care,Children Looked After,S23 Fam Pl P&V-F/Care,Childrens Act Section 23 - Placement Fee,11/04/2022,5640960,"3,314.29",Five Rivers Childcare Limited
Children & Culture,Children's Social Care,Children Looked After,S23-Other-Mother & Baby Unit,Childrens Act Section 23 - Placement Fee,11/04/2022,5641897,"3,465.00",Jamma Umoja (Residential Services) LTD
Children & Culture,Children's Social Care,Children Looked After,S23 Fam Pl P&V-F/Care,Childrens Act Section 23 - Placement Fee,11/04/2022,5646444,"3,494.14",Fostering Innovations Ltd
Children & Culture,Children's Social Care,Children Looked After,S23 Fam Pl P&V-F/Care,Childrens Act Section 23 - Placement Fee,11/04/2022,5651488,"3,576.96",Five Rivers Childcare Limited
Children & Culture,No Service Specified,No Division Specified,Basic Needs/Expansions - CAP,Other External Fees - Consultants Fees,11/04/2022,5641979,"3,900.00",Potter Raper & Partnership
Children & Culture,Cultural and Related Services,Open Spaces,Adventure Play,Repairs and Maintenance - Responsive - Buildings,11/04/2022,5640838,"4,276.00",JC Coster (Metalworks) Ltd
Children & Culture,Children's Social Care,Children Looked After,S23 Fam Pl P&V-F/Care,Childrens Act Section 23 - Placement Fee,11/04/2022,5651487,"4,560.00",Five Rivers Childcare Limited
Children & Culture,Children's Social Care,Children Looked After,S23 Fam Pl In-Hse-F&F F/Care,Childrens Act Section 23 - Placement Fee,11/04/2022,5651490,"4,871.43",Five Rivers Childcare Limited
Children & Culture,Children's Social Care,Children Looked After,S23 Fam Pl P&V-F/Care,Childrens Act Section 23 - Placement Fee,11/04/2022,5644808,"5,314.33",Family Fostering
Children & Culture,Children's Social Care,Children Looked After,S23 Fam Pl P&V-F/Care,Childrens Act Section 23 - Placement Fee,11/04/2022,5646442,"6,155.71",Fostering Innovations Ltd
Children & Culture,No Service Specified,No Division Specified,Basic Needs/Expansions - CAP,Building Works - Main Works,11/04/2022,5641807,"8,800.00",Alan Conisbee & Associates Ltd
Children & Culture,Children's Social Care,Children Looked After,Care Matters,Services - Professional Fees - Financial Services Fees,11/04/2022,5647961,"9,535.72",London Borough of Havering
Children & Culture,Children's Social Care,Children Looked After,S23 Fam Pl P&V-F/Care,Childrens Act Section 23 - Placement Fee,11/04/2022,5646445,"10,668.43",Fostering Innovations Ltd
Children & Culture,No Service Specified,No Division Specified,Basic Needs/Expansions - CAP,Building Works - Main Works,11/04/2022,5641978,"23,378.00",Potter Raper & Partnership
Children & Culture,Education Services,Other Strategic Functions,CS Prem Retirement (Non-School,Services - Professional Fees - Financial Services Fees,11/04/2022,5650714,"251,329.97",Teachers Pensions
Children & Culture,Education Services,Other Strategic Functions,Alternative Provision,Third Party Payments - Other Colleges,11/04/2022,5641767,"586,848.00",New City College
Children & Culture,Children's Social Care,Support Service and Management Costs,Schools Catering,Repairs and Maintenance - Responsive - Repair & Maintenance,13/04/2022,5642926,250.00,Swiftclean LTD
Children & Culture,Children's Social Care,Support Service and Management Costs,Schools Catering,Repairs and Maintenance - Responsive - Repair & Maintenance,13/04/2022,5644763,250.00,Swiftclean LTD
Children & Culture,Children's Social Care,Support Service and Management Costs,Schools Catering,Kitchen Supplies - Catering Equipment,13/04/2022,5644793,253.50,W V Howe LTD
Children & Culture,Children's Social Care,Support Service and Management Costs,Schools Catering,Kitchen Supplies - Food and Beverages,13/04/2022,5643126,254.57,Prescott-Thomas LTD.
Children & Culture,Children's Social Care,Support Service and Management Costs,Schools Catering,Kitchen Supplies - Food and Beverages,13/04/2022,5643154,256.48,Prescott-Thomas LTD.
Children & Culture,Children's Social Care,Support Service and Management Costs,Schools Catering,Kitchen Supplies - Food and Beverages,13/04/2022,5642857,257.92,Thomas Ridley & Son Ltd
Children & Culture,Education Services,Other Strategic Functions,Music Trading Account,Educational/Training Supplies - Arts & Crafts,13/04/2022,5644844,259.80,Beare and Son Ltd
Children & Culture,Children's Social Care,Support Service and Management Costs,Schools Catering,Kitchen Supplies - Food and Beverages,13/04/2022,5643168,260.36,Prescott-Thomas LTD.
Children & Culture,Children's Social Care,Support Service and Management Costs,Schools Catering,Kitchen Supplies - Food and Beverages,13/04/2022,5642178,262.99,Thomas Ridley & Son Ltd
Children & Culture,Children's Social Care,Support Service and Management Costs,Schools Catering,Kitchen Supplies - Food and Beverages,13/04/2022,5643107,263.53,Thomas Ridley & Son Ltd
Children & Culture,Children's Social Care,Support Service and Management Costs,Schools Catering,Kitchen Supplies - Food and Beverages,13/04/2022,5643157,265.04,Prescott-Thomas LTD.
Children & Culture,Children's Social Care,Support Service and Management Costs,Schools Catering,Kitchen Supplies - Food and Beverages,13/04/2022,5648422,270.98,William White Meats Ltd
Children & Culture,Children's Social Care,Support Service and Management Costs,Schools Catering,Kitchen Supplies - Food and Beverages,13/04/2022,5643145,272.73,Prescott-Thomas LTD.
Children & Culture,Children's Social Care,Support Service and Management Costs,Schools Catering,Kitchen Supplies - Food and Beverages,13/04/2022,5641941,273.89,Thomas Ridley & Son Ltd
Children & Culture,Children's Social Care,Support Service and Management Costs,Schools Catering,Kitchen Supplies - Food and Beverages,13/04/2022,5642841,275.03,Thomas Ridley & Son Ltd
Children & Culture,Children's Social Care,Support Service and Management Costs,Schools Catering,Kitchen Supplies - Food and Beverages,13/04/2022,5646048,275.80,William White Meats Ltd
Children & Culture,Children's Social Care,Support Service and Management Costs,Schools Catering,Kitchen Supplies - Food and Beverages,13/04/2022,5642461,279.52,Thomas Ridley & Son Ltd
Children & Culture,Children's Social Care,Support Service and Management Costs,Schools Catering,Kitchen Supplies - Food and Beverages,13/04/2022,5648421,282.70,William White Meats Ltd
Children & Culture,Children's Social Care,Support Service and Management Costs,Swanlea,Kitchen Supplies - Food and Beverages,13/04/2022,5643176,283.63,Prescott-Thomas LTD.
Children & Culture,Education Services,Early Years,Around Poplar CC,Educational/Training Supplies - Resources,13/04/2022,5642808,285.00,Living Eggs Herts
Children & Culture,Children's Social Care,Support Service and Management Costs,Schools Catering,Kitchen Supplies - Food and Beverages,13/04/2022,5642470,286.69,Thomas Ridley & Son Ltd
Children & Culture,Children's Social Care,Support Service and Management Costs,Schools Catering,Kitchen Supplies - Food and Beverages,13/04/2022,5643104,291.53,Thomas Ridley & Son Ltd
Children & Culture,Children's Social Care,Support Service and Management Costs,Schools Catering,Kitchen Supplies - Food and Beverages,13/04/2022,5643174,292.02,Prescott-Thomas LTD.
Children & Culture,Children's Social Care,Support Service and Management Costs,Schools Catering,Kitchen Supplies - Food and Beverages,13/04/2022,5643148,295.72,Prescott-Thomas LTD.
Children & Culture,Cultural and Related Services,Open Spaces,Victoria Park,Repairs and Maintenance - Responsive - Repair & Maintenance,13/04/2022,5641872,300.00,J&L Coster (Drainage) Ltd
Children & Culture,Children's Social Care,Children Looked After,Leaving Care-UASC,Leaving Care Financial Assistance - Supported Living,13/04/2022,5642433,300.00,HAMLETTS LTD
Children & Culture,Children's Social Care,Support Service and Management Costs,Schools Catering,Kitchen Supplies - Food and Beverages,13/04/2022,5646042,300.98,William White Meats Ltd
Children & Culture,Children's Social Care,Support Service and Management Costs,Schools Catering,Kitchen Supplies - Food and Beverages,13/04/2022,5643159,301.83,Prescott-Thomas LTD.
Children & Culture,Children's Social Care,Support Service and Management Costs,Schools Catering,Materials - Cleaning Materials,13/04/2022,5642873,301.96,GREENER SOLUTIONS LTD
Children & Culture,Children's Social Care,Support Service and Management Costs,Schools Catering,Kitchen Supplies - Food and Beverages,13/04/2022,5643164,302.25,Prescott-Thomas LTD.
Children & Culture,Children's Social Care,Support Service and Management Costs,Schools Catering,Kitchen Supplies - Food and Beverages,13/04/2022,5643118,307.60,Prescott-Thomas LTD.
Children & Culture,Cultural and Related Services,Open Spaces,Mile End Park,Services - Professional Fees - Security Fees,13/04/2022,5642804,308.37,A P SECURITY (APS) LTD
Children & Culture,Children's Social Care,Support Service and Management Costs,Schools Catering,Kitchen Supplies - Food and Beverages,13/04/2022,5643124,309.02,Prescott-Thomas LTD.
Children & Culture,Children's Social Care,Support Service and Management Costs,Schools Catering,Kitchen Supplies - Food and Beverages,13/04/2022,5646019,310.80,William White Meats Ltd
Children & Culture,Children's Social Care,Support Service and Management Costs,Schools Catering,Kitchen Supplies - Food and Beverages,13/04/2022,5642816,312.36,Thomas Ridley & Son Ltd
Children & Culture,Children's Social Care,Support Service and Management Costs,Schools Catering,Kitchen Supplies - Food and Beverages,13/04/2022,5642835,314.71,Thomas Ridley & Son Ltd
Children & Culture,Children's Social Care,Support Service and Management Costs,Schools Catering,Kitchen Supplies - Food and Beverages,13/04/2022,5648401,316.63,William White Meats Ltd
Children & Culture,Children's Social Care,Support Service and Management Costs,Schools Catering,Materials - Cleaning Materials,13/04/2022,5644920,322.41,GREENER SOLUTIONS LTD
Children & Culture,Children's Social Care,Support Service and Management Costs,Schools Catering,Kitchen Supplies - Food and Beverages,13/04/2022,5648425,324.10,William White Meats Ltd
Children & Culture,Children's Social Care,Support Service and Management Costs,Schools Catering,Kitchen Supplies - Food and Beverages,13/04/2022,5641928,337.61,Thomas Ridley & Son Ltd
Children & Culture,Children's Social Care,Support Service and Management Costs,Schools Catering,Kitchen Supplies - Food and Beverages,13/04/2022,5642817,340.30,Thomas Ridley & Son Ltd
Children & Culture,Children's Social Care,Support Service and Management Costs,Schools Catering,Kitchen Supplies - Food and Beverages,13/04/2022,5641939,344.20,Thomas Ridley & Son Ltd
Children & Culture,Children's Social Care,Support Service and Management Costs,Schools Catering,Kitchen Supplies - Food and Beverages,13/04/2022,5641942,346.06,Thomas Ridley & Son Ltd
Children & Culture,Children's Social Care,Support Service and Management Costs,Schools Catering,Kitchen Supplies - Food and Beverages,13/04/2022,5644750,348.04,William White Meats Ltd
Children & Culture,Children's Social Care,Support Service and Management Costs,Schools Catering,Kitchen Supplies - Food and Beverages,13/04/2022,5648390,351.88,William White Meats Ltd
Children & Culture,Children's Social Care,Support Service and Management Costs,Schools Catering,Kitchen Supplies - Food and Beverages,13/04/2022,5642826,353.73,Thomas Ridley & Son Ltd
Children & Culture,Children's Social Care,Support Service and Management Costs,Schools Catering,Kitchen Supplies - Food and Beverages,13/04/2022,5642831,353.85,Thomas Ridley & Son Ltd
Children & Culture,Children's Social Care,Support Service and Management Costs,Schools Catering,Kitchen Supplies - Food and Beverages,13/04/2022,5642179,355.52,Thomas Ridley & Son Ltd
Children & Culture,Children's Social Care,Support Service and Management Costs,Schools Catering,Kitchen Supplies - Food and Beverages,13/04/2022,5643156,358.83,Prescott-Thomas LTD.
Children & Culture,Children's Social Care,Support Service and Management Costs,Schools Catering,Kitchen Supplies - Food and Beverages,13/04/2022,5642463,359.52,Thomas Ridley & Son Ltd
Children & Culture,Children's Social Care,Support Service and Management Costs,Schools Catering,Kitchen Supplies - Food and Beverages,13/04/2022,5643152,359.85,Prescott-Thomas LTD.
Children & Culture,Children's Social Care,Support Service and Management Costs,Schools Catering,Kitchen Supplies - Food and Beverages,13/04/2022,5642165,361.72,Thomas Ridley & Son Ltd
Children & Culture,Children's Social Care,Support Service and Management Costs,Schools Catering,Kitchen Supplies - Food and Beverages,13/04/2022,5648391,362.30,William White Meats Ltd
Children & Culture,Children's Social Care,Support Service and Management Costs,Schools Catering,Kitchen Supplies - Food and Beverages,13/04/2022,5642466,365.58,Thomas Ridley & Son Ltd
Children & Culture,Children's Social Care,Support Service and Management Costs,Schools Catering,Kitchen Supplies - Food and Beverages,13/04/2022,5642840,367.02,Thomas Ridley & Son Ltd
Children & Culture,Children's Social Care,Support Service and Management Costs,Schools Catering,Kitchen Supplies - Food and Beverages,13/04/2022,5642169,367.34,Thomas Ridley & Son Ltd
Children & Culture,Children's Social Care,Support Service and Management Costs,Schools Catering,Repairs and Maintenance - Responsive - Repair & Maintenance,13/04/2022,5644762,369.00,Swiftclean LTD
Children & Culture,Children's Social Care,Support Service and Management Costs,Schools Catering,Kitchen Supplies - Food and Beverages,13/04/2022,5642472,369.22,Thomas Ridley & Son Ltd
Children & Culture,Children's Social Care,Support Service and Management Costs,Schools Catering,Kitchen Supplies - Food and Beverages,13/04/2022,5642828,376.52,Thomas Ridley & Son Ltd
Children & Culture,Children's Social Care,Support Service and Management Costs,Schools Catering,Kitchen Supplies - Food and Beverages,13/04/2022,5642855,377.51,Thomas Ridley & Son Ltd
Children & Culture,Children's Social Care,Support Service and Management Costs,Schools Catering,Kitchen Supplies - Food and Beverages,13/04/2022,5648411,378.36,William White Meats Ltd
Children & Culture,Children's Social Care,Support Service and Management Costs,Schools Catering,Kitchen Supplies - Food and Beverages,13/04/2022,5642860,380.40,Thomas Ridley & Son Ltd
Children & Culture,Education Services,Early Years,Children Centre Central Team,Medical Requisites,13/04/2022,5642736,381.00,Supply Chain Coordination Limited (NHS Supply Chain)
Children & Culture,Children's Social Care,Support Service and Management Costs,Schools Catering,Kitchen Supplies - Food and Beverages,13/04/2022,5642846,381.12,Thomas Ridley & Son Ltd
Children & Culture,Children's Social Care,Support Service and Management Costs,Schools Catering,Kitchen Supplies - Food and Beverages,13/04/2022,5642848,381.73,Thomas Ridley & Son Ltd
Children & Culture,Children's Social Care,Support Service and Management Costs,Schools Catering,Kitchen Supplies - Food and Beverages,13/04/2022,5642176,382.26,Thomas Ridley & Son Ltd
Children & Culture,Children's Social Care,Support Service and Management Costs,Schools Catering,Kitchen Supplies - Food and Beverages,13/04/2022,5642164,384.40,Thomas Ridley & Son Ltd
Children & Culture,Children's Social Care,Support Service and Management Costs,Schools Catering,Kitchen Supplies - Food and Beverages,13/04/2022,5648406,386.90,William White Meats Ltd
Children & Culture,Children's Social Care,Support Service and Management Costs,Schools Catering,Kitchen Supplies - Food and Beverages,13/04/2022,5646002,388.50,William White Meats Ltd
Children & Culture,Children's Social Care,Children Looked After,Enrichment Projects,Events & Exhibitions,13/04/2022,5642321,389.00,Moxography
Children & Culture,Children's Social Care,Support Service and Management Costs,Schools Catering,Kitchen Supplies - Food and Beverages,13/04/2022,5642188,391.62,Thomas Ridley & Son Ltd
Children & Culture,Children's Social Care,Support Service and Management Costs,Schools Catering,Kitchen Supplies - Food and Beverages,13/04/2022,5643162,398.07,Prescott-Thomas LTD.
Children & Culture,Children's Social Care,Children's and Young People's Safety,Early Help Central Team,Training Expenses - Staff External Training (UK Based),13/04/2022,5646409,400.00,Redacted Section 40 FOI ACT
Children & Culture,Education Services,Early Years,Children Centre Central Team,Repairs and Maintenance - Responsive - Repair & Maintenance,13/04/2022,5642648,400.00,JC Coster (Metalworks) Ltd
Children & Culture,Children's Social Care,Support Service and Management Costs,Schools Catering,Kitchen Supplies - Food and Beverages,13/04/2022,5642177,400.17,Thomas Ridley & Son Ltd
Children & Culture,Children's Social Care,Support Service and Management Costs,Schools Catering,Kitchen Supplies - Food and Beverages,13/04/2022,5648397,401.34,William White Meats Ltd
Children & Culture,Children's Social Care,Children Looked After,S23-Other-Mother & Baby Unit,Childrens Act Section 23 - Placement Fee,13/04/2022,5644860,412.50,Jamma Umoja (Residential Services) LTD
Children & Culture,Children's Social Care,Support Service and Management Costs,Schools Catering,Kitchen Supplies - Food and Beverages,13/04/2022,5642166,412.71,Thomas Ridley & Son Ltd
Children & Culture,Children's Social Care,Support Service and Management Costs,Schools Catering,Kitchen Supplies - Food and Beverages,13/04/2022,5641927,415.50,Thomas Ridley & Son Ltd
Children & Culture,Children's Social Care,Support Service and Management Costs,Schools Catering,Kitchen Supplies - Food and Beverages,13/04/2022,5642834,416.23,Thomas Ridley & Son Ltd
Children & Culture,Children's Social Care,Support Service and Management Costs,Schools Catering,Kitchen Supplies - Food and Beverages,13/04/2022,5648410,417.17,William White Meats Ltd
Children & Culture,Children's Social Care,Support Service and Management Costs,Schools Catering,Kitchen Supplies - Food and Beverages,13/04/2022,5648396,422.57,William White Meats Ltd
Children & Culture,Children's Social Care,Support Service and Management Costs,Schools Catering,Kitchen Supplies - Food and Beverages,13/04/2022,5646003,424.81,William White Meats Ltd
Children & Culture,Children's Social Care,Support Service and Management Costs,Schools Catering,Kitchen Supplies - Food and Beverages,13/04/2022,5642184,426.10,Thomas Ridley & Son Ltd
Children & Culture,Children's Social Care,Support Service and Management Costs,Schools Catering,Kitchen Supplies - Food and Beverages,13/04/2022,5642171,426.26,Thomas Ridley & Son Ltd
Children & Culture,Children's Social Care,Support Service and Management Costs,Schools Catering,Kitchen Supplies - Food and Beverages,13/04/2022,5642833,426.60,Thomas Ridley & Son Ltd
Children & Culture,Children's Social Care,Support Service and Management Costs,Schools Catering,Kitchen Supplies - Food and Beverages,13/04/2022,5642499,428.56,Prescott-Thomas LTD.
Children & Culture,Children's Social Care,Support Service and Management Costs,Schools Catering,Repairs and Maintenance - Responsive - General,13/04/2022,5646176,433.35,J.Scott & Sons Ltd
Children & Culture,Children's Social Care,Support Service and Management Costs,Schools Catering,Kitchen Supplies - Food and Beverages,13/04/2022,5648395,438.81,William White Meats Ltd
Children & Culture,Children's Social Care,Children's and Young People's Safety,Early Help Central Team,Training Expenses - Staff External Training (UK Based),13/04/2022,5642416,440.00,The Youth Worker
Children & Culture,Children's Social Care,Support Service and Management Costs,Schools Catering,Kitchen Supplies - Food and Beverages,13/04/2022,5648424,442.76,William White Meats Ltd
Children & Culture,Children's Social Care,Support Service and Management Costs,Schools Catering,Kitchen Supplies - Food and Beverages,13/04/2022,5641938,443.26,Thomas Ridley & Son Ltd
Children & Culture,Children's Social Care,Support Service and Management Costs,Schools Catering,Kitchen Supplies - Food and Beverages,13/04/2022,5648431,445.79,William White Meats Ltd
Children & Culture,Children's Social Care,Support Service and Management Costs,Schools Catering,Kitchen Supplies - Food and Beverages,13/04/2022,5643106,451.65,Thomas Ridley & Son Ltd
Children & Culture,Children's Social Care,Support Service and Management Costs,Schools Catering,Kitchen Supplies - Food and Beverages,13/04/2022,5642818,451.95,Thomas Ridley & Son Ltd
Children & Culture,Children's Social Care,Support Service and Management Costs,Schools Catering,Kitchen Supplies - Food and Beverages,13/04/2022,5643161,454.83,Prescott-Thomas LTD.
Children & Culture,Children's Social Care,Support Service and Management Costs,Schools Catering,Repairs and Maintenance - Responsive - General,13/04/2022,5646185,455.16,J.Scott & Sons Ltd
Children & Culture,Education Services,Early Years,Children Centre Central Team,Office Furniture/Equipment,13/04/2022,5642813,458.00,Yorkshire Purchasing Organisation
Children & Culture,Children's Social Care,Support Service and Management Costs,Schools Catering,Kitchen Supplies - Food and Beverages,13/04/2022,5641932,467.65,Thomas Ridley & Son Ltd
Children & Culture,Children's Social Care,Support Service and Management Costs,Schools Catering,Kitchen Supplies - Food and Beverages,13/04/2022,5648426,469.32,William White Meats Ltd
Children & Culture,Children's Social Care,Support Service and Management Costs,Schools Catering,Kitchen Supplies - Food and Beverages,13/04/2022,5642851,470.67,Thomas Ridley & Son Ltd
Children & Culture,Children's Social Care,Support Service and Management Costs,Sch. Meals A/c - Central Production Unit,Materials - Cleaning Materials,13/04/2022,5644914,483.30,GREENER SOLUTIONS LTD
Children & Culture,Children's Social Care,Support Service and Management Costs,Schools Catering,Kitchen Supplies - Food and Beverages,13/04/2022,5648423,486.04,William White Meats Ltd
Children & Culture,Children's Social Care,Children Looked After,Virtual School PPG,Education & Training - Non Staff Tuition Fees,13/04/2022,5646106,500.00,Anchor Teaching Ltd
Children & Culture,Children's Social Care,Children Looked After,Virtual School PPG,Third Party Payments - Payments to Schools,13/04/2022,5642775,500.00,Hamilton Hope CE Primary School
Children & Culture,Children's Social Care,Children Looked After,Virtual School PPG,Third Party Payments - Payments to Schools,13/04/2022,5642791,500.00,Kents Hill Infant Academy
Children & Culture,Children's Social Care,Children's and Young People's Safety,Early Help Central Team,Training Expenses - Staff External Training (UK Based),13/04/2022,5642140,500.00,Foxstones Training and Learning
Children & Culture,Education Services,Early Years,Children Centre Central Team,Medical Requisites,13/04/2022,5642742,504.00,Supply Chain Coordination Limited (NHS Supply Chain)
Children & Culture,Children's Social Care,Support Service and Management Costs,Schools Catering,Kitchen Supplies - Food and Beverages,13/04/2022,5641945,505.10,Thomas Ridley & Son Ltd
Children & Culture,Children's Social Care,Support Service and Management Costs,Professional Dev Centre,Kitchen Supplies - Food and Beverages,13/04/2022,5648493,507.58,Selecta Uk Limited
Children & Culture,Children's Social Care,Support Service and Management Costs,Professional Dev Centre,Comms - Postages,13/04/2022,5644772,513.00,Purchase Power
Children & Culture,Children's Social Care,Support Service and Management Costs,Schools Catering,Kitchen Supplies - Food and Beverages,13/04/2022,5641947,514.53,Thomas Ridley & Son Ltd
Children & Culture,Children's Social Care,Support Service and Management Costs,Schools Catering,Kitchen Supplies - Food and Beverages,13/04/2022,5648419,515.69,William White Meats Ltd
Children & Culture,Cultural and Related Services,Open Spaces,Mile End Park,Repairs and Maintenance - Responsive - Repair & Maintenance,13/04/2022,5641754,520.00,JC Coster (Metalworks) Ltd
Children & Culture,Education Services,Early Years,Children Centre Central Team,Repairs and Maintenance - Responsive - Repair & Maintenance,13/04/2022,5642648,520.00,JC Coster (Metalworks) Ltd
Children & Culture,Children's Social Care,Support Service and Management Costs,Swanlea,Kitchen Supplies - Food and Beverages,13/04/2022,5643077,526.05,Chicken Joes
Children & Culture,Education Services,Early Years,Overland CC,Office Furniture/Equipment,13/04/2022,5648057,528.00,Unique Office Solutions
Children & Culture,Children's Social Care,Support Service and Management Costs,Schools Catering,Kitchen Supplies - Food and Beverages,13/04/2022,5642174,530.13,Thomas Ridley & Son Ltd
Children & Culture,Children's Social Care,Support Service and Management Costs,Toby Lane Function,Kitchen Supplies - Food and Beverages,13/04/2022,5642187,564.26,Thomas Ridley & Son Ltd
Children & Culture,Education Services,Other Strategic Functions,Schools Library,Staff Advertising,13/04/2022,5642489,582.41,Penna PLC
Children & Culture,Children's Social Care,Support Service and Management Costs,Schools Catering,Kitchen Supplies - Food and Beverages,13/04/2022,5641952,584.00,Thomas Ridley & Son Ltd
Children & Culture,Children's Social Care,Support Service and Management Costs,Schools Catering,Kitchen Supplies - Food and Beverages,13/04/2022,5642167,584.89,Thomas Ridley & Son Ltd
Children & Culture,Education Services,Early Years,Children Centre Central Team,Medical Requisites,13/04/2022,5642737,590.00,Supply Chain Coordination Limited (NHS Supply Chain)
Children & Culture,Education Services,Early Years,Children Centre Central Team,Medical Requisites,13/04/2022,5642739,590.00,Supply Chain Coordination Limited (NHS Supply Chain)
Children & Culture,Children's Social Care,Support Service and Management Costs,Schools Catering,Kitchen Supplies - Food and Beverages,13/04/2022,5641951,590.70,Thomas Ridley & Son Ltd
Children & Culture,Children's Social Care,Support Service and Management Costs,Schools Catering,Kitchen Supplies - Food and Beverages,13/04/2022,5642186,591.46,Thomas Ridley & Son Ltd
Children & Culture,Children's Social Care,Support Service and Management Costs,Schools Catering,Kitchen Supplies - Food and Beverages,13/04/2022,5642830,595.26,Thomas Ridley & Son Ltd
Children & Culture,Children's Social Care,Support Service and Management Costs,Schools Catering,Kitchen Supplies - Food and Beverages,13/04/2022,5642836,617.72,Thomas Ridley & Son Ltd
Children & Culture,Children's Social Care,Support Service and Management Costs,Schools Catering,Kitchen Supplies - Food and Beverages,13/04/2022,5648430,644.72,William White Meats Ltd
Children & Culture,Children's Social Care,Support Service and Management Costs,Schools Catering,Kitchen Supplies - Food and Beverages,13/04/2022,5648405,650.13,William White Meats Ltd
Children & Culture,Children's Social Care,Support Service and Management Costs,Schools Catering,Kitchen Supplies - Food and Beverages,13/04/2022,5642468,659.98,Thomas Ridley & Son Ltd
Children & Culture,Education Services,Early Years,Children Centre Central Team,Repairs and Maintenance - Responsive - Repair & Maintenance,13/04/2022,5642648,660.00,JC Coster (Metalworks) Ltd
Children & Culture,Children's Social Care,Support Service and Management Costs,Schools Catering,Kitchen Supplies - Food and Beverages,13/04/2022,5648412,677.77,William White Meats Ltd
Children & Culture,Children's Social Care,Support Service and Management Costs,Schools Catering,Kitchen Supplies - Food and Beverages,13/04/2022,5643173,695.16,Prescott-Thomas LTD.
Children & Culture,Children's Social Care,Children Looked After,Virtual School PPG,Third Party Payments - Payments to Schools,13/04/2022,5642280,700.00,Elmhurst Primary School
Children & Culture,Children's Social Care,Support Service and Management Costs,Schools Catering,Kitchen Supplies - Food and Beverages,13/04/2022,5642181,704.86,Thomas Ridley & Son Ltd
Children & Culture,Children's Social Care,Service Strategy,FSP Sect 17 - Team 1,Childrens Act Section 17 - Expert Assessmt/Witness Costs,13/04/2022,5646154,717.00,DNA Legal Ltd
Children & Culture,Children's Social Care,Support Service and Management Costs,Swanlea,Kitchen Supplies - Food and Beverages,13/04/2022,5648436,725.59,William White Meats Ltd
Children & Culture,Cultural and Related Services,Open Spaces,Parks & Open Spaces Man&Admin,Repairs and Maintenance - Responsive - Repair & Maintenance,13/04/2022,5642054,730.00,JC Coster (Metalworks) Ltd
Children & Culture,Children's Social Care,Support Service and Management Costs,Schools Catering,Kitchen Supplies - Food and Beverages,13/04/2022,5641955,737.65,Thomas Ridley & Son Ltd
Children & Culture,Children's Social Care,Support Service and Management Costs,Sch. Meals A/c - Central Production Unit,Kitchen Supplies - Food and Beverages,13/04/2022,5642821,750.90,Thomas Ridley & Son Ltd
Children & Culture,Cultural and Related Services,Open Spaces,Mile End Park,Computing - Purchase of Software,13/04/2022,5642282,767.94,XMA Ltd
Children & Culture,Children's Social Care,Support Service and Management Costs,Swanlea,Kitchen Supplies - Food and Beverages,13/04/2022,5642467,768.69,Thomas Ridley & Son Ltd
Children & Culture,Children's Social Care,Support Service and Management Costs,Schools Catering,Kitchen Supplies - Food and Beverages,13/04/2022,5648413,785.40,William White Meats Ltd
Children & Culture,Children's Social Care,Support Service and Management Costs,Schools Catering,Kitchen Supplies - Food and Beverages,13/04/2022,5646047,792.73,William White Meats Ltd
Children & Culture,Children's Social Care,Support Service and Management Costs,Swanlea,Kitchen Supplies - Food and Beverages,13/04/2022,5642865,793.88,Thomas Ridley & Son Ltd
Children & Culture,Children's Social Care,Support Service and Management Costs,Schools Catering,Kitchen Supplies - Food and Beverages,13/04/2022,5648415,798.07,William White Meats Ltd
Children & Culture,Children's Social Care,Other Children's and Family Services,Permanancy and Adoption Support Team 1,Childrens Act Section 23 - Inter-Agency Fees,13/04/2022,5642317,840.00,Coram Academy Ltd T/A CoramBAAF
Children & Culture,Children's Social Care,Support Service and Management Costs,Schools Catering,Kitchen Supplies - Food and Beverages,13/04/2022,5642173,844.71,Thomas Ridley & Son Ltd
Children & Culture,Children's Social Care,Support Service and Management Costs,Schools Catering,Repairs and Maintenance - Responsive - General,13/04/2022,5646175,893.69,J.Scott & Sons Ltd
Children & Culture,Children's Social Care,Support Service and Management Costs,Sch. Meals A/c - Central Production Unit,Kitchen Supplies - Food and Beverages,13/04/2022,5642462,919.20,Thomas Ridley & Son Ltd
Children & Culture,Children's Social Care,Service Strategy,Child Care M & A,Services - Professional Fees - Legal Fees/Expenses,13/04/2022,5651547,950.00,4 Brick Court Chambers Management Limited
Children & Culture,Education Services,Early Years,Children Centre Central Team,Medical Requisites,13/04/2022,5642740,952.50,Supply Chain Coordination Limited (NHS Supply Chain)
Children & Culture,Education Services,Early Years,Children Centre Central Team,Repairs and Maintenance - Responsive - Repair & Maintenance,13/04/2022,5642648,960.00,JC Coster (Metalworks) Ltd
Children & Culture,Education Services,Other Strategic Functions,Empty Properties,Repairs and Maintenance - Responsive - Buildings,13/04/2022,5642051,960.00,JC Coster (Metalworks) Ltd
Children & Culture,Education Services,Early Years,Children Centre Central Team,Medical Requisites,13/04/2022,5642738,971.00,Supply Chain Coordination Limited (NHS Supply Chain)
Children & Culture,Education Services,Early Years,Children Centre Central Team,Repairs and Maintenance - Responsive - Repair & Maintenance,13/04/2022,5642648,"1,000.00",JC Coster (Metalworks) Ltd
Children & Culture,Children's Social Care,Support Service and Management Costs,Swanlea,Kitchen Supplies - Food and Beverages,13/04/2022,5641936,"1,008.36",Thomas Ridley & Son Ltd
Children & Culture,Education Services,Early Years,Children Centre Central Team,Office Furniture/Equipment,13/04/2022,5648058,"1,050.00",Unique Office Solutions
Children & Culture,Children's Social Care,Children's and Young People's Safety,Early Help Central Team,Training Expenses - Staff External Training (UK Based),13/04/2022,5642141,"1,120.00",Foxstones Training and Learning
Children & Culture,Children's Social Care,Family Support Services,CNN Pool: Joint Family Support,Social Care - Homecare,13/04/2022,5651672,"1,120.00",City Care Agency Ltd
Children & Culture,Children's Social Care,Support Service and Management Costs,Swanlea,Kitchen Supplies - Food and Beverages,13/04/2022,5642753,"1,182.64",Tiffin Sandwiches
Children & Culture,Children's Social Care,Other Children's and Family Services,Permanancy and Adoption Support Team 1,Childrens Act Section 23 - Inter-Agency Fees,13/04/2022,5651318,"1,200.00",The Anna Freud Centre
Children & Culture,Cultural and Related Services,Open Spaces,Victoria Park,Grounds Maintenance - Contract - Horticultural Maintenance,13/04/2022,5642402,"1,259.35",Provender Nurseries Ltd
Children & Culture,Education Services,Other Strategic Functions,Behavior Service Trading Acc,Agency Staff - Agency staff (general),13/04/2022,5642151,"1,400.00",Academics ltd
Children & Culture,Children's Social Care,Children Looked After,Virtual School PPG,Staff Advertising,13/04/2022,5642486,"1,427.01",Penna PLC
Children & Culture,Education Services,Early Years,Children Centre Central Team,Repairs and Maintenance - Responsive - Repair & Maintenance,13/04/2022,5642648,"1,580.00",JC Coster (Metalworks) Ltd
Children & Culture,Children's Social Care,Support Service and Management Costs,Sch. Meals A/c - Central Production Unit,Kitchen Supplies - Food and Beverages,13/04/2022,5646051,"1,621.83",William White Meats Ltd
Children & Culture,Education Services,Early Years,Children Centre Central Team,Repairs and Maintenance - Responsive - Repair & Maintenance,13/04/2022,5642648,"1,660.00",JC Coster (Metalworks) Ltd
Children & Culture,Children's Social Care,Support Service and Management Costs,Swanlea,Kitchen Supplies - Food and Beverages,13/04/2022,5646046,"1,661.08",William White Meats Ltd
Children & Culture,Cultural and Related Services,Open Spaces,Parks & Open Spaces Man&Admin,Repairs and Maintenance - Responsive - Repair & Maintenance,13/04/2022,5641753,"1,820.00",JC Coster (Metalworks) Ltd
Children & Culture,Cultural and Related Services,Open Spaces,Victoria Park,Events & Exhibitions,13/04/2022,5641800,"1,859.94",Groundsman Supplies
Children & Culture,Children's Social Care,Support Service and Management Costs,Schools Catering,Kitchen Supplies - Food and Beverages,13/04/2022,5642460,"1,982.34",Thomas Ridley & Son Ltd
Children & Culture,Cultural and Related Services,Open Spaces,Victoria Park,Repairs and Maintenance - Responsive - Repair & Maintenance,13/04/2022,5641756,"2,030.00",JC Coster (Metalworks) Ltd
Children & Culture,Cultural and Related Services,Open Spaces,Victoria Park,Events & Exhibitions,13/04/2022,5642655,"2,080.00",JC Coster (Metalworks) Ltd
Children & Culture,Children's Social Care,Support Service and Management Costs,Sch. Meals A/c - Central Production Unit,Kitchen Supplies - Food and Beverages,13/04/2022,5641948,"2,132.32",Thomas Ridley & Son Ltd
Children & Culture,Education Services,Early Years,Children Centre Central Team,Repairs and Maintenance - Responsive - Repair & Maintenance,13/04/2022,5642648,"2,460.00",JC Coster (Metalworks) Ltd
Children & Culture,Children's Social Care,Other Children's and Family Services,Permanancy and Adoption Support Team 1,Childrens Act Section 23 - Inter-Agency Fees,13/04/2022,5642316,"2,485.00",Coram Academy Ltd T/A CoramBAAF
Children & Culture,No Service Specified,No Division Specified,Basic Needs/Expansions - CAP,Other External Fees - Consultants Fees,13/04/2022,5649806,"2,500.00",Max Fordham LLP
Children & Culture,No Service Specified,No Division Specified,Parks - CAP,Building Works - Main Works,13/04/2022,5646487,"2,804.00",Independent Communication Solutions Ltd
Children & Culture,Cultural and Related Services,Open Spaces,Victoria Park,Events & Exhibitions,13/04/2022,5646401,"3,049.96",Midland Marqees & Leisure Ltd
Children & Culture,Children's Social Care,Children Looked After,S23 Fam Pl P&V-F/Care,Childrens Act Section 23 - Placement Fee,13/04/2022,5644812,"3,343.66",Affinity Fostering Services Ltd
Children & Culture,Children's Social Care,Children Looked After,S23-Other-Mother & Baby Unit,Childrens Act Section 23 - Placement Fee,13/04/2022,5644859,"3,465.00",Jamma Umoja (Residential Services) LTD
Children & Culture,Children's Social Care,Children Looked After,S23 Fam Pl P&V-F/Care,Childrens Act Section 23 - Placement Fee,13/04/2022,5647997,"3,494.14",Fostering Innovations Ltd
Children & Culture,Children's Social Care,Children Looked After,S23 Fam Pl P&V-F/Care,Childrens Act Section 23 - Placement Fee,13/04/2022,5642744,"3,520.67",Affinity Fostering Services Ltd
Children & Culture,Children's Social Care,Children Looked After,S23 Fam Pl P&V-F/Care,Childrens Act Section 23 - Placement Fee,13/04/2022,5643028,"3,520.67",Affinity Fostering Services Ltd
Children & Culture,Children's Social Care,Children Looked After,S23 Fam Pl P&V-F/Care,Childrens Act Section 23 - Placement Fee,13/04/2022,5644811,"3,520.67",Affinity Fostering Services Ltd
Children & Culture,Education Services,Other Strategic Functions,High Needs Academies & Free Schs,Third Party Payments - SEN Top Up Funding,13/04/2022,5646805,"3,714.83",The Complete Works Ltd
Children & Culture,Education Services,Early Years,Children Centre Central Team,Repairs and Maintenance - Responsive - Repair & Maintenance,13/04/2022,5642648,"3,750.00",JC Coster (Metalworks) Ltd
Children & Culture,Children's Social Care,Children Looked After,S23 Fam Pl P&V-F/Care,Childrens Act Section 23 - Placement Fee,13/04/2022,5642748,"3,759.68",Affinity Fostering Services Ltd
Children & Culture,Children's Social Care,Children Looked After,S23 Fam Pl P&V-F/Care,Childrens Act Section 23 - Placement Fee,13/04/2022,5643027,"3,764.33",Affinity Fostering Services Ltd
Children & Culture,Children's Social Care,Children Looked After,S23 Fam Pl P&V-F/Care,Childrens Act Section 23 - Placement Fee,13/04/2022,5642435,"4,185.00",St Christopher's Fellowship
Children & Culture,Education Services,Early Years,Children Centre Central Team,Repairs and Maintenance - Responsive - Repair & Maintenance,13/04/2022,5642648,"4,250.00",JC Coster (Metalworks) Ltd
Children & Culture,Education Services,Early Years,Isle of Dogs. CC,Repairs and Maintenance - Responsive - General,13/04/2022,5642651,"4,610.00",JC Coster (Metalworks) Ltd
Children & Culture,Cultural and Related Services,Open Spaces,Victoria Park,Events & Exhibitions,13/04/2022,5642656,"4,690.00",JC Coster (Metalworks) Ltd
Children & Culture,Education Services,Early Years,Isle of Dogs. CC,Repairs and Maintenance - Responsive - Repair & Maintenance,13/04/2022,5642650,"4,930.00",JC Coster (Metalworks) Ltd
Children & Culture,No Service Specified,No Division Specified,Basic Needs/Expansions - CAP,Other External Fees - Consultants Fees,13/04/2022,5642752,"4,981.25",One Consulting Group
Children & Culture,Education Services,Other Strategic Functions,High Needs Out Of Borough Special Schools,Third Party Payments - SEN Placement Funding,13/04/2022,5647218,"5,334.96",Right Choice
Children & Culture,Children's Social Care,Children Looked After,S23 Fam Pl P&V-F/Care,Childrens Act Section 23 - Placement Fee,13/04/2022,5642746,"5,646.34",Affinity Fostering Services Ltd
Children & Culture,No Service Specified,No Division Specified,Parks - CAP,Building Works - Main Works,13/04/2022,5642649,"5,850.00",JC Coster (Metalworks) Ltd
Children & Culture,Education Services,Other Strategic Functions,Special Education Needs DSG,Third Party Payments - Other Agencies,13/04/2022,5642882,"6,050.00",SEN Support Services Ltd
Children & Culture,Education Services,Other Strategic Functions,Vulnerable Pupils Fund,Training Expenses - Staff External Training (UK Based),13/04/2022,5642881,"6,349.38",Triple P
Children & Culture,Children's Social Care,Services for young people,Outdoor,Educational/Training Supplies - Curriculum Visits/Activities,13/04/2022,5642927,"7,480.00",JC Coster (Metalworks) Ltd
Children & Culture,Children's Social Care,Services for young people,Youth Service Management,Social Care - Prevention & Support,13/04/2022,5644791,"8,750.00",Women�s Inclusive Team
Children & Culture,Children's Social Care,Service Strategy,Child Care M & A,Training Expenses - Staff External Training (UK Based),13/04/2022,5652478,"9,200.00",Signis Ltd
Children & Culture,No Service Specified,No Division Specified,Parks - CAP,Error Suspense - Routine Works,13/04/2022,5623348,"10,329.00",Barcham Trees
Children & Culture,Children's Social Care,Children Looked After,S23 Fam Pl P&V-F/Care,Childrens Act Section 23 - Placement Fee,13/04/2022,5646446,"10,668.43",Fostering Innovations Ltd
Children & Culture,No Service Specified,No Division Specified,Basic Needs/Expansions - CAP,Other External Fees - Other External Fees,13/04/2022,5648599,"13,019.76",Tower Hamlets Schools LTD
Children & Culture,Cultural and Related Services,Open Spaces,Victoria Park,Repairs and Maintenance - Responsive - Repair & Maintenance,13/04/2022,5642064,"15,000.00",Rigby Taylor Ltd
Children & Culture,Cultural and Related Services,Open Spaces,Victoria Park,Repairs and Maintenance - Responsive - Repair & Maintenance,13/04/2022,5642275,"15,000.00",Rigby Taylor Ltd
Children & Culture,Cultural and Related Services,Open Spaces,Victoria Park,Repairs and Maintenance - Responsive - Repair & Maintenance,13/04/2022,5642654,"16,476.00",JC Coster (Metalworks) Ltd
Children & Culture,Education Services,Other Strategic Functions,High Needs Out Of Borough Further Education Colleges,Third Party Payments - SEN Top Up Funding,13/04/2022,5641821,"18,479.64",BSix Sixth Form College
Children & Culture,Cultural and Related Services,Open Spaces,Victoria Park,Repairs and Maintenance - Responsive - Repair & Maintenance,13/04/2022,5642653,"20,150.00",JC Coster (Metalworks) Ltd
Children & Culture,Children's Social Care,Children Looked After,S23-Resi-P&V/OLA-Child Home,Childrens Act Section 23 - Placement Fee,13/04/2022,5644847,"23,250.00",First Blue Healthcare Limited
Children & Culture,Education Services,Other Strategic Functions,High Needs Other Boroughs,Third Party Payments - SEN Top Up Funding,13/04/2022,5641836,"23,369.44",Marlborough Primary School
Children & Culture,Education Services,Other Strategic Functions,SEN External Travel,Non Staff Transport Costs - Reimbursement,13/04/2022,5652445,"24,625.75",Healthcare and Transport Services Group Ltd
Children & Culture,Education Services,Other Strategic Functions,High Needs Other Boroughs,Third Party Payments - SEN Top Up Funding,13/04/2022,5642984,"25,408.43",Ambitious about Autism
Children & Culture,Education Services,Early Years,Around Poplar CC,Repairs and Maintenance - Responsive - Repair & Maintenance,13/04/2022,5642928,"28,410.00",JC Coster (Metalworks) Ltd
Children & Culture,No Service Specified,No Division Specified,Basic Needs/Expansions - CAP,Other External Fees - Other External Fees,13/04/2022,5642094,"32,063.00",Arcus Consulting LLP
Children & Culture,Education Services,Other Strategic Functions,SEN External Travel,Non Staff Transport Costs - Reimbursement,13/04/2022,5652486,"50,934.00",LCT & Daughters UK Ltd
Children & Culture,Cultural and Related Services,Recreation & Sport,"Poplar Baths		",Payments to Private Contractors - Repair & Maintenance,13/04/2022,5646211,"55,000.00",Greenwich Leisure LTD
Children & Culture,Education Services,Other Strategic Functions,Tower Hamlets Education Partnership,Training Expenses - Staff External Training (UK Based),13/04/2022,5641819,"200,000.00",Tower Hamlets Education Partnership
Children & Culture,Education Services,Other Strategic Functions,Tower Hamlets Education Partnership,Training Expenses - Staff External Training (UK Based),13/04/2022,5641818,"300,000.00",Tower Hamlets Education Partnership
Children & Culture,Education Services,Secondary Schools,PFI Hldg Account-Grouped Schoo,Payments to Private Contractors - Other Contractors,13/04/2022,5648597,"1,404,017.49",Tower Hamlets Schools LTD
Children & Culture,No Service Specified,No Division Specified,Arts-Park Events,Sundry Creditors - Rechargeable Works - Deposits,20/04/2022,5646314,250.00,Massive (UK) Ltd
Children & Culture,Children's Social Care,Support Service and Management Costs,Schools Catering,Kitchen Supplies - Food and Beverages,20/04/2022,5644892,253.88,Thomas Ridley & Son Ltd
Children & Culture,Children's Social Care,Support Service and Management Costs,Swanlea,Kitchen Supplies - Packaging,20/04/2022,5646064,255.28,Tri-Star Packaging Supplies LTD
Children & Culture,Children's Social Care,Support Service and Management Costs,Ian Mikardo High School,Kitchen Supplies - Food and Beverages,20/04/2022,5646268,272.13,Thomas Ridley & Son Ltd
Children & Culture,Children's Social Care,Support Service and Management Costs,Schools Catering,Kitchen Supplies - Food and Beverages,20/04/2022,5644886,272.35,Thomas Ridley & Son Ltd
Children & Culture,Children's Social Care,Support Service and Management Costs,Schools Catering,Kitchen Supplies - Food and Beverages,20/04/2022,5644885,306.34,Thomas Ridley & Son Ltd
Children & Culture,Children's Social Care,Support Service and Management Costs,Schools Catering,Kitchen Supplies - Food and Beverages,20/04/2022,5646244,319.32,Thomas Ridley & Son Ltd
Children & Culture,Children's Social Care,Support Service and Management Costs,Schools Catering,Kitchen Supplies - Food and Beverages,20/04/2022,5646254,320.83,Thomas Ridley & Son Ltd
Children & Culture,Children's Social Care,Children's and Young People's Safety,Early Help Central Team,Books - General Purchases,20/04/2022,5646372,324.55,Eastside Books Ltd
Children & Culture,Children's Social Care,Support Service and Management Costs,Schools Catering,Kitchen Supplies - Food and Beverages,20/04/2022,5646252,334.46,Thomas Ridley & Son Ltd
Children & Culture,Children's Social Care,Support Service and Management Costs,Schools Catering,Kitchen Supplies - Food and Beverages,20/04/2022,5644906,345.36,Thomas Ridley & Son Ltd
Children & Culture,Education Services,Early Years,Children Centre Central Team,Events & Exhibitions,20/04/2022,5646133,350.00,Kois Miah Photography
Children & Culture,Children's Social Care,Support Service and Management Costs,Schools Catering,Kitchen Supplies - Food and Beverages,20/04/2022,5644891,368.21,Thomas Ridley & Son Ltd
Children & Culture,Education Services,Other Strategic Functions,Corporate Director of ESCW,Third Party Payments - Other Agencies,20/04/2022,5653044,400.00,Bertram Trading Limited - In Adminstration
Children & Culture,Children's Social Care,Support Service and Management Costs,Schools Catering,Kitchen Supplies - Food and Beverages,20/04/2022,5644884,401.76,Thomas Ridley & Son Ltd
Children & Culture,Children's Social Care,Support Service and Management Costs,Schools Catering,Kitchen Supplies - Food and Beverages,20/04/2022,5646251,432.59,Thomas Ridley & Son Ltd
Children & Culture,Children's Social Care,Support Service and Management Costs,Schools Catering,Kitchen Supplies - Food and Beverages,20/04/2022,5646241,437.50,Thomas Ridley & Son Ltd
Children & Culture,Children's Social Care,Support Service and Management Costs,Schools Catering,Kitchen Supplies - Food and Beverages,20/04/2022,5644889,445.60,Thomas Ridley & Son Ltd
Children & Culture,Children's Social Care,Support Service and Management Costs,Schools Catering,Kitchen Supplies - Food and Beverages,20/04/2022,5644897,447.89,Thomas Ridley & Son Ltd
Children & Culture,Education Services,Services to Young People and Other Community Learners,Holiday Childcare,Storage Costs,20/04/2022,5646833,450.00,Sonny White Removals
Children & Culture,Children's Social Care,Support Service and Management Costs,Schools Catering,Kitchen Supplies - Food and Beverages,20/04/2022,5644881,458.61,Thomas Ridley & Son Ltd
Children & Culture,Children's Social Care,Support Service and Management Costs,Schools Catering,Kitchen Supplies - Food and Beverages,20/04/2022,5646245,473.25,Thomas Ridley & Son Ltd
Children & Culture,Children's Social Care,Support Service and Management Costs,Schools Catering,Kitchen Supplies - Food and Beverages,20/04/2022,5646250,480.97,Thomas Ridley & Son Ltd
Children & Culture,Children's Social Care,Children Looked After,Virtual School PPG,Third Party Payments - Payments to Schools,20/04/2022,5643065,500.00,Takely Education Trust
Children & Culture,Children's Social Care,Children Looked After,Virtual School PPG,Third Party Payments - Payments to Schools,20/04/2022,5644858,500.00,Towers School Academy Trust
Children & Culture,Children's Social Care,Support Service and Management Costs,Schools Catering,Kitchen Supplies - Food and Beverages,20/04/2022,5646264,526.72,Thomas Ridley & Son Ltd
Children & Culture,Children's Social Care,Support Service and Management Costs,Schools Catering,Kitchen Supplies - Food and Beverages,20/04/2022,5646261,535.92,Thomas Ridley & Son Ltd
Children & Culture,Children's Social Care,Support Service and Management Costs,Schools Catering,Kitchen Supplies - Food and Beverages,20/04/2022,5646267,549.47,Thomas Ridley & Son Ltd
Children & Culture,Children's Social Care,Support Service and Management Costs,Schools Catering,Kitchen Supplies - Food and Beverages,20/04/2022,5644902,551.29,Thomas Ridley & Son Ltd
Children & Culture,Children's Social Care,Support Service and Management Costs,Schools Catering,Kitchen Supplies - Food and Beverages,20/04/2022,5646248,554.45,Thomas Ridley & Son Ltd
Children & Culture,Children's Social Care,Support Service and Management Costs,Schools Catering,Kitchen Supplies - Food and Beverages,20/04/2022,5644903,554.93,Thomas Ridley & Son Ltd
Children & Culture,Children's Social Care,Support Service and Management Costs,Schools Catering,Kitchen Supplies - Food and Beverages,20/04/2022,5646240,563.26,Thomas Ridley & Son Ltd
Children & Culture,Children's Social Care,Support Service and Management Costs,Schools Catering,Kitchen Supplies - Food and Beverages,20/04/2022,5644900,577.46,Thomas Ridley & Son Ltd
Children & Culture,Children's Social Care,Support Service and Management Costs,Schools Catering,Kitchen Supplies - Food and Beverages,20/04/2022,5646257,605.07,Thomas Ridley & Son Ltd
Children & Culture,Children's Social Care,Children Looked After,Virtual School PPG,Third Party Payments - Payments to Schools,20/04/2022,5643056,640.00,Abbs Cross Academy
Children & Culture,Children's Social Care,Support Service and Management Costs,Schools Catering,Kitchen Supplies - Food and Beverages,20/04/2022,5644910,647.48,Thomas Ridley & Son Ltd
Children & Culture,Children's Social Care,Support Service and Management Costs,Schools Catering,Kitchen Supplies - Food and Beverages,20/04/2022,5646242,658.07,Thomas Ridley & Son Ltd
Children & Culture,Children's Social Care,Service Strategy,Child Care M & A,Services - Professional Fees - Legal Fees/Expenses,20/04/2022,5652815,675.00,4 Brick Court Chambers Management Limited
Children & Culture,Children's Social Care,Support Service and Management Costs,Schools Catering,Kitchen Supplies - Food and Beverages,20/04/2022,5646246,691.26,Thomas Ridley & Son Ltd
Children & Culture,Children's Social Care,Service Strategy,Child Care M & A,Services - Professional Fees - Legal Fees/Expenses,20/04/2022,5652810,720.00,4 Brick Court Chambers Management Limited
Children & Culture,Children's Social Care,Support Service and Management Costs,Schools Catering,Kitchen Supplies - Food and Beverages,20/04/2022,5644912,740.29,Thomas Ridley & Son Ltd
Children & Culture,Children's Social Care,Service Strategy,Child Care M & A,Services - Professional Fees - Legal Fees/Expenses,20/04/2022,5652812,750.00,4 Brick Court Chambers Management Limited
Children & Culture,Children's Social Care,Support Service and Management Costs,Schools Catering,Kitchen Supplies - Food and Beverages,20/04/2022,5644907,816.89,Thomas Ridley & Son Ltd
Children & Culture,Children's Social Care,Children Looked After,Enrichment Projects,Grounds Maintenance - Contract - Horticultural Maintenance,20/04/2022,5642806,835.00,A G Price Florist
Children & Culture,Children's Social Care,Other Children's and Family Services,Permanancy and Adoption Support Team 2,Training Expenses - Staff External Training (UK Based),20/04/2022,5648515,880.00,Family Futures CIC
Children & Culture,Children's Social Care,Family Support Services,CNN Pool: Children Direct Paym,Social Care - Direct Payments,20/04/2022,5652263,890.60,DH TOWER HAMLETS
Children & Culture,Children's Social Care,Family Support Services,CNN Pool: Children Direct Paym,Social Care - Direct Payments,20/04/2022,5652264,890.60,DH TOWER HAMLETS
Children & Culture,Children's Social Care,Family Support Services,CNN Pool: Children Direct Paym,Social Care - Direct Payments,20/04/2022,5652265,890.60,DH TOWER HAMLETS
Children & Culture,Children's Social Care,Children Looked After,S23-Other-Semi-Ind. Unit,Childrens Act Section 23 - Placement Fee,20/04/2022,5646771,937.17,HAMLETTS LTD
Children & Culture,Children's Social Care,Children Looked After,Leaving Care-UASC,Leaving Care Financial Assistance - Supp Accom/Hous Rents,20/04/2022,5646776,"1,031.99",HAMLETTS LTD
Children & Culture,Children's Social Care,Children Looked After,LCS/Allowances-Accom,Leaving Care Financial Assistance - Supp Accom/Hous Rents,20/04/2022,5646775,"1,031.99",HAMLETTS LTD
Children & Culture,Children's Social Care,Children Looked After,Leaving Care-UASC,Leaving Care Financial Assistance - Supp Accom/Hous Rents,20/04/2022,5646763,"1,076.01",HAMLETTS LTD
Children & Culture,Children's Social Care,Children Looked After,Leaving Care-UASC,Leaving Care Financial Assistance - Supp Accom/Hous Rents,20/04/2022,5646765,"1,076.01",HAMLETTS LTD
Children & Culture,Children's Social Care,Children Looked After,Leaving Care-UASC,Leaving Care Financial Assistance - Supp Accom/Hous Rents,20/04/2022,5646766,"1,076.01",HAMLETTS LTD
Children & Culture,Children's Social Care,Children Looked After,Leaving Care-UASC,Leaving Care Financial Assistance - Supp Accom/Hous Rents,20/04/2022,5646768,"1,076.01",HAMLETTS LTD
Children & Culture,Children's Social Care,Children Looked After,Leaving Care-UASC,Leaving Care Financial Assistance - Supp Accom/Hous Rents,20/04/2022,5646772,"1,076.01",HAMLETTS LTD
Children & Culture,Children's Social Care,Children Looked After,Leaving Care-UASC,Leaving Care Financial Assistance - Supp Accom/Hous Rents,20/04/2022,5646773,"1,076.01",HAMLETTS LTD
Children & Culture,Children's Social Care,Children Looked After,Leaving Care-UASC,Leaving Care Financial Assistance - Supp Accom/Hous Rents,20/04/2022,5646778,"1,076.01",HAMLETTS LTD
Children & Culture,Children's Social Care,Children Looked After,LCS/Allowances-Accom,Leaving Care Financial Assistance - Supp Accom/Hous Rents,20/04/2022,5646770,"1,076.01",HAMLETTS LTD
Children & Culture,Children's Social Care,Service Strategy,Child Care M & A,Services - Professional Fees - Legal Fees/Expenses,20/04/2022,5652814,"1,080.00",5 Pump Court CDS
Children & Culture,Children's Social Care,Other Children's and Family Services,Permanancy and Adoption Support Team 1,Childrens Act Section 23 - Inter-Agency Fees,20/04/2022,5646116,"1,110.00",Coram Academy Ltd T/A CoramBAAF
